{"text_format":"1","workbook":"xlsx","n_sheets":10,"sheets":["Calc","Location","Report","Rental","SE","Policy","Instructions","Calc Data","HEM Table","Overview"],"not_rendered":{"charts":0,"images":5,"macros":1,"external_links":0,"defined_names":6,"comments":0,"pivot_tables":0},"unopened":[],"bounds":{"document_bytes":16777216,"sheet_cells":100000,"rows_first":2000,"rows_last":500,"rows_between":2000,"halvings":0,"cell_chars":16384,"cell_head_chars":4096},"cells_cut":0,"cells_raw":0,"read":"whole","date_system":"1900"}

{"sheet":"Calc","index":0,"n_rows":52,"n_cols":40,"rows_kept":52,"cut":false,"hidden":false,"merged":[[29,23,29,30],[36,23,36,31],[39,29,39,30],[40,29,40,30],[39,31,39,34],[40,31,40,34],[41,29,43,34],[41,23,42,28],[43,23,43,28],[34,23,34,25],[34,26,34,28],[34,32,34,34],[36,32,36,34],[34,29,34,31],[29,31,29,34],[37,23,37,34],[49,12,49,13],[40,9,40,10],[40,12,40,13],[15,12,16,12],[36,15,36,16],[36,18,36,19],[22,18,22,19],[23,18,23,19],[15,13,16,14],[41,12,41,13],[41,15,41,16],[43,12,43,13],[39,12,39,13],[38,12,38,13],[48,15,48,16],[46,15,46,16],[47,15,47,16],[44,15,44,16],[45,12,45,13],[15,10,16,11],[34,15,34,16],[45,15,45,16],[37,18,37,19],[40,15,40,16],[49,6,49,7],[5,12,5,13],[35,12,35,13],[35,15,35,16],[49,18,49,19],[46,18,46,19],[49,15,49,16],[5,6,5,10],[5,15,5,19],[15,7,16,9],[49,9,49,10],[28,15,28,16],[29,15,29,16],[28,6,28,7],[28,9,28,10],[28,12,28,13],[39,6,39,7],[39,9,39,10],[38,6,38,7],[13,12,14,12],[44,12,44,13],[46,12,48,13],[29,18,29,19],[13,13,14,14],[24,18,24,19],[26,15,26,16],[11,28,11,30],[15,18,15,20],[20,15,20,16],[15,15,16,16],[27,23,27,30],[23,33,23,34],[22,33,22,34],[23,30,23,31],[21,33,21,34],[25,26,25,28],[28,23,28,25],[27,31,27,34],[28,26,28,28],[28,29,28,31],[28,32,28,34],[22,23,22,25],[23,23,23,25],[11,23,11,26],[22,30,22,31],[20,23,20,27],[20,28,20,34],[2,23,2,34],[44,18,44,19],[43,15,43,16],[11,15,12,16],[2,4,3,15],[15,23,15,26],[9,12,10,12],[9,13,10,14],[9,15,10,16],[11,13,12,14],[3,29,3,34],[3,25,3,26],[15,31,15,34],[15,28,15,30],[11,31,11,34],[13,18,13,20],[13,23,13,26],[13,31,13,34],[8,31,9,34],[8,18,9,21],[22,26,22,28],[25,23,25,25],[25,30,25,31],[8,28,9,30],[51,31,51,35],[40,18,40,19],[48,18,48,19],[43,18,43,19],[38,18,38,19],[35,18,35,19],[39,18,39,19],[47,18,47,19],[41,18,41,19],[45,18,45,19],[39,23,40,28],[45,23,48,34],[38,23,38,34],[8,23,9,26],[24,30,24,31],[24,23,24,25],[25,33,25,34],[21,29,21,32],[21,26,21,28],[23,26,23,28],[9,3,10,5],[9,6,10,6],[9,7,10,9],[21,2,21,4],[11,6,12,6],[11,7,12,9],[11,10,12,11],[15,3,16,5],[20,6,20,7],[20,9,20,10],[15,6,16,6],[13,6,14,6],[13,7,14,9],[13,10,14,11],[13,28,13,30],[24,33,24,34],[24,26,24,28],[26,9,26,10],[29,9,29,10],[9,10,10,11],[13,15,14,16],[20,2,20,4],[11,3,12,5],[13,3,14,5],[21,6,21,7],[21,9,21,10],[22,2,22,4],[27,9,27,10],[26,2,26,4],[25,3,25,4],[25,6,25,7],[25,9,25,10],[26,6,26,7],[23,2,23,4],[24,2,24,4],[28,3,28,4],[27,2,27,4],[27,6,27,7],[29,6,29,7],[29,2,29,4],[25,15,25,16],[39,15,39,16],[8,22,9,22],[37,15,37,16],[20,12,20,13],[21,15,21,16],[25,12,25,13],[29,12,29,13],[26,12,26,13],[38,15,38,16],[27,12,27,13],[34,12,34,13],[36,12,36,13],[37,12,37,13],[28,18,28,19],[34,18,34,19],[11,18,11,20],[21,12,21,13],[20,18,20,19],[21,18,21,19],[27,15,27,16],[11,12,12,12],[27,18,27,19],[25,18,25,19],[26,18,26,19],[34,9,34,10],[36,6,36,7],[36,9,36,10],[35,6,35,7],[35,9,35,10],[34,6,34,7],[36,2,36,4],[35,2,35,4],[37,2,37,4],[38,2,38,4],[47,6,47,7],[39,2,39,4],[40,2,40,4],[41,9,41,10],[44,9,44,10],[37,6,37,7],[46,6,46,7],[41,6,41,7],[37,9,37,10],[43,6,43,7],[43,9,43,10],[38,9,38,10],[44,6,44,7],[46,9,48,10],[48,2,48,4],[44,2,44,4],[42,15,42,16],[42,18,42,19],[42,2,42,4],[42,12,42,13],[48,6,48,7],[40,6,40,7],[43,2,43,4],[46,2,46,4],[47,2,47,4],[41,2,41,4]]}
[]
[]
[null,null,null,null,"GATEWAY CAPACITY TEST CALCULATOR V2024.1",null,null,null,null,null,null,null,null,null,null,null,null,null,null,null,null,null,null,"GATEWAY USE ONLY"]
[null,null,null,null,null,null,null,null,null,null,null,null,null,null,null,null,null,null,null,null,null,null,null,"DEAL No.",null,null,null,null,"NAME:"]
[null,null,null,null,"Released Date: 4 April 2024"]
[null,null,null,null,"Field Key",null,"Mandatory and must be completed",null,null,null,null,null,"Optional input fields",null,null,"Output fields and can't be completed"]
[null,null,null,null,null,null,null,null,null,null,null,null,null,null,null,null,null,null,null,null,null,null,null,"NO",null,null,null,null,null,null,null,"NO"]
[]
[null,null,"LOAN DETAILS",null,null,null,null,null,null,null,null,null,null,null,null,null,null,null,"Bridging",null,null,null,null,"No",null,null,null,null,"Guarantee",null,null,"No"]
[null,null,null,"Loan",null,null,"Loan Type","Loan Amount ($)",null,null,"Term (mths)",null,"Rate % p.a.","Int Only Term",null,"Indicative Payment (mthly)"]
[]
[null,null,1,null,null,null,null,null,null,null,null,null,null,0,null,{"$f":"IF(AND(D12<>\"\",G12<>\"\",H12<>\"\",K12<>\"\",M12<>\"\",N12<>\"\"),IF(N12>0,M12/12*H12,PMT(M12/12, K12,-H12)),\"\")","v":""},null,null,"Total New Loans",null,null,null,null,{"$f":"IF(SUM(H12:J17)=0,0,SUM(H12:J17))","v":0},null,null,null,null,"Security Value",null,null,0]
[]
[null,null,2,null,null,null,null,null,null,null,null,null,null,0,null,{"$f":"IF(AND(H14<>\"\",K14<>\"\",M14<>\"\"),IF(N14>0,M14/12*H14,PMT(M14/12, K14,-H14)),\"\")","v":""},null,null,"Existing GBL Loans",null,null,null,null,0,null,null,null,null,"LVR",null,null,{"$f":"IF(AF12=0,0,IF(OR(AF9=\"Family Pledge\",AF9=\"FHLDS\"),80%,X16/AF12))","v":0}]
[]
[null,null,3,null,null,null,null,null,null,null,null,null,null,0,null,{"$f":"IF(AND(H16<>\"\",K16<>\"\",M16<>\"\"),IF(N16>0,M16/12*H16,PMT(M16/12,K16,-H16)),\"\")","v":""},null,null,"Total Loans",null,null,null,null,{"$f":"SUM(X12,X14)","v":0},null,null,null,null,"LMI",null,null,{"$f":"IF(AF14>80%,\"YES\",\"NO\")","v":"NO"}]
[]
[]
[]
[]
[null,null,"INCOME (Annual)",null,null,null,"APPLICANT 1",null,null,"APPLICANT 2",null,null,"APPLICANT 3",null,null,"APPLICANT 4",null,null,"ANNUAL TOTALS",null,null,null,null,"LIVING EXPENSES",null,null,null,null,{"$f":"IF(AND(AA23=\"Partnered\",AH23=\"N/A\"),\"CHECK STATUS AND PARTNER ENTRY\",IF(AND(AA24=\"Partnered\",AH24=\"N/A\"),\"CHECK STATUS AND PARTNER ENTRY\",IF(AND(AA25=\"Partnered\",AH25=\"N/A\"),\"CHECK STATUS AND PARTNER ENTRY\",IF(AND(AA26=\"Parntered\",AH26=\"N/A\"),\"CHECK STATUS AND PARTNER ENTRY\",IF(AND(AH23=\"App 2\",$AH$24<>\"App 1\"),\"CHECK STATUS AND PARTNER ENTRY\",IF(AND(AH23=\"App 3\",$AH$25<>\"App 1\"),\"CHECK STATUS AND PARTNER ENTRY\",IF(AND(AH23=\"App 4\",$AH$26<>\"App 1\"),\"CHECK STATUS AND PARTNER ENTRY\",IF(AND(AH24=\"App 1\",$AH$23<>\"App 2\"),\"CHECK STATUS AND PARTNER ENTRY\",IF(AND(AH24=\"App 3\",$AH$25<>\"App 2\"),\"CHECK STATUS AND PARTNER ENTRY\",IF(AND(AH24=\"App 4\",$AH$26<>\"App 2\"),\"CHECK STATUS AND PARTNER ENTRY\",IF(AND(AH24=\"App 1\",$AH$23<>\"App 2\"),\"CHECK STATUS AND PARTNER ENTRY\",IF(AND(AH25=\"App 1\",$AH$23<>\"App 3\"),\"CHECK STATUS AND PARTNER ENTRY\",IF(AND(AH25=\"App 2\",$AH$24<>\"App 3\"),\"CHECK STATUS AND PARTNER ENTRY\",IF(AND(AH25=\"App 4\",$AH$26<>\"App 3\"),\"CHECK STATUS AND PARTNER ENTRY\",IF(AND(AH26=\"App 1\",$AH$23<>\"App 4\"),\"CHECK STATUS AND PARTNER ENTRY\",IF(AND(AH26=\"App 2\",$AH$24<>\"App 4\"),\"CHECK STATUS AND PARTNER ENTRY\",IF(AND(AH26=\"App 3\",$AH$25<>\"App 4\"),\"CHECK STATUS AND PARTNER ENTRY\",\"\")))))))))))))))))","v":""}]
[null,null,"Full time/Part time/Casual",null,null,null,0,null,null,0,null,null,0,null,null,0,null,null,{"$f":"G22+J22+M22+P22","v":0},null,null,null,null,null,null,null,"Status",null,null,"Dependents",null,null,null,"Partner"]
[null,null,"Contract Employment",null,null,null,0,1,null,0,1,null,0,1,null,0,1,null,{"$f":"G23*H23+J23*K23+M23*N23+P23*Q23","v":0},null,null,null,null,"Applicant 1",null,null,"N/A",null,null,null,0,null,null,"N/A"]
[null,null,"Bonuses/Commission",null,null,null,0,0.8,null,0,0.8,null,0,0.8,null,0,0.8,null,{"$f":"G24*H24+J24*K24+M24*N24+P24*Q24","v":0},null,null,null,null,"Applicant 2",null,null,"N/A",null,null,null,0,null,null,"N/A"]
[null,null,"Overtime/Allowances/Other",null,null,null,0,0.8,null,0,0.8,null,0,0.8,null,0,0.8,null,0,null,null,null,null,"Applicant 3",null,null,"N/A",null,null,null,0,null,null,"N/A"]
[null,null,null,"Discounted Rental Income",null,null,{"$f":"Rental!G20","v":0},null,null,{"$f":"Rental!H20","v":0},null,null,{"$f":"Rental!I20","v":0},null,null,{"$f":"Rental!J20","v":0},null,null,{"$f":"G26+J26+M26+P26","v":0},null,null,null,null,"Applicant 4",null,null,"N/A",null,null,null,0,null,null,"N/A"]
[null,null,"Annual Salary from Business",null,null,null,{"$f":"SE!H37","v":0},null,null,{"$f":"SE!J37","v":0},null,null,{"$f":"SE!L37","v":0},null,null,{"$f":"SE!N37","v":0},null,null,0]
[null,null,"Attributed Business Cash Flow",null,null,null,{"$f":"SE!H39","v":0},null,null,{"$f":"SE!J39","v":0},null,null,{"$f":"SE!L39","v":0},null,null,{"$f":"SE!N39","v":0},null,null,0,null,null,null,null,"Declared Living Expenses (monthly)",null,null,null,null,null,null,null,0]
[null,null,null,"Plus Non-Taxable Income",null,null,null,null,null,null,null,null,null,null,null,null,null,null,0]
[null,null,"TOTAL DISCOUNTED INCOME",null,null,null,{"$f":"G22+(G23*H23)+(G24*H24)+(G25*H25)+G26+G27+G28+G29","v":0},null,null,{"$f":"J22+(J23*K23)+(J24*K24)+(J25*K25)+J26+J27+J28+J29","v":0},null,null,{"$f":"M22+(M23*N23)+(M24*N24)+(M25*N25)+M26+M27+M28+M29","v":0},null,null,{"$f":"P22+(P23*Q23)+(P24*Q24)+(P25*Q25)+P26+P27+P28+P29","v":0},null,null,{"$f":"SUM(G30:Q30)","v":0},null,null,null,null,"Declared Other Expenses (monthly)",null,null,null,null,null,null,null,0]
[]
[]
[]
[null,null,"COMMITMENTS (Remaining after Settlement)"]
[null,null,null,null,null,null,"Limit",null,null,"Remaining Term (months)",null,null,"Assessment Rate",null,null,"Payment (monthly)",null,null,"ANNUAL TOTALS",null,null,null,null,"Annual Benchmark",null,null,{"$f":"IF(AC21=\"Check status and partner entry\",0,'HEM Table'!O89)","v":0},null,null,"Annual HEM Declared",null,null,{"$f":"AF28*12","v":0}]
[null,null,"Existing Home Loan",null,null,null,0,null,null,0,null,null,{"$f":"'Calc Data'!C5","v":0.08},null,null,0,null,null,{"$f":"IFERROR((IF(OR(G36=FALSE,G36=0),0,IF(OR(J36=FALSE,J36=0,P36=FALSE,P36=0),\"Missing value\",MAX(PMT(M36/12,J36,-G36),P36)))*12),\"Missing Value\")","v":0},null,null,null,null,null,null,null,null,null,null,null,null,null,null,null,null,null,null,null,{"$f":"ROUNDUP(NPER(M36/12,P36,-G36,0,1),0)","v":{"$error":"#NUM!"}},{"$f":"IFERROR((IF(OR(G36=FALSE,G36=0),0,IF(OR(J36=FALSE,J36=0,P36=FALSE,P36=0),\"Missing value\",PMT(MAX('Calc Data'!$C$5,M36+'Calc Data'!$C$4)/12,MIN(J36,ROUNDUP(NPER(M36/12,P36,-G36,0,1),0)),-G36))))*12,\"Missing Value\")","v":0}]
[null,null,"Existing Home Loan",null,null,null,0,null,null,0,null,null,{"$f":"'Calc Data'!C5","v":0.08},null,null,0,null,null,{"$f":"IFERROR((IF(OR(G37=FALSE,G37=0),0,IF(OR(J37=FALSE,J37=0,P37=FALSE,P37=0),\"Missing value\",MAX(PMT(M37/12,J37,-G37),P37)))*12),\"Missing Value\")","v":0},null,null,null,null,"Expenses Used in Assessment",null,null,null,null,null,null,null,null,{"$f":"IF(AC21=\"Check status and partner entry\",0,'HEM Table'!O92)","v":0}]
[null,null,"Existing Home Loan",null,null,null,0,null,null,0,null,null,{"$f":"'Calc Data'!C5","v":0.08},null,null,0,null,null,0,null,null,null,null,"ASSESSMENT RESULT"]
[null,null,"Existing Commercial Loan",null,null,null,0,null,null,0,null,null,{"$f":"'Calc Data'!C3","v":0.08},null,null,0,null,null,0,null,null,null,null,{"$f":"IF(OR(S36=\"Missing Value\",S37=\"Missing Value\",S38=\"Missing Value\",S39=\"Missing Value\",S40=\"Missing Limit\",S41=\"Missing Limit\",S44=\"Missing Limit\"),\"MISSING VALUES IN COMMITMENTS\",IF(OR(Location!G6=\"\",Location!G6=\"ERROR\"),\"PLEASE ENTER AT LEAST ONE SECURITY LOCATION\",IF(AND(OR(ISNUMBER(SEARCH(\"Equitismart\",Calc!D12))),N12<>0),\"INT ONLY TERM MUST BE ZERO FOR EQUITISMART\",IF(AND(OR(ISNUMBER(SEARCH(\"Equitismart\",Calc!D14))),N14<>0),\"INT ONLY TERM MUST BE ZERO FOR EQUITISMART\",IF(AND(OR(ISNUMBER(SEARCH(\"Equitismart\",Calc!D16))),N16<>0),\"INT ONLY TERM MUST BE ZERO FOR EQUITISMART\",IF(AND(OR(ISNUMBER(SEARCH(\"Equitismart\",Calc!D12)),ISNUMBER(SEARCH(\"Land\",Calc!D12)),ISNUMBER(SEARCH(\"Equitismart\",Calc!D14)),ISNUMBER(SEARCH(\"Land\",Calc!D14)),ISNUMBER(SEARCH(\"Equitismart\",Calc!D14)),ISNUMBER(SEARCH(\"Land\",Calc!D14))),Calc!AF14>0.8),\"MAX ALLOWABLE LVR FOR PRODUCT 80%\",IF(AND(OR(Calc!N12<>0,Calc!N14<>0,Calc!N16<>0),Calc!AF14>0.9,NOT(D12=\"Construction\")),\"I/O LOAN - MAX ALLOWABLE LVR 90%\",IF(Calc!AF14>0.95,\"MAX ALLOWABLE LVR (including LMI) IS 95%\",IF(P12=\"\",\"PLEASE ENTER NEW LOAN DETAILS\",IF(AF12=0,\"A SECURITY VALUE MUST BE ENTERED\",IF(AA35=0,\"PLEASE ENTER LIVING EXPENSE INFORMATION\",IF(AG35=0,\"PLEASE ENTER DECLARED LIVING EXPENSES\",IF(OR(AND(G22<>0,H22<>\"Please Select\"),AND(G23<>0,H23<>\"Please Select\"),AND(G24<>0,H24<>\"Please Select\"),AND(G25<>0,H25<>\"Please Select\"),G26<>0,G27<>0,G28<>0,G29<>0),\"FIELDS COMPLETED\",\"PLEASE ENTER INCOME DETAILS FOR APPLICANT 1\")))))))))))))","v":"PLEASE ENTER AT LEAST ONE SECURITY LOCATION"}]
[null,null,"Personal Loan",null,null,null,0,null,null,0,null,null,{"$f":"'Calc Data'!F2+'Calc Data'!C4","v":0.1459},null,null,0,null,null,{"$f":"IFERROR((IF(OR(G40=FALSE,G40=0),0,IF(OR(J40=FALSE,J40=0,P40=FALSE,P40=0),\"Missing value\",MAX(PMT(M40/12,J40,-G40),P40)))*12),\"Missing Value\")","v":0},null,null,null,null,{"$f":"IFERROR(IF(X39=\"FIELDS COMPLETED\",IF(AND(AF41<=6.5,'Calc Data'!C49>=0),\"SERVICING MET\",IF(AND(AF41<=6.5,'Calc Data'!C39>0),\"SERVICING REFER\",\"SERVICING NOT MET\")),\"\"),\"\")","v":""},null,null,null,null,null,"NIS",null,{"$f":"IFERROR(IF(X39<>\"FIELDS COMPLETED\",\"\",ROUND((S30-SUM('Calc Data'!$C$37,'Calc Data'!$F$37,'Calc Data'!$I$37,'Calc Data'!$L$37)-'HEM Table'!O92-S50)/12,2)),\"\")","v":""}]
[null,null,"Car Loan",null,null,null,0,null,null,0,null,null,{"$f":"'Calc Data'!F3+'Calc Data'!C4","v":0.1004},null,null,0,null,null,0,null,null,null,null,null,null,null,null,null,null,"DTI",null,{"$f":"IFERROR(IF(X39<>\"FIELDS COMPLETED\",\"\",(X12+SUM(G36:H42)+G44+G45)/('Calc Data'!C25+'Calc Data'!F25+'Calc Data'!I25+'Calc Data'!L25)),\"\")","v":""}]
[null,null,"Lease/HP",null,null,null,0,null,null,null,null,null,null,null,null,0,null,null,{"$f":"IFERROR(IF(AND(OR(G42=FALSE,G42=0),OR(P42=TRUE,P42<>0)),\"Missing Limit\",P42*12),0)","v":0},null,null,null,null,"INDICATIVE MAXIMUM LOAN AMOUNT*",null,null,null,null,null,"*The Indicative maximum loan amount is calculated based on product type and residual P&I term of Loan 1."]
[null,null,null,null,null,null,null,null,null,null,null,null,"Rent",null,null,0,null,null,{"$f":"IFERROR(P43*12,0)","v":0}]
[null,null,"Other (inc. HECS/HELP)",null,null,null,0,null,null,null,null,null,null,null,null,0,null,null,{"$f":"IFERROR(IF(AND(OR(G44=FALSE,G44=0),OR(P44=TRUE,P44<>0)),\"Missing Limit\",P44*12),0)","v":0},null,null,null,null,{"$f":"IF(X39<>\"FIELDS COMPLETED\",\"\",('Calc Data'!C47))","v":""}]
[null,null,"Total Credit Card/BNPL Limits",null,null,null,0,null,null,null,null,null,null,null,null,null,null,null,{"$f":"IF(G45=\"\",0,G45*0.0382*12)","v":0}]
[null,null,null,null,null,null,null,null,null,null,null,null,"Monthly LMI Premium",null,null,0,null,null,{"$f":"IFERROR(P46*12,0)","v":0},null,null,null,null,"Important Information:\nThe assessment result doesn't constitute a loan offer, each deal must still be assessed by an Underwriter.\nWe will constructively assess applications at the margin with strong supporting mitigants. Should you have any doubt, contact your Gateway representative or email loans@gatewaybank.com.au to discuss in more detail."]
[null,null,null,null,null,null,null,null,null,null,null,null,null,null,null,"GBL New Loan - 1",null,null,{"$f":"IF($P$12=\"\",\"\",IF(ISNUMBER(IF($X$9=\"Yes\",MAX('Calc Data'!$C$5,$M$12+'Calc Data'!$C$4)/12*$H$12,PMT(MAX('Calc Data'!$C$5,$M$12+'Calc Data'!$C$4)/12,($K$12-$N$12),-$H$12)))=FALSE,\"\",IF(AND($X$9=\"Yes\",$N$12<>0), MAX('Calc Data'!$C$5,$M$12+'Calc Data'!$C$4)/12*$H$12,PMT(MAX('Calc Data'!$C$5,$M$12+'Calc Data'!$C$4)/12,($K$12-$N$12),-$H$12)))*12)","v":""}]
[null,null,null,null,null,null,null,null,null,null,null,null,null,null,null,"GBL New Loan - 2",null,null,{"$f":"IF($P$14=\"\",\"\",IF(ISNUMBER(IF($X$9=\"Yes\",MAX('Calc Data'!$C$5,$M$14+'Calc Data'!$C$4)/12*$H$14,PMT(MAX('Calc Data'!$C$5,$M$14+'Calc Data'!$C$4)/12,($K$14-$N$14),-$H$14)))=FALSE,\"\",IF(AND($X$9=\"Yes\",$N$14<>0), MAX('Calc Data'!$C$5,$M$14+'Calc Data'!$C$4)/12*$H$14,PMT(MAX('Calc Data'!$C$5,$M$14+'Calc Data'!$C$4)/12,($K$14-$N$14),-$H$14)))*12)","v":""}]
[null,null,null,null,null,null,null,null,null,null,null,null,null,null,null,"GBL New Loan - 3",null,null,{"$f":"IF($P$16=\"\",\"\",IF(ISNUMBER(IF($X$9=\"Yes\",MAX('Calc Data'!$C$5,$M$16+'Calc Data'!$C$4)/12*$H$16,PMT(MAX('Calc Data'!$C$5,$M$16+'Calc Data'!$C$4)/12,($K$16-$N$16),-$H$16)))=FALSE,\"\",IF(AND($X$9=\"Yes\",$N$16<>0), MAX('Calc Data'!$C$5,$M$16+'Calc Data'!$C$4)/12*$H$16,PMT(MAX('Calc Data'!$C$5,$M$16+'Calc Data'!$C$4)/12,($K$16-$N$16),-$H$16)))*12)","v":""}]
[null,null,null,null,null,null,null,null,null,null,null,null,null,null,null,"Total Annual Repayments",null,null,{"$f":"SUM(S36:T49)","v":0}]
[]
[null,null,null,null,null,null,null,null,null,null,null,null,null,null,null,null,null,null,null,null,null,null,null,null,null,null,null,null,null,null,null,{"$f":"NOW()","v":"2024-04-03T15:05:08.790"}]

{"sheet":"Location","index":1,"n_rows":14,"n_cols":9,"rows_kept":14,"cut":false,"hidden":false,"merged":[[10,4,10,6],[11,4,11,6],[12,4,12,6]]}
[]
[null,null,"LOCATION CATEGORY TOOL "]
[]
[]
[null,null,null,null,"Step1: Select property type","Step 2: Enter postcode","Category",null,"Additional information"]
[null,null,"Security 1",null,null,null,{"$f":"IFERROR(IF(OR(E6=0,F6=0),\"\",INDEX(Report!$D$2:$D$5000,MATCH(1,(F6=Report!$A$2:$A$5000)*(E6=Report!$B$2:$B$5000),0))),\"ERROR\")","v":""},null,{"$f":"IF(G6=\"\",\"\",IF(G6=1,\"Standard policy applies\", IF(G6=2,\"Maximum LVR of 80%\",IF(G6=3,\"Maximum LVR of 70%\",\"Location outside of policy\"))))","v":""}]
[null,null,"Security 2",null,null,null,{"$f":"IFERROR(IF(OR(E7=0,F7=0),\"\",INDEX(Report!$D$2:$D$5000,MATCH(1,(F7=Report!$A$2:$A$5000)*(E7=Report!$B$2:$B$5000),0))),\"ERROR\")","v":""},null,{"$f":"IF(G7=\"\",\"\",IF(G7=1,\"Standard policy applies\", IF(G7=2,\"Maximum LVR of 80%\",IF(G7=3,\"Maximum LVR of 70%\",\"Location outside of policy\"))))","v":""}]
[null,null,"Security 3",null,null,null,{"$f":"IFERROR(IF(OR(E8=0,F8=0),\"\",INDEX(Report!$D$2:$D$5000,MATCH(1,(F8=Report!$A$2:$A$5000)*(E8=Report!$B$2:$B$5000),0))),\"ERROR\")","v":""},null,""]
[null,null,"Security 4",null,null,null,{"$f":"IFERROR(IF(OR(E9=0,F9=0),\"\",INDEX(Report!$D$2:$D$5000,MATCH(1,(F9=Report!$A$2:$A$5000)*(E9=Report!$B$2:$B$5000),0))),\"ERROR\")","v":""},null,""]
[]
[null,null,"Notes:",null,"* House: torrens title property"]
[]
[null,null,null,null,"* Unit: strata, company, community or another title that denotes a property within"]
[null,null,null,null,"a larger development"]

{"sheet":"Report","index":2,"n_rows":4863,"n_cols":8,"rows_kept":4863,"cut":false,"hidden":true,"merged":[]}
["structure_code","property_type","state_name","risk_category",null,null,"Version","2024-01-01"]
[800,"House","Northern Territory",3]
[800,"Unit","Northern Territory",3]
[810,"House","Northern Territory",2]
[810,"Unit","Northern Territory",3]
[812,"House","Northern Territory",2]
[812,"Unit","Northern Territory",3]
[820,"House","Northern Territory",2]
[820,"Unit","Northern Territory",3]
[822,"House","Northern Territory",2]
[822,"Unit","Northern Territory",3]
[828,"House","Northern Territory",2]
[828,"Unit","Northern Territory",3]
[829,"House","Northern Territory",4]
[829,"Unit","Northern Territory",4]
[830,"House","Northern Territory",2]
[830,"Unit","Northern Territory",3]
[832,"House","Northern Territory",2]
[832,"Unit","Northern Territory",3]
[834,"House","Northern Territory",2]
[834,"Unit","Northern Territory",4]
[835,"House","Northern Territory",2]
[835,"Unit","Northern Territory",4]
[836,"House","Northern Territory",2]
[836,"Unit","Northern Territory",4]
[837,"House","Northern Territory",2]
[838,"House","Northern Territory",2]
[838,"Unit","Northern Territory",4]
[839,"House","Northern Territory",3]
[839,"Unit","Northern Territory",3]
[840,"House","Northern Territory",4]
[841,"House","Northern Territory",3]
[845,"House","Northern Territory",4]
[845,"Unit","Northern Territory",4]
[846,"House","Northern Territory",3]
[846,"Unit","Northern Territory",4]
[847,"House","Northern Territory",4]
[847,"Unit","Northern Territory",4]
[850,"House","Northern Territory",4]
[850,"Unit","Northern Territory",4]
[852,"House","Northern Territory",4]
[852,"Unit","Northern Territory",4]
[853,"House","Northern Territory",4]
[853,"Unit","Northern Territory",4]
[854,"House","Northern Territory",4]
[854,"Unit","Northern Territory",4]
[860,"House","Northern Territory",4]
[860,"Unit","Northern Territory",4]
[862,"House","Northern Territory",4]
[862,"Unit","Northern Territory",4]
[870,"House","Northern Territory",4]
[870,"Unit","Northern Territory",4]
[872,"House","Northern Territory",4]
[872,"Unit","Northern Territory",4]
[873,"House","Northern Territory",3]
[873,"Unit","Northern Territory",4]
[874,"House","Northern Territory",4]
[874,"Unit","Northern Territory",4]
[875,"House","Northern Territory",4]
[875,"Unit","Northern Territory",4]
[880,"House","Northern Territory",4]
[880,"Unit","Northern Territory",4]
[885,"House","Northern Territory",4]
[885,"Unit","Northern Territory",4]
[886,"House","Northern Territory",4]
[886,"Unit","Northern Territory",4]
[2000,"House","New South Wales",2]
[2000,"Unit","New South Wales",2]
[2007,"House","New South Wales",1]
[2007,"Unit","New South Wales",2]
[2008,"House","New South Wales",1]
[2008,"Unit","New South Wales",2]
[2009,"House","New South Wales",2]
[2009,"Unit","New South Wales",2]
[2010,"House","New South Wales",1]
[2010,"Unit","New South Wales",2]
[2011,"House","New South Wales",1]
[2011,"Unit","New South Wales",1]
[2015,"House","New South Wales",1]
[2015,"Unit","New South Wales",1]
[2016,"House","New South Wales",1]
[2016,"Unit","New South Wales",2]
[2017,"House","New South Wales",1]
[2017,"Unit","New South Wales",2]
[2018,"House","New South Wales",1]
[2018,"Unit","New South Wales",1]
[2019,"House","New South Wales",1]
[2019,"Unit","New South Wales",2]
[2020,"House","New South Wales",1]
[2020,"Unit","New South Wales",2]
[2021,"House","New South Wales",1]
[2021,"Unit","New South Wales",1]
[2022,"House","New South Wales",1]
[2022,"Unit","New South Wales",2]
[2023,"House","New South Wales",1]
[2023,"Unit","New South Wales",2]
[2024,"House","New South Wales",1]
[2024,"Unit","New South Wales",2]
[2025,"House","New South Wales",1]
[2025,"Unit","New South Wales",2]
[2026,"House","New South Wales",1]
[2026,"Unit","New South Wales",2]
[2027,"House","New South Wales",1]
[2027,"Unit","New South Wales",2]
[2028,"House","New South Wales",1]
[2028,"Unit","New South Wales",2]
[2029,"House","New South Wales",1]
[2029,"Unit","New South Wales",2]
[2030,"House","New South Wales",1]
[2030,"Unit","New South Wales",2]
[2031,"House","New South Wales",1]
[2031,"Unit","New South Wales",2]
[2032,"House","New South Wales",1]
[2032,"Unit","New South Wales",2]
[2033,"House","New South Wales",1]
[2033,"Unit","New South Wales",2]
[2034,"House","New South Wales",1]
[2034,"Unit","New South Wales",2]
[2035,"House","New South Wales",1]
[2035,"Unit","New South Wales",2]
[2036,"House","New South Wales",1]
[2036,"Unit","New South Wales",2]
[2037,"House","New South Wales",1]
[2037,"Unit","New South Wales",2]
[2038,"House","New South Wales",1]
[2038,"Unit","New South Wales",2]
[2039,"House","New South Wales",1]
[2039,"Unit","New South Wales",2]
[2040,"House","New South Wales",1]
[2040,"Unit","New South Wales",1]
[2041,"House","New South Wales",1]
[2041,"Unit","New South Wales",2]
[2042,"House","New South Wales",1]
[2042,"Unit","New South Wales",2]
[2043,"House","New South Wales",1]
[2043,"Unit","New South Wales",2]
[2044,"House","New South Wales",1]
[2044,"Unit","New South Wales",2]
[2045,"House","New South Wales",1]
[2045,"Unit","New South Wales",2]
[2046,"House","New South Wales",1]
[2046,"Unit","New South Wales",2]
[2047,"House","New South Wales",1]
[2047,"Unit","New South Wales",2]
[2048,"House","New South Wales",1]
[2048,"Unit","New South Wales",2]
[2049,"House","New South Wales",1]
[2049,"Unit","New South Wales",2]
[2050,"House","New South Wales",1]
[2050,"Unit","New South Wales",2]
[2060,"House","New South Wales",1]
[2060,"Unit","New South Wales",2]
[2061,"House","New South Wales",1]
[2061,"Unit","New South Wales",2]
[2062,"House","New South Wales",1]
[2062,"Unit","New South Wales",2]
[2063,"House","New South Wales",1]
[2063,"Unit","New South Wales",1]
[2064,"House","New South Wales",1]
[2064,"Unit","New South Wales",1]
[2065,"House","New South Wales",1]
[2065,"Unit","New South Wales",2]
[2066,"House","New South Wales",1]
[2066,"Unit","New South Wales",2]
[2067,"House","New South Wales",1]
[2067,"Unit","New South Wales",2]
[2068,"House","New South Wales",1]
[2068,"Unit","New South Wales",2]
[2069,"House","New South Wales",1]
[2069,"Unit","New South Wales",2]
[2070,"House","New South Wales",1]
[2070,"Unit","New South Wales",2]
[2071,"House","New South Wales",1]
[2071,"Unit","New South Wales",2]
[2072,"House","New South Wales",1]
[2072,"Unit","New South Wales",2]
[2073,"House","New South Wales",1]
[2073,"Unit","New South Wales",2]
[2074,"House","New South Wales",1]
[2074,"Unit","New South Wales",1]
[2075,"House","New South Wales",1]
[2075,"Unit","New South Wales",1]
[2076,"House","New South Wales",1]
[2076,"Unit","New South Wales",2]
[2077,"House","New South Wales",1]
[2077,"Unit","New South Wales",2]
[2079,"House","New South Wales",1]
[2079,"Unit","New South Wales",2]
[2080,"House","New South Wales",1]
[2080,"Unit","New South Wales",3]
[2081,"House","New South Wales",1]
[2081,"Unit","New South Wales",3]
[2082,"House","New South Wales",1]
[2082,"Unit","New South Wales",2]
[2083,"House","New South Wales",2]
[2083,"Unit","New South Wales",3]
[2084,"House","New South Wales",1]
[2084,"Unit","New South Wales",3]
[2085,"House","New South Wales",1]
[2085,"Unit","New South Wales",2]
[2086,"House","New South Wales",1]
[2086,"Unit","New South Wales",1]
[2087,"House","New South Wales",1]
[2087,"Unit","New South Wales",2]
[2088,"House","New South Wales",1]
[2088,"Unit","New South Wales",2]
[2089,"House","New South Wales",1]
[2089,"Unit","New South Wales",2]
[2090,"House","New South Wales",1]
[2090,"Unit","New South Wales",2]
[2092,"House","New South Wales",1]
[2092,"Unit","New South Wales",2]
[2093,"House","New South Wales",1]
[2093,"Unit","New South Wales",1]
[2094,"House","New South Wales",1]
[2094,"Unit","New South Wales",2]
[2095,"House","New South Wales",1]
[2095,"Unit","New South Wales",2]
[2096,"House","New South Wales",1]
[2096,"Unit","New South Wales",2]
[2097,"House","New South Wales",1]
[2097,"Unit","New South Wales",2]
[2099,"House","New South Wales",1]
[2099,"Unit","New South Wales",2]
[2100,"House","New South Wales",1]
[2100,"Unit","New South Wales",2]
[2101,"House","New South Wales",1]
[2101,"Unit","New South Wales",2]
[2102,"House","New South Wales",1]
[2102,"Unit","New South Wales",2]
[2103,"House","New South Wales",1]
[2103,"Unit","New South Wales",2]
[2104,"House","New South Wales",1]
[2104,"Unit","New South Wales",2]
[2105,"House","New South Wales",1]
[2105,"Unit","New South Wales",2]
[2106,"House","New South Wales",1]
[2106,"Unit","New South Wales",2]
[2107,"House","New South Wales",1]
[2107,"Unit","New South Wales",2]
[2108,"House","New South Wales",1]
[2108,"Unit","New South Wales",1]
[2110,"House","New South Wales",1]
[2110,"Unit","New South Wales",2]
[2111,"House","New South Wales",1]
[2111,"Unit","New South Wales",2]
[2112,"House","New South Wales",1]
[2112,"Unit","New South Wales",2]
[2113,"House","New South Wales",1]
[2113,"Unit","New South Wales",2]
[2114,"House","New South Wales",1]
[2114,"Unit","New South Wales",2]
[2115,"House","New South Wales",1]
[2115,"Unit","New South Wales",2]
[2116,"House","New South Wales",1]
[2116,"Unit","New South Wales",2]
[2117,"House","New South Wales",1]
[2117,"Unit","New South Wales",2]
[2118,"House","New South Wales",1]
[2118,"Unit","New South Wales",2]
[2119,"House","New South Wales",1]
[2119,"Unit","New South Wales",2]
[2120,"House","New South Wales",1]
[2120,"Unit","New South Wales",2]
[2121,"House","New South Wales",1]
[2121,"Unit","New South Wales",2]
[2122,"House","New South Wales",1]
[2122,"Unit","New South Wales",1]
[2125,"House","New South Wales",1]
[2125,"Unit","New South Wales",2]
[2126,"House","New South Wales",1]
[2126,"Unit","New South Wales",1]
[2127,"House","New South Wales",1]
[2127,"Unit","New South Wales",2]
[2128,"House","New South Wales",2]
[2128,"Unit","New South Wales",2]
[2130,"House","New South Wales",1]
[2130,"Unit","New South Wales",1]
[2131,"House","New South Wales",1]
[2131,"Unit","New South Wales",1]
[2132,"House","New South Wales",1]
[2132,"Unit","New South Wales",2]
[2133,"House","New South Wales",1]
[2133,"Unit","New South Wales",1]
[2134,"House","New South Wales",1]
[2134,"Unit","New South Wales",2]
[2135,"House","New South Wales",1]
[2135,"Unit","New South Wales",2]
[2136,"House","New South Wales",1]
[2136,"Unit","New South Wales",1]
[2137,"House","New South Wales",1]
[2137,"Unit","New South Wales",2]
[2138,"House","New South Wales",1]
[2138,"Unit","New South Wales",2]
[2140,"House","New South Wales",1]
[2140,"Unit","New South Wales",2]
[2141,"House","New South Wales",1]
[2141,"Unit","New South Wales",2]
[2142,"House","New South Wales",1]
[2142,"Unit","New South Wales",2]
[2143,"House","New South Wales",1]
[2143,"Unit","New South Wales",1]
[2144,"House","New South Wales",1]
[2144,"Unit","New South Wales",2]
[2145,"House","New South Wales",1]
[2145,"Unit","New South Wales",2]
[2146,"House","New South Wales",1]
[2146,"Unit","New South Wales",2]
[2147,"House","New South Wales",1]
[2147,"Unit","New South Wales",2]
[2148,"House","New South Wales",1]
[2148,"Unit","New South Wales",2]
[2150,"House","New South Wales",1]
[2150,"Unit","New South Wales",2]
[2151,"House","New South Wales",1]
[2151,"Unit","New South Wales",1]
[2152,"House","New South Wales",1]
[2152,"Unit","New South Wales",2]
[2153,"House","New South Wales",1]
[2153,"Unit","New South Wales",2]
[2154,"House","New South Wales",1]
[2154,"Unit","New South Wales",2]
[2155,"House","New South Wales",1]
[2155,"Unit","New South Wales",2]
[2156,"House","New South Wales",1]
[2156,"Unit","New South Wales",3]
[2157,"House","New South Wales",1]
[2157,"Unit","New South Wales",3]
[2158,"House","New South Wales",1]
[2158,"Unit","New South Wales",2]
[2159,"House","New South Wales",2]
[2159,"Unit","New South Wales",2]
[2160,"House","New South Wales",1]
[2160,"Unit","New South Wales",2]
[2161,"House","New South Wales",1]
[2161,"Unit","New South Wales",2]
[2162,"House","New South Wales",1]
[2162,"Unit","New South Wales",2]
[2163,"House","New South Wales",1]
[2163,"Unit","New South Wales",2]
[2164,"House","New South Wales",1]
[2164,"Unit","New South Wales",1]
[2165,"House","New South Wales",1]
[2165,"Unit","New South Wales",2]
[2166,"House","New South Wales",1]
[2166,"Unit","New South Wales",2]
[2167,"House","New South Wales",1]
[2167,"Unit","New South Wales",1]
[2168,"House","New South Wales",1]
[2168,"Unit","New South Wales",2]
[2170,"House","New South Wales",1]
[2170,"Unit","New South Wales",2]
[2171,"House","New South Wales",1]
[2171,"Unit","New South Wales",2]
[2172,"House","New South Wales",1]
[2172,"Unit","New South Wales",3]
[2173,"House","New South Wales",1]
[2173,"Unit","New South Wales",2]
[2174,"House","New South Wales",2]
[2174,"Unit","New South Wales",2]
[2175,"House","New South Wales",1]
[2175,"Unit","New South Wales",3]
[2176,"House","New South Wales",1]
[2176,"Unit","New South Wales",2]
[2177,"House","New South Wales",1]
[2177,"Unit","New South Wales",2]
[2178,"House","New South Wales",2]
[2178,"Unit","New South Wales",3]
[2179,"House","New South Wales",2]
[2179,"Unit","New South Wales",3]
[2190,"House","New South Wales",1]
[2190,"Unit","New South Wales",2]
[2191,"House","New South Wales",1]
[2191,"Unit","New South Wales",2]
[2192,"House","New South Wales",1]
[2192,"Unit","New South Wales",2]
[2193,"House","New South Wales",1]
[2193,"Unit","New South Wales",2]
[2194,"House","New South Wales",1]
[2194,"Unit","New South Wales",1]
[2195,"House","New South Wales",1]
[2195,"Unit","New South Wales",1]
[2196,"House","New South Wales",1]
[2196,"Unit","New South Wales",2]
[2197,"House","New South Wales",1]
[2197,"Unit","New South Wales",2]
[2198,"House","New South Wales",1]
[2198,"Unit","New South Wales",2]
[2199,"House","New South Wales",1]
[2199,"Unit","New South Wales",1]
[2200,"House","New South Wales",1]
[2200,"Unit","New South Wales",2]
[2203,"House","New South Wales",1]
[2203,"Unit","New South Wales",1]
[2204,"House","New South Wales",1]
[2204,"Unit","New South Wales",2]
[2205,"House","New South Wales",1]
[2205,"Unit","New South Wales",2]
[2206,"House","New South Wales",1]
[2206,"Unit","New South Wales",1]
[2207,"House","New South Wales",1]
[2207,"Unit","New South Wales",2]
[2208,"House","New South Wales",1]
[2208,"Unit","New South Wales",2]
[2209,"House","New South Wales",1]
[2209,"Unit","New South Wales",2]
[2210,"House","New South Wales",1]
[2210,"Unit","New South Wales",2]
[2211,"House","New South Wales",1]
[2211,"Unit","New South Wales",2]
[2212,"House","New South Wales",1]
[2212,"Unit","New South Wales",2]
[2213,"House","New South Wales",1]
[2213,"Unit","New South Wales",2]
[2214,"House","New South Wales",1]
[2214,"Unit","New South Wales",3]
[2216,"House","New South Wales",1]
[2216,"Unit","New South Wales",2]
[2217,"House","New South Wales",1]
[2217,"Unit","New South Wales",1]
[2218,"House","New South Wales",1]
[2218,"Unit","New South Wales",1]
[2219,"House","New South Wales",1]
[2219,"Unit","New South Wales",2]
[2220,"House","New South Wales",1]
[2220,"Unit","New South Wales",2]
[2221,"House","New South Wales",1]
[2221,"Unit","New South Wales",1]
[2222,"House","New South Wales",1]
[2222,"Unit","New South Wales",2]
[2223,"House","New South Wales",1]
[2223,"Unit","New South Wales",1]
[2224,"House","New South Wales",1]
[2224,"Unit","New South Wales",2]
[2225,"House","New South Wales",1]
[2225,"Unit","New South Wales",2]
[2226,"House","New South Wales",1]
[2226,"Unit","New South Wales",1]
[2227,"House","New South Wales",1]
[2227,"Unit","New South Wales",2]
[2228,"House","New South Wales",1]
[2228,"Unit","New South Wales",2]
[2229,"House","New South Wales",1]
[2229,"Unit","New South Wales",2]
[2230,"House","New South Wales",1]
[2230,"Unit","New South Wales",2]
[2231,"House","New South Wales",1]
[2231,"Unit","New South Wales",2]
[2232,"House","New South Wales",1]
[2232,"Unit","New South Wales",2]
[2233,"House","New South Wales",1]
[2233,"Unit","New South Wales",2]
[2234,"House","New South Wales",1]
[2234,"Unit","New South Wales",1]
[2250,"House","New South Wales",1]
[2250,"Unit","New South Wales",2]
[2251,"House","New South Wales",1]
[2251,"Unit","New South Wales",2]
[2256,"House","New South Wales",1]
[2256,"Unit","New South Wales",2]
[2257,"House","New South Wales",1]
[2257,"Unit","New South Wales",2]
[2258,"House","New South Wales",1]
[2258,"Unit","New South Wales",2]
[2259,"House","New South Wales",1]
[2259,"Unit","New South Wales",2]
[2260,"House","New South Wales",1]
[2260,"Unit","New South Wales",2]
[2261,"House","New South Wales",1]
[2261,"Unit","New South Wales",2]
[2262,"House","New South Wales",1]
[2262,"Unit","New South Wales",2]
[2263,"House","New South Wales",1]
[2263,"Unit","New South Wales",2]
[2264,"House","New South Wales",1]
[2264,"Unit","New South Wales",2]
[2265,"House","New South Wales",1]
[2265,"Unit","New South Wales",3]
[2267,"House","New South Wales",1]
[2267,"Unit","New South Wales",2]
[2278,"House","New South Wales",1]
[2278,"Unit","New South Wales",3]
[2280,"House","New South Wales",1]
[2280,"Unit","New South Wales",2]
[2281,"House","New South Wales",1]
[2281,"Unit","New South Wales",2]
[2282,"House","New South Wales",1]
[2282,"Unit","New South Wales",1]
[2283,"House","New South Wales",1]
[2283,"Unit","New South Wales",2]
[2284,"House","New South Wales",1]
[2284,"Unit","New South Wales",2]
[2285,"House","New South Wales",1]
[2285,"Unit","New South Wales",2]
[2286,"House","New South Wales",1]
[2286,"Unit","New South Wales",3]
[2287,"House","New South Wales",1]
[2287,"Unit","New South Wales",1]
[2289,"House","New South Wales",1]
[2289,"Unit","New South Wales",2]
[2290,"House","New South Wales",1]
[2290,"Unit","New South Wales",2]
[2291,"House","New South Wales",1]
[2291,"Unit","New South Wales",2]
[2292,"House","New South Wales",1]
[2292,"Unit","New South Wales",2]
[2293,"House","New South Wales",1]
[2293,"Unit","New South Wales",2]
[2294,"House","New South Wales",1]
[2294,"Unit","New South Wales",2]
[2295,"House","New South Wales",1]
[2295,"Unit","New South Wales",2]
[2296,"House","New South Wales",1]
[2296,"Unit","New South Wales",2]
[2297,"House","New South Wales",1]
[2297,"Unit","New South Wales",3]
[2298,"House","New South Wales",1]
[2298,"Unit","New South Wales",2]
[2299,"House","New South Wales",1]
[2299,"Unit","New South Wales",2]
[2300,"House","New South Wales",1]
[2300,"Unit","New South Wales",2]
[2302,"House","New South Wales",3]
[2302,"Unit","New South Wales",2]
[2303,"House","New South Wales",1]
[2303,"Unit","New South Wales",2]
[2304,"House","New South Wales",1]
[2304,"Unit","New South Wales",2]
[2305,"House","New South Wales",1]
[2305,"Unit","New South Wales",2]
[2306,"House","New South Wales",1]
[2306,"Unit","New South Wales",3]
[2307,"House","New South Wales",1]
[2307,"Unit","New South Wales",2]
[2308,"House","New South Wales",3]
[2311,"House","New South Wales",1]
[2311,"Unit","New South Wales",3]
[2312,"House","New South Wales",2]
[2312,"Unit","New South Wales",3]
[2315,"House","New South Wales",2]
[2315,"Unit","New South Wales",2]
[2316,"House","New South Wales",1]
[2316,"Unit","New South Wales",2]
[2317,"House","New South Wales",1]
[2317,"Unit","New South Wales",2]
[2318,"House","New South Wales",1]
[2318,"Unit","New South Wales",2]
[2319,"House","New South Wales",1]
[2319,"Unit","New South Wales",1]
[2320,"House","New South Wales",1]
[2320,"Unit","New South Wales",2]
[2321,"House","New South Wales",1]
[2321,"Unit","New South Wales",2]
[2322,"House","New South Wales",1]
[2322,"Unit","New South Wales",2]
[2323,"House","New South Wales",1]
[2323,"Unit","New South Wales",2]
[2324,"House","New South Wales",1]
[2324,"Unit","New South Wales",2]
[2325,"House","New South Wales",1]
[2325,"Unit","New South Wales",2]
[2326,"House","New South Wales",1]
[2326,"Unit","New South Wales",2]
[2327,"House","New South Wales",1]
[2327,"Unit","New South Wales",2]
[2328,"House","New South Wales",1]
[2328,"Unit","New South Wales",3]
[2329,"House","New South Wales",2]
[2329,"Unit","New South Wales",4]
[2330,"House","New South Wales",1]
[2330,"Unit","New South Wales",1]
[2331,"House","New South Wales",3]
[2333,"House","New South Wales",1]
[2333,"Unit","New South Wales",2]
[2334,"House","New South Wales",1]
[2334,"Unit","New South Wales",3]
[2335,"House","New South Wales",1]
[2335,"Unit","New South Wales",2]
[2336,"House","New South Wales",2]
[2336,"Unit","New South Wales",2]
[2337,"House","New South Wales",1]
[2337,"Unit","New South Wales",2]
[2338,"House","New South Wales",2]
[2338,"Unit","New South Wales",4]
[2339,"House","New South Wales",3]
[2339,"Unit","New South Wales",4]
[2340,"House","New South Wales",1]
[2340,"Unit","New South Wales",2]
[2341,"House","New South Wales",2]
[2341,"Unit","New South Wales",3]
[2342,"House","New South Wales",3]
[2343,"House","New South Wales",3]
[2343,"Unit","New South Wales",3]
[2344,"House","New South Wales",1]
[2345,"House","New South Wales",2]
[2345,"Unit","New South Wales",4]
[2346,"House","New South Wales",3]
[2346,"Unit","New South Wales",4]
[2347,"House","New South Wales",3]
[2347,"Unit","New South Wales",4]
[2350,"House","New South Wales",1]
[2350,"Unit","New South Wales",2]
[2352,"House","New South Wales",1]
[2352,"Unit","New South Wales",3]
[2353,"House","New South Wales",2]
[2353,"Unit","New South Wales",3]
[2354,"House","New South Wales",2]
[2354,"Unit","New South Wales",4]
[2355,"House","New South Wales",3]
[2355,"Unit","New South Wales",4]
[2356,"House","New South Wales",4]
[2357,"House","New South Wales",3]
[2357,"Unit","New South Wales",4]
[2358,"House","New South Wales",1]
[2358,"Unit","New South Wales",3]
[2359,"House","New South Wales",3]
[2359,"Unit","New South Wales",4]
[2360,"House","New South Wales",3]
[2360,"Unit","New South Wales",3]
[2361,"House","New South Wales",3]
[2361,"Unit","New South Wales",4]
[2365,"House","New South Wales",3]
[2365,"Unit","New South Wales",3]
[2369,"House","New South Wales",3]
[2369,"Unit","New South Wales",4]
[2370,"House","New South Wales",3]
[2370,"Unit","New South Wales",4]
[2371,"House","New South Wales",3]
[2371,"Unit","New South Wales",4]
[2372,"House","New South Wales",2]
[2372,"Unit","New South Wales",4]
[2379,"House","New South Wales",3]
[2380,"House","New South Wales",2]
[2380,"Unit","New South Wales",3]
[2381,"House","New South Wales",3]
[2381,"Unit","New South Wales",4]
[2382,"House","New South Wales",3]
[2382,"Unit","New South Wales",4]
[2386,"House","New South Wales",4]
[2387,"House","New South Wales",4]
[2388,"House","New South Wales",3]
[2388,"Unit","New South Wales",4]
[2390,"House","New South Wales",3]
[2390,"Unit","New South Wales",3]
[2395,"House","New South Wales",3]
[2395,"Unit","New South Wales",4]
[2396,"House","New South Wales",3]
[2396,"Unit","New South Wales",4]
[2397,"House","New South Wales",4]
[2398,"House","New South Wales",4]
[2399,"House","New South Wales",3]
[2399,"Unit","New South Wales",4]
[2400,"House","New South Wales",3]
[2400,"Unit","New South Wales",3]
[2401,"House","New South Wales",4]
[2402,"House","New South Wales",2]
[2402,"Unit","New South Wales",4]
[2403,"House","New South Wales",3]
[2403,"Unit","New South Wales",4]
[2404,"House","New South Wales",3]
[2404,"Unit","New South Wales",4]
[2405,"House","New South Wales",4]
[2405,"Unit","New South Wales",4]
[2408,"House","New South Wales",4]
[2409,"House","New South Wales",3]
[2409,"Unit","New South Wales",4]
[2410,"House","New South Wales",4]
[2411,"House","New South Wales",4]
[2411,"Unit","New South Wales",4]
[2415,"House","New South Wales",2]
[2415,"Unit","New South Wales",3]
[2420,"House","New South Wales",1]
[2420,"Unit","New South Wales",3]
[2421,"House","New South Wales",2]
[2421,"Unit","New South Wales",3]
[2422,"House","New South Wales",3]
[2422,"Unit","New South Wales",4]
[2423,"House","New South Wales",3]
[2423,"Unit","New South Wales",4]
[2424,"House","New South Wales",4]
[2424,"Unit","New South Wales",4]
[2425,"House","New South Wales",3]
[2425,"Unit","New South Wales",4]
[2426,"House","New South Wales",4]
[2426,"Unit","New South Wales",4]
[2427,"House","New South Wales",4]
[2427,"Unit","New South Wales",4]
[2428,"House","New South Wales",3]
[2428,"Unit","New South Wales",4]
[2429,"House","New South Wales",1]
[2429,"Unit","New South Wales",2]
[2430,"House","New South Wales",1]
[2430,"Unit","New South Wales",2]
[2431,"House","New South Wales",3]
[2431,"Unit","New South Wales",3]
[2439,"House","New South Wales",1]
[2439,"Unit","New South Wales",3]
[2440,"House","New South Wales",2]
[2440,"Unit","New South Wales",3]
[2441,"House","New South Wales",1]
[2441,"Unit","New South Wales",3]
[2443,"House","New South Wales",1]
[2443,"Unit","New South Wales",2]
[2444,"House","New South Wales",1]
[2444,"Unit","New South Wales",2]
[2445,"House","New South Wales",1]
[2445,"Unit","New South Wales",2]
[2446,"House","New South Wales",1]
[2446,"Unit","New South Wales",2]
[2447,"House","New South Wales",2]
[2447,"Unit","New South Wales",3]
[2448,"House","New South Wales",3]
[2448,"Unit","New South Wales",3]
[2449,"House","New South Wales",2]
[2449,"Unit","New South Wales",4]
[2450,"House","New South Wales",1]
[2450,"Unit","New South Wales",2]
[2452,"House","New South Wales",1]
[2452,"Unit","New South Wales",2]
[2453,"House","New South Wales",2]
[2453,"Unit","New South Wales",4]
[2454,"House","New South Wales",1]
[2454,"Unit","New South Wales",2]
[2455,"House","New South Wales",2]
[2455,"Unit","New South Wales",3]
[2456,"House","New South Wales",1]
[2456,"Unit","New South Wales",2]
[2460,"House","New South Wales",1]
[2460,"Unit","New South Wales",2]
[2462,"House","New South Wales",1]
[2462,"Unit","New South Wales",3]
[2463,"House","New South Wales",1]
[2463,"Unit","New South Wales",2]
[2464,"House","New South Wales",1]
[2464,"Unit","New South Wales",2]
[2465,"House","New South Wales",2]
[2465,"Unit","New South Wales",3]
[2466,"House","New South Wales",2]
[2466,"Unit","New South Wales",2]
[2469,"House","New South Wales",1]
[2469,"Unit","New South Wales",2]
[2470,"House","New South Wales",2]
[2470,"Unit","New South Wales",2]
[2471,"House","New South Wales",2]
[2471,"Unit","New South Wales",2]
[2472,"House","New South Wales",1]
[2472,"Unit","New South Wales",3]
[2473,"House","New South Wales",2]
[2473,"Unit","New South Wales",2]
[2474,"House","New South Wales",2]
[2474,"Unit","New South Wales",3]
[2475,"House","New South Wales",3]
[2476,"House","New South Wales",3]
[2476,"Unit","New South Wales",4]
[2477,"House","New South Wales",1]
[2477,"Unit","New South Wales",2]
[2478,"House","New South Wales",1]
[2478,"Unit","New South Wales",2]
[2479,"House","New South Wales",1]
[2479,"Unit","New South Wales",3]
[2480,"House","New South Wales",1]
[2480,"Unit","New South Wales",2]
[2481,"House","New South Wales",1]
[2481,"Unit","New South Wales",2]
[2482,"House","New South Wales",1]
[2482,"Unit","New South Wales",2]
[2483,"House","New South Wales",1]
[2483,"Unit","New South Wales",2]
[2484,"House","New South Wales",1]
[2484,"Unit","New South Wales",2]
[2485,"House","New South Wales",1]
[2485,"Unit","New South Wales",1]
[2486,"House","New South Wales",1]
[2486,"Unit","New South Wales",1]
[2487,"House","New South Wales",1]
[2487,"Unit","New South Wales",2]
[2488,"House","New South Wales",1]
[2488,"Unit","New South Wales",2]
[2489,"House","New South Wales",1]
[2489,"Unit","New South Wales",2]
[2490,"House","New South Wales",1]
[2500,"House","New South Wales",1]
[2500,"Unit","New South Wales",2]
[2502,"House","New South Wales",1]
[2502,"Unit","New South Wales",2]
[2505,"House","New South Wales",1]
[2505,"Unit","New South Wales",2]
[2506,"House","New South Wales",1]
[2506,"Unit","New South Wales",2]
[2508,"House","New South Wales",1]
[2508,"Unit","New South Wales",1]
[2515,"House","New South Wales",1]
[2515,"Unit","New South Wales",2]
[2516,"House","New South Wales",1]
[2516,"Unit","New South Wales",2]
[2517,"House","New South Wales",1]
[2517,"Unit","New South Wales",2]
[2518,"House","New South Wales",1]
[2518,"Unit","New South Wales",2]
[2519,"House","New South Wales",1]
[2519,"Unit","New South Wales",1]
[2525,"House","New South Wales",1]
[2525,"Unit","New South Wales",2]
[2526,"House","New South Wales",1]
[2526,"Unit","New South Wales",2]
[2527,"House","New South Wales",1]
[2527,"Unit","New South Wales",2]
[2528,"House","New South Wales",1]
[2528,"Unit","New South Wales",2]
[2529,"House","New South Wales",1]
[2529,"Unit","New South Wales",2]
[2530,"House","New South Wales",1]
[2530,"Unit","New South Wales",2]
[2533,"House","New South Wales",1]
[2533,"Unit","New South Wales",2]
[2534,"House","New South Wales",1]
[2534,"Unit","New South Wales",2]
[2535,"House","New South Wales",2]
[2535,"Unit","New South Wales",2]
[2536,"House","New South Wales",1]
[2536,"Unit","New South Wales",2]
[2537,"House","New South Wales",2]
[2537,"Unit","New South Wales",2]
[2538,"House","New South Wales",2]
[2538,"Unit","New South Wales",3]
[2539,"House","New South Wales",2]
[2539,"Unit","New South Wales",2]
[2540,"House","New South Wales",1]
[2540,"Unit","New South Wales",2]
[2541,"House","New South Wales",1]
[2541,"Unit","New South Wales",2]
[2545,"House","New South Wales",3]
[2545,"Unit","New South Wales",4]
[2546,"House","New South Wales",3]
[2546,"Unit","New South Wales",3]
[2548,"House","New South Wales",3]
[2548,"Unit","New South Wales",3]
[2549,"House","New South Wales",3]
[2549,"Unit","New South Wales",3]
[2550,"House","New South Wales",3]
[2550,"Unit","New South Wales",3]
[2551,"House","New South Wales",2]
[2551,"Unit","New South Wales",3]
[2555,"House","New South Wales",3]
[2555,"Unit","New South Wales",3]
[2556,"House","New South Wales",2]
[2556,"Unit","New South Wales",3]
[2557,"House","New South Wales",1]
[2557,"Unit","New South Wales",2]
[2558,"House","New South Wales",1]
[2558,"Unit","New South Wales",2]
[2559,"House","New South Wales",1]
[2559,"Unit","New South Wales",3]
[2560,"House","New South Wales",1]
[2560,"Unit","New South Wales",2]
[2563,"House","New South Wales",1]
[2563,"Unit","New South Wales",3]
[2564,"House","New South Wales",1]
[2564,"Unit","New South Wales",1]
[2565,"House","New South Wales",1]
[2565,"Unit","New South Wales",1]
[2566,"House","New South Wales",1]
[2566,"Unit","New South Wales",2]
[2567,"House","New South Wales",1]
[2567,"Unit","New South Wales",2]
[2568,"House","New South Wales",1]
[2568,"Unit","New South Wales",3]
[2569,"House","New South Wales",2]
[2569,"Unit","New South Wales",3]
[2570,"House","New South Wales",1]
[2570,"Unit","New South Wales",2]
[2571,"House","New South Wales",1]
[2571,"Unit","New South Wales",1]
[2572,"House","New South Wales",2]
[2572,"Unit","New South Wales",2]
[2573,"House","New South Wales",1]
[2573,"Unit","New South Wales",2]
[2574,"House","New South Wales",1]
[2574,"Unit","New South Wales",2]
[2575,"House","New South Wales",1]
[2575,"Unit","New South Wales",2]
[2576,"House","New South Wales",2]
[2576,"Unit","New South Wales",2]
[2577,"House","New South Wales",1]
[2577,"Unit","New South Wales",2]
[2578,"House","New South Wales",2]
[2578,"Unit","New South Wales",3]
[2579,"House","New South Wales",2]
[2579,"Unit","New South Wales",2]
[2580,"House","New South Wales",1]
[2580,"Unit","New South Wales",2]
[2581,"House","New South Wales",1]
[2581,"Unit","New South Wales",3]
[2582,"House","New South Wales",2]
[2582,"Unit","New South Wales",2]
[2583,"House","New South Wales",1]
[2583,"Unit","New South Wales",3]
[2584,"House","New South Wales",2]
[2584,"Unit","New South Wales",3]
[2585,"House","New South Wales",1]
[2585,"Unit","New South Wales",3]
[2586,"House","New South Wales",1]
[2586,"Unit","New South Wales",3]
[2587,"House","New South Wales",2]
[2587,"Unit","New South Wales",3]
[2588,"House","New South Wales",2]
[2590,"House","New South Wales",1]
[2590,"Unit","New South Wales",2]
[2594,"House","New South Wales",1]
[2594,"Unit","New South Wales",2]
[2600,"House","Australian Capital Territory",1]
[2600,"Unit","Australian Capital Territory",2]
[2601,"House","Australian Capital Territory",2]
[2601,"Unit","Australian Capital Territory",2]
[2602,"House","Australian Capital Territory",1]
[2602,"Unit","Australian Capital Territory",2]
[2603,"House","Australian Capital Territory",1]
[2603,"Unit","Australian Capital Territory",2]
[2604,"House","Australian Capital Territory",1]
[2604,"Unit","Australian Capital Territory",2]
[2605,"House","Australian Capital Territory",1]
[2605,"Unit","Australian Capital Territory",1]
[2606,"House","Australian Capital Territory",1]
[2606,"Unit","Australian Capital Territory",2]
[2607,"House","Australian Capital Territory",1]
[2607,"Unit","Australian Capital Territory",2]
[2609,"House","Australian Capital Territory",3]
[2609,"Unit","Australian Capital Territory",2]
[2611,"House","Australian Capital Territory",1]
[2611,"Unit","Australian Capital Territory",2]
[2612,"House","Australian Capital Territory",1]
[2612,"Unit","Australian Capital Territory",2]
[2614,"House","Australian Capital Territory",1]
[2614,"Unit","Australian Capital Territory",2]
[2615,"House","Australian Capital Territory",1]
[2615,"Unit","Australian Capital Territory",2]
[2617,"House","Australian Capital Territory",1]
[2617,"Unit","Australian Capital Territory",2]
[2618,"House","Australian Capital Territory",1]
[2618,"Unit","Australian Capital Territory",3]
[2619,"House","New South Wales",1]
[2619,"Unit","New South Wales",2]
[2620,"House","Australian Capital Territory",1]
[2620,"Unit","Australian Capital Territory",1]
[2621,"House","New South Wales",1]
[2621,"Unit","New South Wales",3]
[2622,"House","New South Wales",1]
[2622,"Unit","New South Wales",2]
[2623,"House","New South Wales",2]
[2624,"House","New South Wales",4]
[2624,"Unit","New South Wales",4]
[2625,"House","New South Wales",4]
[2625,"Unit","New South Wales",4]
[2626,"House","New South Wales",2]
[2626,"Unit","New South Wales",3]
[2627,"House","New South Wales",3]
[2627,"Unit","New South Wales",3]
[2628,"House","New South Wales",2]
[2628,"Unit","New South Wales",3]
[2629,"House","New South Wales",3]
[2629,"Unit","New South Wales",4]
[2630,"House","New South Wales",2]
[2630,"Unit","New South Wales",2]
[2631,"House","New South Wales",2]
[2631,"Unit","New South Wales",4]
[2632,"House","New South Wales",3]
[2632,"Unit","New South Wales",4]
[2633,"House","New South Wales",3]
[2640,"House","New South Wales",1]
[2640,"Unit","New South Wales",2]
[2641,"House","New South Wales",1]
[2641,"Unit","New South Wales",2]
[2642,"House","New South Wales",1]
[2642,"Unit","New South Wales",3]
[2643,"House","New South Wales",1]
[2643,"Unit","New South Wales",1]
[2644,"House","New South Wales",1]
[2644,"Unit","New South Wales",3]
[2645,"House","New South Wales",3]
[2645,"Unit","New South Wales",4]
[2646,"House","New South Wales",2]
[2646,"Unit","New South Wales",2]
[2647,"House","New South Wales",2]
[2647,"Unit","New South Wales",2]
[2648,"House","New South Wales",3]
[2648,"Unit","New South Wales",3]
[2649,"House","New South Wales",4]
[2649,"Unit","New South Wales",4]
[2650,"House","New South Wales",1]
[2650,"Unit","New South Wales",2]
[2651,"House","New South Wales",1]
[2651,"Unit","New South Wales",2]
[2652,"House","New South Wales",2]
[2652,"Unit","New South Wales",3]
[2653,"House","New South Wales",2]
[2653,"Unit","New South Wales",4]
[2655,"House","New South Wales",2]
[2655,"Unit","New South Wales",3]
[2656,"House","New South Wales",2]
[2656,"Unit","New South Wales",3]
[2658,"House","New South Wales",2]
[2658,"Unit","New South Wales",3]
[2659,"House","New South Wales",2]
[2659,"Unit","New South Wales",3]
[2660,"House","New South Wales",1]
[2660,"Unit","New South Wales",3]
[2661,"House","New South Wales",3]
[2663,"House","New South Wales",2]
[2663,"Unit","New South Wales",3]
[2665,"House","New South Wales",3]
[2665,"Unit","New South Wales",4]
[2666,"House","New South Wales",1]
[2666,"Unit","New South Wales",2]
[2668,"House","New South Wales",3]
[2668,"Unit","New South Wales",4]
[2669,"House","New South Wales",2]
[2669,"Unit","New South Wales",4]
[2671,"House","New South Wales",2]
[2671,"Unit","New South Wales",4]
[2672,"House","New South Wales",4]
[2672,"Unit","New South Wales",4]
[2675,"House","New South Wales",4]
[2675,"Unit","New South Wales",4]
[2678,"House","New South Wales",3]
[2680,"House","New South Wales",2]
[2680,"Unit","New South Wales",3]
[2681,"House","New South Wales",3]
[2681,"Unit","New South Wales",4]
[2700,"House","New South Wales",3]
[2700,"Unit","New South Wales",4]
[2701,"House","New South Wales",1]
[2701,"Unit","New South Wales",3]
[2702,"House","New South Wales",2]
[2702,"Unit","New South Wales",4]
[2703,"House","New South Wales",3]
[2703,"Unit","New South Wales",4]
[2705,"House","New South Wales",3]
[2705,"Unit","New South Wales",3]
[2706,"House","New South Wales",3]
[2706,"Unit","New South Wales",4]
[2707,"House","New South Wales",3]
[2707,"Unit","New South Wales",4]
[2710,"House","New South Wales",2]
[2710,"Unit","New South Wales",2]
[2711,"House","New South Wales",3]
[2711,"Unit","New South Wales",4]
[2712,"House","New South Wales",3]
[2712,"Unit","New South Wales",4]
[2713,"House","New South Wales",2]
[2713,"Unit","New South Wales",2]
[2714,"House","New South Wales",2]
[2714,"Unit","New South Wales",2]
[2715,"House","New South Wales",3]
[2715,"Unit","New South Wales",4]
[2716,"House","New South Wales",3]
[2716,"Unit","New South Wales",4]
[2717,"House","New South Wales",2]
[2717,"Unit","New South Wales",4]
[2720,"House","New South Wales",1]
[2720,"Unit","New South Wales",2]
[2721,"House","New South Wales",4]
[2721,"Unit","New South Wales",4]
[2722,"House","New South Wales",1]
[2722,"Unit","New South Wales",3]
[2725,"House","New South Wales",4]
[2726,"House","New South Wales",4]
[2727,"House","New South Wales",4]
[2727,"Unit","New South Wales",4]
[2729,"House","New South Wales",1]
[2729,"Unit","New South Wales",2]
[2730,"House","New South Wales",3]
[2730,"Unit","New South Wales",4]
[2731,"House","New South Wales",2]
[2731,"Unit","New South Wales",2]
[2732,"House","New South Wales",2]
[2732,"Unit","New South Wales",3]
[2733,"House","New South Wales",3]
[2733,"Unit","New South Wales",4]
[2734,"House","New South Wales",3]
[2735,"House","New South Wales",2]
[2736,"House","New South Wales",4]
[2736,"Unit","New South Wales",4]
[2737,"House","New South Wales",3]
[2737,"Unit","New South Wales",4]
[2738,"House","New South Wales",2]
[2738,"Unit","New South Wales",4]
[2739,"House","New South Wales",2]
[2739,"Unit","New South Wales",3]
[2745,"House","New South Wales",1]
[2745,"Unit","New South Wales",1]
[2747,"House","New South Wales",1]
[2747,"Unit","New South Wales",2]
[2748,"House","New South Wales",2]
[2748,"Unit","New South Wales",3]
[2749,"House","New South Wales",1]
[2749,"Unit","New South Wales",2]
[2750,"House","New South Wales",1]
[2750,"Unit","New South Wales",2]
[2752,"House","New South Wales",2]
[2752,"Unit","New South Wales",3]
[2753,"House","New South Wales",1]
[2753,"Unit","New South Wales",2]
[2754,"House","New South Wales",1]
[2754,"Unit","New South Wales",2]
[2756,"House","New South Wales",1]
[2756,"Unit","New South Wales",2]
[2757,"House","New South Wales",2]
[2757,"Unit","New South Wales",3]
[2758,"House","New South Wales",2]
[2758,"Unit","New South Wales",3]
[2759,"House","New South Wales",1]
[2759,"Unit","New South Wales",3]
[2760,"House","New South Wales",1]
[2760,"Unit","New South Wales",2]
[2761,"House","New South Wales",1]
[2761,"Unit","New South Wales",1]
[2762,"House","New South Wales",1]
[2762,"Unit","New South Wales",2]
[2763,"House","New South Wales",1]
[2763,"Unit","New South Wales",2]
[2765,"House","New South Wales",2]
[2765,"Unit","New South Wales",2]
[2766,"House","New South Wales",1]
[2766,"Unit","New South Wales",1]
[2767,"House","New South Wales",1]
[2767,"Unit","New South Wales",2]
[2768,"House","New South Wales",1]
[2768,"Unit","New South Wales",1]
[2769,"House","New South Wales",1]
[2769,"Unit","New South Wales",3]
[2770,"House","New South Wales",1]
[2770,"Unit","New South Wales",2]
[2773,"House","New South Wales",1]
[2773,"Unit","New South Wales",3]
[2774,"House","New South Wales",1]
[2774,"Unit","New South Wales",2]
[2775,"House","New South Wales",1]
[2775,"Unit","New South Wales",3]
[2776,"House","New South Wales",1]
[2776,"Unit","New South Wales",3]
[2777,"House","New South Wales",1]
[2777,"Unit","New South Wales",2]
[2778,"House","New South Wales",1]
[2778,"Unit","New South Wales",3]
[2779,"House","New South Wales",1]
[2779,"Unit","New South Wales",3]
[2780,"House","New South Wales",1]
[2780,"Unit","New South Wales",2]
[2782,"House","New South Wales",1]
[2782,"Unit","New South Wales",2]
[2783,"House","New South Wales",1]
[2783,"Unit","New South Wales",2]
[2784,"House","New South Wales",1]
[2784,"Unit","New South Wales",2]
[2785,"House","New South Wales",1]
[2785,"Unit","New South Wales",3]
[2786,"House","New South Wales",1]
[2786,"Unit","New South Wales",3]
[2787,"House","New South Wales",2]
[2787,"Unit","New South Wales",2]
[2790,"House","New South Wales",1]
[2790,"Unit","New South Wales",2]
[2791,"House","New South Wales",2]
[2791,"Unit","New South Wales",3]
[2792,"House","New South Wales",1]
[2792,"Unit","New South Wales",3]
[2793,"House","New South Wales",1]
[2793,"Unit","New South Wales",3]
[2794,"House","New South Wales",1]
[2794,"Unit","New South Wales",2]
[2795,"House","New South Wales",1]
[2795,"Unit","New South Wales",2]
[2797,"House","New South Wales",3]
[2797,"Unit","New South Wales",4]
[2798,"House","New South Wales",1]
[2798,"Unit","New South Wales",3]
[2799,"House","New South Wales",2]
[2799,"Unit","New South Wales",3]
[2800,"House","New South Wales",1]
[2800,"Unit","New South Wales",2]
[2803,"House","New South Wales",3]
[2804,"House","New South Wales",2]
[2804,"Unit","New South Wales",3]
[2805,"House","New South Wales",3]
[2806,"House","New South Wales",3]
[2806,"Unit","New South Wales",4]
[2807,"House","New South Wales",3]
[2808,"House","New South Wales",3]
[2808,"Unit","New South Wales",4]
[2809,"House","New South Wales",3]
[2810,"House","New South Wales",2]
[2810,"Unit","New South Wales",4]
[2818,"House","New South Wales",2]
[2820,"House","New South Wales",3]
[2820,"Unit","New South Wales",4]
[2821,"House","New South Wales",2]
[2821,"Unit","New South Wales",4]
[2823,"House","New South Wales",3]
[2823,"Unit","New South Wales",4]
[2824,"House","New South Wales",3]
[2824,"Unit","New South Wales",4]
[2825,"House","New South Wales",3]
[2825,"Unit","New South Wales",4]
[2826,"House","New South Wales",4]
[2826,"Unit","New South Wales",4]
[2827,"House","New South Wales",3]
[2827,"Unit","New South Wales",4]
[2828,"House","New South Wales",3]
[2828,"Unit","New South Wales",4]
[2829,"House","New South Wales",4]
[2829,"Unit","New South Wales",4]
[2830,"House","New South Wales",1]
[2830,"Unit","New South Wales",2]
[2831,"House","New South Wales",3]
[2831,"Unit","New South Wales",4]
[2832,"House","New South Wales",4]
[2832,"Unit","New South Wales",4]
[2833,"House","New South Wales",4]
[2833,"Unit","New South Wales",4]
[2834,"House","New South Wales",4]
[2834,"Unit","New South Wales",4]
[2835,"House","New South Wales",3]
[2835,"Unit","New South Wales",4]
[2836,"House","New South Wales",4]
[2836,"Unit","New South Wales",4]
[2838,"House","New South Wales",4]
[2838,"Unit","New South Wales",4]
[2839,"House","New South Wales",4]
[2839,"Unit","New South Wales",4]
[2840,"House","New South Wales",4]
[2840,"Unit","New South Wales",4]
[2842,"House","New South Wales",3]
[2842,"Unit","New South Wales",4]
[2843,"House","New South Wales",2]
[2843,"Unit","New South Wales",4]
[2844,"House","New South Wales",2]
[2844,"Unit","New South Wales",4]
[2845,"House","New South Wales",1]
[2845,"Unit","New South Wales",2]
[2846,"House","New South Wales",2]
[2846,"Unit","New South Wales",3]
[2847,"House","New South Wales",2]
[2847,"Unit","New South Wales",3]
[2848,"House","New South Wales",1]
[2848,"Unit","New South Wales",3]
[2849,"House","New South Wales",2]
[2849,"Unit","New South Wales",4]
[2850,"House","New South Wales",1]
[2850,"Unit","New South Wales",2]
[2852,"House","New South Wales",2]
[2852,"Unit","New South Wales",4]
[2864,"House","New South Wales",1]
[2864,"Unit","New South Wales",3]
[2865,"House","New South Wales",3]
[2865,"Unit","New South Wales",4]
[2866,"House","New South Wales",1]
[2866,"Unit","New South Wales",3]
[2867,"House","New South Wales",4]
[2867,"Unit","New South Wales",4]
[2868,"House","New South Wales",3]
[2868,"Unit","New South Wales",4]
[2869,"House","New South Wales",3]
[2869,"Unit","New South Wales",4]
[2870,"House","New South Wales",2]
[2870,"Unit","New South Wales",3]
[2871,"House","New South Wales",3]
[2871,"Unit","New South Wales",3]
[2873,"House","New South Wales",4]
[2873,"Unit","New South Wales",4]
[2874,"House","New South Wales",3]
[2874,"Unit","New South Wales",4]
[2875,"House","New South Wales",2]
[2875,"Unit","New South Wales",4]
[2876,"House","New South Wales",3]
[2876,"Unit","New South Wales",4]
[2877,"House","New South Wales",3]
[2877,"Unit","New South Wales",4]
[2878,"House","New South Wales",4]
[2878,"Unit","New South Wales",4]
[2879,"House","New South Wales",3]
[2879,"Unit","New South Wales",4]
[2880,"House","New South Wales",2]
[2880,"Unit","New South Wales",4]
[2898,"House","New South Wales",4]
[2900,"House","Australian Capital Territory",1]
[2900,"Unit","Australian Capital Territory",2]
[2902,"House","Australian Capital Territory",1]
[2902,"Unit","Australian Capital Territory",2]
[2903,"House","Australian Capital Territory",1]
[2903,"Unit","Australian Capital Territory",2]
[2904,"House","Australian Capital Territory",1]
[2904,"Unit","Australian Capital Territory",2]
[2905,"House","Australian Capital Territory",1]
[2905,"Unit","Australian Capital Territory",2]
[2906,"House","Australian Capital Territory",1]
[2906,"Unit","Australian Capital Territory",2]
[2911,"House","Australian Capital Territory",1]
[2911,"Unit","Australian Capital Territory",2]
[2912,"House","Australian Capital Territory",1]
[2912,"Unit","Australian Capital Territory",2]
[2913,"House","Australian Capital Territory",1]
[2913,"Unit","Australian Capital Territory",2]
[2914,"House","Australian Capital Territory",1]
[2914,"Unit","Australian Capital Territory",2]
[3000,"House","Victoria",1]
[3000,"Unit","Victoria",2]
[3002,"House","Victoria",1]
[3002,"Unit","Victoria",2]
[3003,"House","Victoria",1]
[3003,"Unit","Victoria",2]
[3004,"House","Victoria",2]
[3004,"Unit","Victoria",2]
[3006,"House","Victoria",1]
[3006,"Unit","Victoria",2]
[3008,"House","Victoria",1]
[3008,"Unit","Victoria",2]
[3011,"House","Victoria",1]
[3011,"Unit","Victoria",2]
[3012,"House","Victoria",1]
[3012,"Unit","Victoria",2]
[3013,"House","Victoria",1]
[3013,"Unit","Victoria",1]
[3015,"House","Victoria",1]
[3015,"Unit","Victoria",2]
[3016,"House","Victoria",1]
[3016,"Unit","Victoria",2]
[3018,"House","Victoria",1]
[3018,"Unit","Victoria",2]
[3019,"House","Victoria",1]
[3019,"Unit","Victoria",2]
[3020,"House","Victoria",2]
[3020,"Unit","Victoria",2]
[3021,"House","Victoria",2]
[3021,"Unit","Victoria",2]
[3022,"House","Victoria",2]
[3022,"Unit","Victoria",2]
[3023,"House","Victoria",1]
[3023,"Unit","Victoria",2]
[3024,"House","Victoria",1]
[3024,"Unit","Victoria",2]
[3025,"House","Victoria",1]
[3025,"Unit","Victoria",2]
[3026,"House","Victoria",3]
[3026,"Unit","Victoria",3]
[3027,"House","Victoria",1]
[3027,"Unit","Victoria",2]
[3028,"House","Victoria",1]
[3028,"Unit","Victoria",2]
[3029,"House","Victoria",1]
[3029,"Unit","Victoria",2]
[3030,"House","Victoria",1]
[3030,"Unit","Victoria",2]
[3031,"House","Victoria",1]
[3031,"Unit","Victoria",2]
[3032,"House","Victoria",1]
[3032,"Unit","Victoria",2]
[3033,"House","Victoria",1]
[3033,"Unit","Victoria",2]
[3034,"House","Victoria",1]
[3034,"Unit","Victoria",2]
[3036,"House","Victoria",1]
[3036,"Unit","Victoria",2]
[3037,"House","Victoria",1]
[3037,"Unit","Victoria",2]
[3038,"House","Victoria",1]
[3038,"Unit","Victoria",2]
[3039,"House","Victoria",1]
[3039,"Unit","Victoria",2]
[3040,"House","Victoria",1]
[3040,"Unit","Victoria",2]
[3041,"House","Victoria",1]
[3041,"Unit","Victoria",2]
[3042,"House","Victoria",1]
[3042,"Unit","Victoria",2]
[3043,"House","Victoria",1]
[3043,"Unit","Victoria",1]
[3044,"House","Victoria",1]
[3044,"Unit","Victoria",2]
[3045,"House","Victoria",3]
[3045,"Unit","Victoria",3]
[3046,"House","Victoria",1]
[3046,"Unit","Victoria",2]
[3047,"House","Victoria",1]
[3047,"Unit","Victoria",2]
[3048,"House","Victoria",1]
[3048,"Unit","Victoria",2]
[3049,"House","Victoria",1]
[3049,"Unit","Victoria",2]
[3051,"House","Victoria",1]
[3051,"Unit","Victoria",2]
[3052,"House","Victoria",1]
[3052,"Unit","Victoria",2]
[3053,"House","Victoria",1]
[3053,"Unit","Victoria",2]
[3054,"House","Victoria",1]
[3054,"Unit","Victoria",2]
[3055,"House","Victoria",1]
[3055,"Unit","Victoria",2]
[3056,"House","Victoria",1]
[3056,"Unit","Victoria",2]
[3057,"House","Victoria",1]
[3057,"Unit","Victoria",2]
[3058,"House","Victoria",1]
[3058,"Unit","Victoria",2]
[3059,"House","Victoria",1]
[3059,"Unit","Victoria",2]
[3060,"House","Victoria",1]
[3060,"Unit","Victoria",2]
[3061,"House","Victoria",1]
[3061,"Unit","Victoria",2]
[3062,"House","Victoria",3]
[3062,"Unit","Victoria",3]
[3063,"House","Victoria",1]
[3063,"Unit","Victoria",3]
[3064,"House","Victoria",1]
[3064,"Unit","Victoria",2]
[3065,"House","Victoria",1]
[3065,"Unit","Victoria",2]
[3066,"House","Victoria",1]
[3066,"Unit","Victoria",2]
[3067,"House","Victoria",1]
[3067,"Unit","Victoria",2]
[3068,"House","Victoria",1]
[3068,"Unit","Victoria",2]
[3070,"House","Victoria",1]
[3070,"Unit","Victoria",2]
[3071,"House","Victoria",1]
[3071,"Unit","Victoria",2]
[3072,"House","Victoria",1]
[3072,"Unit","Victoria",2]
[3073,"House","Victoria",1]
[3073,"Unit","Victoria",2]
[3074,"House","Victoria",1]
[3074,"Unit","Victoria",2]
[3075,"House","Victoria",1]
[3075,"Unit","Victoria",2]
[3076,"House","Victoria",1]
[3076,"Unit","Victoria",2]
[3078,"House","Victoria",1]
[3078,"Unit","Victoria",2]
[3079,"House","Victoria",1]
[3079,"Unit","Victoria",2]
[3081,"House","Victoria",1]
[3081,"Unit","Victoria",2]
[3082,"House","Victoria",1]
[3082,"Unit","Victoria",2]
[3083,"House","Victoria",1]
[3083,"Unit","Victoria",2]
[3084,"House","Victoria",1]
[3084,"Unit","Victoria",2]
[3085,"House","Victoria",1]
[3085,"Unit","Victoria",2]
[3087,"House","Victoria",1]
[3087,"Unit","Victoria",2]
[3088,"House","Victoria",1]
[3088,"Unit","Victoria",1]
[3089,"House","Victoria",1]
[3089,"Unit","Victoria",2]
[3090,"House","Victoria",1]
[3090,"Unit","Victoria",3]
[3091,"House","Victoria",1]
[3091,"Unit","Victoria",3]
[3093,"House","Victoria",1]
[3093,"Unit","Victoria",2]
[3094,"House","Victoria",1]
[3094,"Unit","Victoria",2]
[3095,"House","Victoria",1]
[3095,"Unit","Victoria",2]
[3096,"House","Victoria",1]
[3096,"Unit","Victoria",3]
[3097,"House","Victoria",2]
[3097,"Unit","Victoria",3]
[3099,"House","Victoria",1]
[3099,"Unit","Victoria",2]
[3101,"House","Victoria",1]
[3101,"Unit","Victoria",1]
[3102,"House","Victoria",1]
[3102,"Unit","Victoria",1]
[3103,"House","Victoria",1]
[3103,"Unit","Victoria",2]
[3104,"House","Victoria",1]
[3104,"Unit","Victoria",2]
[3105,"House","Victoria",1]
[3105,"Unit","Victoria",2]
[3106,"House","Victoria",1]
[3106,"Unit","Victoria",2]
[3107,"House","Victoria",1]
[3107,"Unit","Victoria",2]
[3108,"House","Victoria",1]
[3108,"Unit","Victoria",2]
[3109,"House","Victoria",1]
[3109,"Unit","Victoria",2]
[3111,"House","Victoria",1]
[3111,"Unit","Victoria",2]
[3113,"House","Victoria",1]
[3113,"Unit","Victoria",3]
[3114,"House","Victoria",1]
[3114,"Unit","Victoria",3]
[3115,"House","Victoria",1]
[3115,"Unit","Victoria",3]
[3116,"House","Victoria",1]
[3116,"Unit","Victoria",2]
[3121,"House","Victoria",1]
[3121,"Unit","Victoria",1]
[3122,"House","Victoria",1]
[3122,"Unit","Victoria",2]
[3123,"House","Victoria",1]
[3123,"Unit","Victoria",2]
[3124,"House","Victoria",1]
[3124,"Unit","Victoria",2]
[3125,"House","Victoria",1]
[3125,"Unit","Victoria",2]
[3126,"House","Victoria",1]
[3126,"Unit","Victoria",2]
[3127,"House","Victoria",1]
[3127,"Unit","Victoria",2]
[3128,"House","Victoria",1]
[3128,"Unit","Victoria",2]
[3129,"House","Victoria",1]
[3129,"Unit","Victoria",2]
[3130,"House","Victoria",1]
[3130,"Unit","Victoria",2]
[3131,"House","Victoria",1]
[3131,"Unit","Victoria",2]
[3132,"House","Victoria",1]
[3132,"Unit","Victoria",2]
[3133,"House","Victoria",1]
[3133,"Unit","Victoria",2]
[3134,"House","Victoria",1]
[3134,"Unit","Victoria",2]
[3135,"House","Victoria",1]
[3135,"Unit","Victoria",2]
[3136,"House","Victoria",1]
[3136,"Unit","Victoria",2]
[3137,"House","Victoria",1]
[3137,"Unit","Victoria",2]
[3138,"House","Victoria",1]
[3138,"Unit","Victoria",2]
[3139,"House","Victoria",1]
[3139,"Unit","Victoria",2]
[3140,"House","Victoria",1]
[3140,"Unit","Victoria",2]
[3141,"House","Victoria",1]
[3141,"Unit","Victoria",2]
[3142,"House","Victoria",1]
[3142,"Unit","Victoria",2]
[3143,"House","Victoria",1]
[3143,"Unit","Victoria",2]
[3144,"House","Victoria",1]
[3144,"Unit","Victoria",2]
[3145,"House","Victoria",1]
[3145,"Unit","Victoria",2]
[3146,"House","Victoria",1]
[3146,"Unit","Victoria",2]
[3147,"House","Victoria",1]
[3147,"Unit","Victoria",1]
[3148,"House","Victoria",1]
[3148,"Unit","Victoria",2]
[3149,"House","Victoria",1]
[3149,"Unit","Victoria",2]
[3150,"House","Victoria",1]
[3150,"Unit","Victoria",2]
[3151,"House","Victoria",1]
[3151,"Unit","Victoria",2]
[3152,"House","Victoria",1]
[3152,"Unit","Victoria",2]
[3153,"House","Victoria",1]
[3153,"Unit","Victoria",1]
[3154,"House","Victoria",1]
[3154,"Unit","Victoria",2]
[3155,"House","Victoria",1]
[3155,"Unit","Victoria",2]
[3156,"House","Victoria",1]
[3156,"Unit","Victoria",1]
[3158,"House","Victoria",1]
[3158,"Unit","Victoria",2]
[3159,"House","Victoria",1]
[3159,"Unit","Victoria",3]
[3160,"House","Victoria",1]
[3160,"Unit","Victoria",2]
[3161,"House","Victoria",1]
[3161,"Unit","Victoria",2]
[3162,"House","Victoria",1]
[3162,"Unit","Victoria",2]
[3163,"House","Victoria",1]
[3163,"Unit","Victoria",2]
[3165,"House","Victoria",1]
[3165,"Unit","Victoria",2]
[3166,"House","Victoria",1]
[3166,"Unit","Victoria",2]
[3167,"House","Victoria",1]
[3167,"Unit","Victoria",2]
[3168,"House","Victoria",2]
[3168,"Unit","Victoria",2]
[3169,"House","Victoria",1]
[3169,"Unit","Victoria",2]
[3170,"House","Victoria",1]
[3170,"Unit","Victoria",2]
[3171,"House","Victoria",2]
[3171,"Unit","Victoria",2]
[3172,"House","Victoria",1]
[3172,"Unit","Victoria",2]
[3173,"House","Victoria",1]
[3173,"Unit","Victoria",2]
[3174,"House","Victoria",1]
[3174,"Unit","Victoria",2]
[3175,"House","Victoria",1]
[3175,"Unit","Victoria",2]
[3177,"House","Victoria",1]
[3177,"Unit","Victoria",2]
[3178,"House","Victoria",1]
[3178,"Unit","Victoria",2]
[3179,"House","Victoria",1]
[3179,"Unit","Victoria",1]
[3180,"House","Victoria",1]
[3180,"Unit","Victoria",2]
[3181,"House","Victoria",1]
[3181,"Unit","Victoria",2]
[3182,"House","Victoria",1]
[3182,"Unit","Victoria",2]
[3183,"House","Victoria",1]
[3183,"Unit","Victoria",1]
[3184,"House","Victoria",1]
[3184,"Unit","Victoria",2]
[3185,"House","Victoria",1]
[3185,"Unit","Victoria",1]
[3186,"House","Victoria",1]
[3186,"Unit","Victoria",2]
[3187,"House","Victoria",1]
[3187,"Unit","Victoria",2]
[3188,"House","Victoria",1]
[3188,"Unit","Victoria",2]
[3189,"House","Victoria",1]
[3189,"Unit","Victoria",2]
[3190,"House","Victoria",1]
[3190,"Unit","Victoria",2]
[3191,"House","Victoria",1]
[3191,"Unit","Victoria",2]
[3192,"House","Victoria",1]
[3192,"Unit","Victoria",2]
[3193,"House","Victoria",1]
[3193,"Unit","Victoria",2]
[3194,"House","Victoria",1]
[3194,"Unit","Victoria",2]
[3195,"House","Victoria",1]
[3195,"Unit","Victoria",2]
[3196,"House","Victoria",1]
[3196,"Unit","Victoria",2]
[3197,"House","Victoria",1]
[3197,"Unit","Victoria",2]
[3198,"House","Victoria",1]
[3198,"Unit","Victoria",2]
[3199,"House","Victoria",1]
[3199,"Unit","Victoria",2]
[3200,"House","Victoria",1]
[3200,"Unit","Victoria",2]
[3201,"House","Victoria",1]
[3201,"Unit","Victoria",2]
[3202,"House","Victoria",1]
[3202,"Unit","Victoria",2]
[3204,"House","Victoria",1]
[3204,"Unit","Victoria",2]
[3205,"House","Victoria",1]
[3205,"Unit","Victoria",2]
[3206,"House","Victoria",1]
[3206,"Unit","Victoria",2]
[3207,"House","Victoria",1]
[3207,"Unit","Victoria",2]
[3211,"House","Victoria",1]
[3211,"Unit","Victoria",3]
[3212,"House","Victoria",2]
[3212,"Unit","Victoria",2]
[3213,"House","Victoria",1]
[3213,"Unit","Victoria",2]
[3214,"House","Victoria",2]
[3214,"Unit","Victoria",2]
[3215,"House","Victoria",1]
[3215,"Unit","Victoria",2]
[3216,"House","Victoria",1]
[3216,"Unit","Victoria",2]
[3217,"House","Victoria",1]
[3217,"Unit","Victoria",3]
[3218,"House","Victoria",1]
[3218,"Unit","Victoria",2]
[3219,"House","Victoria",1]
[3219,"Unit","Victoria",2]
[3220,"House","Victoria",1]
[3220,"Unit","Victoria",2]
[3221,"House","Victoria",1]
[3221,"Unit","Victoria",3]
[3222,"House","Victoria",1]
[3222,"Unit","Victoria",2]
[3223,"House","Victoria",2]
[3223,"Unit","Victoria",2]
[3224,"House","Victoria",1]
[3224,"Unit","Victoria",2]
[3225,"House","Victoria",2]
[3225,"Unit","Victoria",2]
[3226,"House","Victoria",2]
[3226,"Unit","Victoria",2]
[3227,"House","Victoria",1]
[3227,"Unit","Victoria",2]
[3228,"House","Victoria",2]
[3228,"Unit","Victoria",2]
[3230,"House","Victoria",1]
[3230,"Unit","Victoria",2]
[3231,"House","Victoria",2]
[3231,"Unit","Victoria",3]
[3232,"House","Victoria",2]
[3232,"Unit","Victoria",2]
[3233,"House","Victoria",2]
[3233,"Unit","Victoria",2]
[3234,"House","Victoria",2]
[3234,"Unit","Victoria",3]
[3235,"House","Victoria",2]
[3236,"House","Victoria",3]
[3237,"House","Victoria",2]
[3237,"Unit","Victoria",4]
[3238,"House","Victoria",3]
[3238,"Unit","Victoria",4]
[3239,"House","Victoria",2]
[3239,"Unit","Victoria",3]
[3240,"House","Victoria",2]
[3240,"Unit","Victoria",3]
[3241,"House","Victoria",1]
[3241,"Unit","Victoria",3]
[3242,"House","Victoria",1]
[3243,"House","Victoria",2]
[3243,"Unit","Victoria",3]
[3249,"House","Victoria",1]
[3249,"Unit","Victoria",3]
[3250,"House","Victoria",1]
[3250,"Unit","Victoria",2]
[3251,"House","Victoria",2]
[3254,"House","Victoria",1]
[3260,"House","Victoria",1]
[3260,"Unit","Victoria",2]
[3264,"House","Victoria",1]
[3264,"Unit","Victoria",3]
[3265,"House","Victoria",1]
[3265,"Unit","Victoria",3]
[3266,"House","Victoria",1]
[3266,"Unit","Victoria",3]
[3267,"House","Victoria",4]
[3268,"House","Victoria",1]
[3268,"Unit","Victoria",3]
[3269,"House","Victoria",2]
[3269,"Unit","Victoria",4]
[3270,"House","Victoria",3]
[3270,"Unit","Victoria",4]
[3271,"House","Victoria",2]
[3272,"House","Victoria",1]
[3272,"Unit","Victoria",3]
[3273,"House","Victoria",4]
[3274,"House","Victoria",3]
[3274,"Unit","Victoria",4]
[3275,"House","Victoria",2]
[3275,"Unit","Victoria",3]
[3276,"House","Victoria",2]
[3276,"Unit","Victoria",3]
[3277,"House","Victoria",1]
[3277,"Unit","Victoria",2]
[3278,"House","Victoria",2]
[3279,"House","Victoria",3]
[3280,"House","Victoria",1]
[3280,"Unit","Victoria",2]
[3281,"House","Victoria",1]
[3281,"Unit","Victoria",3]
[3282,"House","Victoria",1]
[3282,"Unit","Victoria",2]
[3283,"House","Victoria",1]
[3284,"House","Victoria",2]
[3284,"Unit","Victoria",2]
[3285,"House","Victoria",2]
[3285,"Unit","Victoria",3]
[3286,"House","Victoria",2]
[3286,"Unit","Victoria",4]
[3287,"House","Victoria",2]
[3287,"Unit","Victoria",4]
[3289,"House","Victoria",2]
[3289,"Unit","Victoria",3]
[3292,"House","Victoria",3]
[3292,"Unit","Victoria",4]
[3293,"House","Victoria",3]
[3294,"House","Victoria",3]
[3294,"Unit","Victoria",4]
[3300,"House","Victoria",1]
[3300,"Unit","Victoria",2]
[3301,"House","Victoria",1]
[3302,"House","Victoria",3]
[3302,"Unit","Victoria",4]
[3303,"House","Victoria",2]
[3304,"House","Victoria",2]
[3304,"Unit","Victoria",4]
[3305,"House","Victoria",2]
[3305,"Unit","Victoria",3]
[3309,"House","Victoria",3]
[3310,"House","Victoria",2]
[3311,"House","Victoria",3]
[3311,"Unit","Victoria",4]
[3312,"House","Victoria",2]
[3314,"House","Victoria",3]
[3315,"House","Victoria",3]
[3315,"Unit","Victoria",4]
[3317,"House","Victoria",3]
[3318,"House","Victoria",3]
[3318,"Unit","Victoria",3]
[3319,"House","Victoria",4]
[3319,"Unit","Victoria",4]
[3321,"House","Victoria",2]
[3321,"Unit","Victoria",3]
[3322,"House","Victoria",1]
[3323,"House","Victoria",3]
[3324,"House","Victoria",1]
[3324,"Unit","Victoria",3]
[3325,"House","Victoria",3]
[3325,"Unit","Victoria",4]
[3328,"House","Victoria",2]
[3328,"Unit","Victoria",3]
[3329,"House","Victoria",1]
[3330,"House","Victoria",1]
[3330,"Unit","Victoria",3]
[3331,"House","Victoria",1]
[3331,"Unit","Victoria",2]
[3332,"House","Victoria",1]
[3332,"Unit","Victoria",3]
[3333,"House","Victoria",2]
[3333,"Unit","Victoria",3]
[3334,"House","Victoria",1]
[3334,"Unit","Victoria",3]
[3335,"House","Victoria",1]
[3335,"Unit","Victoria",2]
[3336,"House","Victoria",2]
[3336,"Unit","Victoria",2]
[3337,"House","Victoria",1]
[3337,"Unit","Victoria",2]
[3338,"House","Victoria",1]
[3338,"Unit","Victoria",2]
[3340,"House","Victoria",1]
[3340,"Unit","Victoria",2]
[3341,"House","Victoria",1]
[3342,"House","Victoria",2]
[3342,"Unit","Victoria",2]
[3345,"House","Victoria",1]
[3350,"House","Victoria",2]
[3350,"Unit","Victoria",2]
[3351,"House","Victoria",2]
[3351,"Unit","Victoria",3]
[3352,"House","Victoria",2]
[3352,"Unit","Victoria",2]
[3355,"House","Victoria",1]
[3355,"Unit","Victoria",2]
[3356,"House","Victoria",1]
[3356,"Unit","Victoria",2]
[3357,"House","Victoria",1]
[3357,"Unit","Victoria",2]
[3358,"House","Victoria",2]
[3358,"Unit","Victoria",2]
[3360,"House","Victoria",1]
[3360,"Unit","Victoria",3]
[3361,"House","Victoria",2]
[3361,"Unit","Victoria",3]
[3363,"House","Victoria",1]
[3363,"Unit","Victoria",2]
[3364,"House","Victoria",1]
[3364,"Unit","Victoria",3]
[3370,"House","Victoria",2]
[3370,"Unit","Victoria",3]
[3371,"House","Victoria",1]
[3371,"Unit","Victoria",3]
[3373,"House","Victoria",1]
[3373,"Unit","Victoria",3]
[3374,"House","Victoria",1]
[3375,"House","Victoria",3]
[3377,"House","Victoria",1]
[3377,"Unit","Victoria",2]
[3378,"House","Victoria",3]
[3379,"House","Victoria",2]
[3379,"Unit","Victoria",3]
[3380,"House","Victoria",2]
[3380,"Unit","Victoria",2]
[3381,"House","Victoria",1]
[3381,"Unit","Victoria",3]
[3384,"House","Victoria",2]
[3384,"Unit","Victoria",3]
[3385,"House","Victoria",2]
[3387,"House","Victoria",2]
[3388,"House","Victoria",3]
[3388,"Unit","Victoria",4]
[3390,"House","Victoria",2]
[3390,"Unit","Victoria",4]
[3391,"House","Victoria",3]
[3392,"House","Victoria",2]
[3392,"Unit","Victoria",4]
[3393,"House","Victoria",3]
[3393,"Unit","Victoria",4]
[3395,"House","Victoria",4]
[3395,"Unit","Victoria",4]
[3396,"House","Victoria",3]
[3396,"Unit","Victoria",4]
[3400,"House","Victoria",2]
[3400,"Unit","Victoria",3]
[3401,"House","Victoria",2]
[3401,"Unit","Victoria",4]
[3407,"House","Victoria",2]
[3407,"Unit","Victoria",4]
[3409,"House","Victoria",3]
[3409,"Unit","Victoria",4]
[3412,"House","Victoria",4]
[3413,"House","Victoria",4]
[3414,"House","Victoria",2]
[3414,"Unit","Victoria",4]
[3415,"House","Victoria",4]
[3418,"House","Victoria",3]
[3418,"Unit","Victoria",4]
[3419,"House","Victoria",3]
[3419,"Unit","Victoria",4]
[3420,"House","Victoria",3]
[3423,"House","Victoria",2]
[3423,"Unit","Victoria",4]
[3424,"House","Victoria",3]
[3424,"Unit","Victoria",4]
[3427,"House","Victoria",1]
[3427,"Unit","Victoria",3]
[3428,"House","Victoria",2]
[3428,"Unit","Victoria",3]
[3429,"House","Victoria",1]
[3429,"Unit","Victoria",2]
[3430,"House","Victoria",3]
[3430,"Unit","Victoria",3]
[3431,"House","Victoria",1]
[3431,"Unit","Victoria",2]
[3432,"House","Victoria",2]
[3432,"Unit","Victoria",3]
[3433,"House","Victoria",1]
[3433,"Unit","Victoria",3]
[3434,"House","Victoria",2]
[3434,"Unit","Victoria",2]
[3435,"House","Victoria",1]
[3435,"Unit","Victoria",3]
[3437,"House","Victoria",2]
[3437,"Unit","Victoria",2]
[3438,"House","Victoria",1]
[3438,"Unit","Victoria",2]
[3440,"House","Victoria",1]
[3440,"Unit","Victoria",3]
[3441,"House","Victoria",1]
[3441,"Unit","Victoria",3]
[3442,"House","Victoria",1]
[3442,"Unit","Victoria",1]
[3444,"House","Victoria",2]
[3444,"Unit","Victoria",2]
[3446,"House","Victoria",1]
[3446,"Unit","Victoria",3]
[3447,"House","Victoria",2]
[3448,"House","Victoria",1]
[3450,"House","Victoria",2]
[3450,"Unit","Victoria",2]
[3451,"House","Victoria",1]
[3451,"Unit","Victoria",2]
[3453,"House","Victoria",1]
[3453,"Unit","Victoria",3]
[3458,"House","Victoria",2]
[3458,"Unit","Victoria",3]
[3460,"House","Victoria",2]
[3460,"Unit","Victoria",2]
[3461,"House","Victoria",2]
[3461,"Unit","Victoria",3]
[3462,"House","Victoria",2]
[3462,"Unit","Victoria",3]
[3463,"House","Victoria",2]
[3463,"Unit","Victoria",3]
[3464,"House","Victoria",2]
[3464,"Unit","Victoria",3]
[3465,"House","Victoria",1]
[3465,"Unit","Victoria",2]
[3467,"House","Victoria",1]
[3467,"Unit","Victoria",3]
[3468,"House","Victoria",2]
[3469,"House","Victoria",2]
[3472,"House","Victoria",1]
[3472,"Unit","Victoria",3]
[3475,"House","Victoria",2]
[3477,"House","Victoria",1]
[3478,"House","Victoria",1]
[3478,"Unit","Victoria",3]
[3480,"House","Victoria",3]
[3480,"Unit","Victoria",4]
[3482,"House","Victoria",4]
[3483,"House","Victoria",3]
[3483,"Unit","Victoria",4]
[3485,"House","Victoria",3]
[3485,"Unit","Victoria",4]
[3487,"House","Victoria",4]
[3487,"Unit","Victoria",4]
[3488,"House","Victoria",3]
[3489,"House","Victoria",2]
[3490,"House","Victoria",3]
[3490,"Unit","Victoria",4]
[3491,"House","Victoria",4]
[3494,"House","Victoria",2]
[3496,"House","Victoria",2]
[3496,"Unit","Victoria",3]
[3498,"House","Victoria",3]
[3498,"Unit","Victoria",3]
[3500,"House","Victoria",2]
[3500,"Unit","Victoria",3]
[3501,"House","Victoria",2]
[3501,"Unit","Victoria",4]
[3505,"House","Victoria",2]
[3505,"Unit","Victoria",3]
[3506,"House","Victoria",4]
[3507,"House","Victoria",4]
[3509,"House","Victoria",4]
[3512,"House","Victoria",4]
[3512,"Unit","Victoria",4]
[3515,"House","Victoria",1]
[3515,"Unit","Victoria",3]
[3516,"House","Victoria",2]
[3516,"Unit","Victoria",3]
[3517,"House","Victoria",2]
[3517,"Unit","Victoria",3]
[3518,"House","Victoria",3]
[3518,"Unit","Victoria",4]
[3520,"House","Victoria",3]
[3521,"House","Victoria",1]
[3522,"House","Victoria",1]
[3523,"House","Victoria",2]
[3523,"Unit","Victoria",2]
[3525,"House","Victoria",3]
[3525,"Unit","Victoria",4]
[3527,"House","Victoria",2]
[3527,"Unit","Victoria",4]
[3529,"House","Victoria",4]
[3530,"House","Victoria",4]
[3531,"House","Victoria",3]
[3533,"House","Victoria",3]
[3533,"Unit","Victoria",4]
[3537,"House","Victoria",2]
[3537,"Unit","Victoria",4]
[3540,"House","Victoria",3]
[3540,"Unit","Victoria",4]
[3542,"House","Victoria",4]
[3544,"House","Victoria",4]
[3546,"House","Victoria",3]
[3546,"Unit","Victoria",4]
[3549,"House","Victoria",3]
[3549,"Unit","Victoria",4]
[3550,"House","Victoria",1]
[3550,"Unit","Victoria",2]
[3551,"House","Victoria",1]
[3551,"Unit","Victoria",2]
[3555,"House","Victoria",1]
[3555,"Unit","Victoria",2]
[3556,"House","Victoria",1]
[3556,"Unit","Victoria",2]
[3557,"House","Victoria",1]
[3558,"House","Victoria",1]
[3558,"Unit","Victoria",3]
[3559,"House","Victoria",2]
[3561,"House","Victoria",2]
[3561,"Unit","Victoria",2]
[3562,"House","Victoria",3]
[3563,"House","Victoria",2]
[3563,"Unit","Victoria",3]
[3564,"House","Victoria",1]
[3564,"Unit","Victoria",2]
[3565,"House","Victoria",3]
[3566,"House","Victoria",4]
[3566,"Unit","Victoria",4]
[3567,"House","Victoria",3]
[3567,"Unit","Victoria",4]
[3568,"House","Victoria",2]
[3568,"Unit","Victoria",4]
[3570,"House","Victoria",1]
[3571,"House","Victoria",3]
[3571,"Unit","Victoria",3]
[3572,"House","Victoria",3]
[3573,"House","Victoria",3]
[3575,"House","Victoria",3]
[3575,"Unit","Victoria",4]
[3576,"House","Victoria",4]
[3579,"House","Victoria",3]
[3579,"Unit","Victoria",3]
[3580,"House","Victoria",3]
[3580,"Unit","Victoria",4]
[3581,"House","Victoria",3]
[3583,"House","Victoria",4]
[3584,"House","Victoria",2]
[3584,"Unit","Victoria",4]
[3585,"House","Victoria",2]
[3585,"Unit","Victoria",2]
[3586,"House","Victoria",3]
[3588,"House","Victoria",2]
[3589,"House","Victoria",3]
[3590,"House","Victoria",2]
[3591,"House","Victoria",3]
[3594,"House","Victoria",3]
[3594,"Unit","Victoria",4]
[3595,"House","Victoria",3]
[3595,"Unit","Victoria",4]
[3596,"House","Victoria",4]
[3597,"House","Victoria",4]
[3599,"House","Victoria",4]
[3607,"House","Victoria",3]
[3607,"Unit","Victoria",3]
[3608,"House","Victoria",2]
[3608,"Unit","Victoria",2]
[3610,"House","Victoria",1]
[3610,"Unit","Victoria",3]
[3612,"House","Victoria",1]
[3612,"Unit","Victoria",3]
[3614,"House","Victoria",1]
[3616,"House","Victoria",1]
[3616,"Unit","Victoria",2]
[3617,"House","Victoria",3]
[3618,"House","Victoria",2]
[3620,"House","Victoria",1]
[3620,"Unit","Victoria",2]
[3621,"House","Victoria",2]
[3621,"Unit","Victoria",2]
[3622,"House","Victoria",1]
[3623,"House","Victoria",1]
[3623,"Unit","Victoria",3]
[3624,"House","Victoria",1]
[3629,"House","Victoria",1]
[3629,"Unit","Victoria",2]
[3630,"House","Victoria",1]
[3630,"Unit","Victoria",2]
[3631,"House","Victoria",1]
[3631,"Unit","Victoria",2]
[3633,"House","Victoria",2]
[3633,"Unit","Victoria",3]
[3634,"House","Victoria",1]
[3635,"House","Victoria",1]
[3635,"Unit","Victoria",3]
[3636,"House","Victoria",2]
[3636,"Unit","Victoria",2]
[3637,"House","Victoria",2]
[3638,"House","Victoria",1]
[3638,"Unit","Victoria",2]
[3639,"House","Victoria",2]
[3639,"Unit","Victoria",3]
[3640,"House","Victoria",1]
[3641,"House","Victoria",2]
[3641,"Unit","Victoria",3]
[3644,"House","Victoria",2]
[3644,"Unit","Victoria",2]
[3646,"House","Victoria",1]
[3647,"House","Victoria",3]
[3649,"House","Victoria",2]
[3658,"House","Victoria",1]
[3658,"Unit","Victoria",2]
[3659,"House","Victoria",1]
[3659,"Unit","Victoria",3]
[3660,"House","Victoria",1]
[3660,"Unit","Victoria",2]
[3662,"House","Victoria",3]
[3662,"Unit","Victoria",3]
[3663,"House","Victoria",2]
[3663,"Unit","Victoria",3]
[3664,"House","Victoria",1]
[3664,"Unit","Victoria",3]
[3665,"House","Victoria",2]
[3665,"Unit","Victoria",3]
[3666,"House","Victoria",1]
[3666,"Unit","Victoria",3]
[3669,"House","Victoria",1]
[3669,"Unit","Victoria",3]
[3670,"House","Victoria",2]
[3672,"House","Victoria",1]
[3672,"Unit","Victoria",2]
[3673,"House","Victoria",1]
[3673,"Unit","Victoria",3]
[3675,"House","Victoria",1]
[3675,"Unit","Victoria",3]
[3677,"House","Victoria",1]
[3677,"Unit","Victoria",2]
[3678,"House","Victoria",2]
[3678,"Unit","Victoria",3]
[3682,"House","Victoria",2]
[3683,"House","Victoria",1]
[3683,"Unit","Victoria",3]
[3685,"House","Victoria",1]
[3685,"Unit","Victoria",2]
[3687,"House","Victoria",1]
[3687,"Unit","Victoria",3]
[3688,"House","Victoria",1]
[3688,"Unit","Victoria",3]
[3690,"House","Victoria",1]
[3690,"Unit","Victoria",2]
[3691,"House","Victoria",1]
[3691,"Unit","Victoria",3]
[3695,"House","Victoria",2]
[3697,"House","Victoria",1]
[3697,"Unit","Victoria",3]
[3698,"House","Victoria",2]
[3698,"Unit","Victoria",3]
[3699,"House","Victoria",2]
[3699,"Unit","Victoria",3]
[3700,"House","Victoria",1]
[3700,"Unit","Victoria",2]
[3701,"House","Victoria",1]
[3704,"House","Victoria",4]
[3705,"House","Victoria",3]
[3707,"House","Victoria",2]
[3707,"Unit","Victoria",3]
[3708,"House","Victoria",3]
[3709,"House","Victoria",4]
[3709,"Unit","Victoria",4]
[3711,"House","Victoria",2]
[3712,"House","Victoria",2]
[3712,"Unit","Victoria",3]
[3713,"House","Victoria",3]
[3713,"Unit","Victoria",3]
[3714,"House","Victoria",1]
[3714,"Unit","Victoria",1]
[3715,"House","Victoria",2]
[3717,"House","Victoria",1]
[3717,"Unit","Victoria",3]
[3718,"House","Victoria",3]
[3719,"House","Victoria",1]
[3720,"House","Victoria",2]
[3720,"Unit","Victoria",4]
[3722,"House","Victoria",3]
[3722,"Unit","Victoria",3]
[3723,"House","Victoria",1]
[3723,"Unit","Victoria",3]
[3725,"House","Victoria",2]
[3726,"House","Victoria",2]
[3727,"House","Victoria",2]
[3728,"House","Victoria",1]
[3728,"Unit","Victoria",3]
[3730,"House","Victoria",2]
[3730,"Unit","Victoria",2]
[3732,"House","Victoria",1]
[3732,"Unit","Victoria",3]
[3733,"House","Victoria",2]
[3735,"House","Victoria",2]
[3735,"Unit","Victoria",3]
[3737,"House","Victoria",2]
[3737,"Unit","Victoria",2]
[3738,"House","Victoria",2]
[3739,"House","Victoria",2]
[3740,"House","Victoria",3]
[3740,"Unit","Victoria",3]
[3741,"House","Victoria",3]
[3741,"Unit","Victoria",3]
[3744,"House","Victoria",3]
[3744,"Unit","Victoria",4]
[3746,"House","Victoria",2]
[3747,"House","Victoria",1]
[3747,"Unit","Victoria",2]
[3749,"House","Victoria",1]
[3749,"Unit","Victoria",3]
[3750,"House","Victoria",1]
[3750,"Unit","Victoria",2]
[3751,"House","Victoria",3]
[3751,"Unit","Victoria",3]
[3752,"House","Victoria",1]
[3752,"Unit","Victoria",2]
[3753,"House","Victoria",2]
[3753,"Unit","Victoria",3]
[3754,"House","Victoria",1]
[3754,"Unit","Victoria",2]
[3755,"House","Victoria",2]
[3755,"Unit","Victoria",3]
[3756,"House","Victoria",1]
[3756,"Unit","Victoria",2]
[3757,"House","Victoria",1]
[3757,"Unit","Victoria",2]
[3758,"House","Victoria",1]
[3758,"Unit","Victoria",3]
[3759,"House","Victoria",1]
[3759,"Unit","Victoria",3]
[3760,"House","Victoria",2]
[3761,"House","Victoria",1]
[3761,"Unit","Victoria",3]
[3762,"House","Victoria",3]
[3763,"House","Victoria",1]
[3763,"Unit","Victoria",3]
[3764,"House","Victoria",2]
[3764,"Unit","Victoria",2]
[3765,"House","Victoria",1]
[3765,"Unit","Victoria",2]
[3766,"House","Victoria",1]
[3766,"Unit","Victoria",3]
[3767,"House","Victoria",1]
[3767,"Unit","Victoria",3]
[3770,"House","Victoria",1]
[3770,"Unit","Victoria",3]
[3775,"House","Victoria",1]
[3775,"Unit","Victoria",2]
[3777,"House","Victoria",1]
[3777,"Unit","Victoria",2]
[3778,"House","Victoria",2]
[3779,"House","Victoria",2]
[3779,"Unit","Victoria",2]
[3781,"House","Victoria",1]
[3781,"Unit","Victoria",3]
[3782,"House","Victoria",1]
[3782,"Unit","Victoria",2]
[3783,"House","Victoria",1]
[3783,"Unit","Victoria",2]
[3785,"House","Victoria",3]
[3786,"House","Victoria",1]
[3786,"Unit","Victoria",3]
[3787,"House","Victoria",1]
[3787,"Unit","Victoria",3]
[3788,"House","Victoria",1]
[3788,"Unit","Victoria",3]
[3789,"House","Victoria",1]
[3791,"House","Victoria",1]
[3791,"Unit","Victoria",3]
[3792,"House","Victoria",1]
[3792,"Unit","Victoria",3]
[3793,"House","Victoria",1]
[3793,"Unit","Victoria",2]
[3795,"House","Victoria",1]
[3795,"Unit","Victoria",3]
[3796,"House","Victoria",1]
[3796,"Unit","Victoria",2]
[3797,"House","Victoria",1]
[3797,"Unit","Victoria",2]
[3799,"House","Victoria",1]
[3799,"Unit","Victoria",3]
[3802,"House","Victoria",1]
[3802,"Unit","Victoria",1]
[3803,"House","Victoria",1]
[3803,"Unit","Victoria",2]
[3804,"House","Victoria",1]
[3804,"Unit","Victoria",2]
[3805,"House","Victoria",1]
[3805,"Unit","Victoria",2]
[3806,"House","Victoria",1]
[3806,"Unit","Victoria",2]
[3807,"House","Victoria",1]
[3807,"Unit","Victoria",2]
[3808,"House","Victoria",1]
[3808,"Unit","Victoria",3]
[3809,"House","Victoria",1]
[3809,"Unit","Victoria",2]
[3810,"House","Victoria",1]
[3810,"Unit","Victoria",2]
[3812,"House","Victoria",2]
[3812,"Unit","Victoria",2]
[3813,"House","Victoria",1]
[3813,"Unit","Victoria",3]
[3814,"House","Victoria",2]
[3814,"Unit","Victoria",2]
[3815,"House","Victoria",1]
[3815,"Unit","Victoria",2]
[3816,"House","Victoria",1]
[3816,"Unit","Victoria",2]
[3818,"House","Victoria",1]
[3818,"Unit","Victoria",2]
[3820,"House","Victoria",1]
[3820,"Unit","Victoria",2]
[3821,"House","Victoria",1]
[3821,"Unit","Victoria",3]
[3822,"House","Victoria",2]
[3823,"House","Victoria",1]
[3823,"Unit","Victoria",2]
[3824,"House","Victoria",1]
[3824,"Unit","Victoria",2]
[3825,"House","Victoria",1]
[3825,"Unit","Victoria",2]
[3831,"House","Victoria",1]
[3831,"Unit","Victoria",2]
[3832,"House","Victoria",2]
[3832,"Unit","Victoria",3]
[3833,"House","Victoria",2]
[3833,"Unit","Victoria",3]
[3835,"House","Victoria",1]
[3835,"Unit","Victoria",3]
[3840,"House","Victoria",1]
[3840,"Unit","Victoria",2]
[3842,"House","Victoria",1]
[3842,"Unit","Victoria",3]
[3844,"House","Victoria",1]
[3844,"Unit","Victoria",2]
[3847,"House","Victoria",1]
[3847,"Unit","Victoria",1]
[3850,"House","Victoria",1]
[3850,"Unit","Victoria",2]
[3851,"House","Victoria",2]
[3851,"Unit","Victoria",2]
[3852,"House","Victoria",3]
[3854,"House","Victoria",2]
[3854,"Unit","Victoria",3]
[3856,"House","Victoria",2]
[3857,"House","Victoria",2]
[3858,"House","Victoria",2]
[3858,"Unit","Victoria",3]
[3859,"House","Victoria",2]
[3859,"Unit","Victoria",3]
[3860,"House","Victoria",1]
[3860,"Unit","Victoria",2]
[3862,"House","Victoria",1]
[3862,"Unit","Victoria",2]
[3864,"House","Victoria",3]
[3865,"House","Victoria",2]
[3865,"Unit","Victoria",4]
[3869,"House","Victoria",2]
[3869,"Unit","Victoria",3]
[3870,"House","Victoria",2]
[3870,"Unit","Victoria",3]
[3871,"House","Victoria",2]
[3871,"Unit","Victoria",3]
[3873,"House","Victoria",2]
[3874,"House","Victoria",2]
[3874,"Unit","Victoria",4]
[3875,"House","Victoria",3]
[3875,"Unit","Victoria",3]
[3878,"House","Victoria",2]
[3878,"Unit","Victoria",4]
[3880,"House","Victoria",2]
[3880,"Unit","Victoria",3]
[3882,"House","Victoria",3]
[3882,"Unit","Victoria",4]
[3885,"House","Victoria",2]
[3885,"Unit","Victoria",4]
[3886,"House","Victoria",3]
[3886,"Unit","Victoria",4]
[3887,"House","Victoria",3]
[3887,"Unit","Victoria",4]
[3888,"House","Victoria",3]
[3888,"Unit","Victoria",3]
[3889,"House","Victoria",2]
[3889,"Unit","Victoria",4]
[3890,"House","Victoria",4]
[3890,"Unit","Victoria",4]
[3891,"House","Victoria",4]
[3891,"Unit","Victoria",4]
[3892,"House","Victoria",4]
[3892,"Unit","Victoria",4]
[3893,"House","Victoria",4]
[3895,"House","Victoria",4]
[3896,"House","Victoria",3]
[3896,"Unit","Victoria",4]
[3898,"House","Victoria",3]
[3898,"Unit","Victoria",4]
[3900,"House","Victoria",4]
[3902,"House","Victoria",3]
[3902,"Unit","Victoria",4]
[3903,"House","Victoria",3]
[3903,"Unit","Victoria",4]
[3904,"House","Victoria",3]
[3904,"Unit","Victoria",4]
[3909,"House","Victoria",3]
[3909,"Unit","Victoria",3]
[3910,"House","Victoria",1]
[3910,"Unit","Victoria",2]
[3911,"House","Victoria",1]
[3911,"Unit","Victoria",2]
[3912,"House","Victoria",1]
[3912,"Unit","Victoria",2]
[3913,"House","Victoria",1]
[3913,"Unit","Victoria",2]
[3915,"House","Victoria",1]
[3915,"Unit","Victoria",2]
[3916,"House","Victoria",2]
[3916,"Unit","Victoria",3]
[3918,"House","Victoria",1]
[3918,"Unit","Victoria",2]
[3919,"House","Victoria",1]
[3919,"Unit","Victoria",2]
[3920,"House","Victoria",3]
[3921,"House","Victoria",2]
[3922,"House","Victoria",2]
[3922,"Unit","Victoria",2]
[3923,"House","Victoria",2]
[3923,"Unit","Victoria",2]
[3925,"House","Victoria",2]
[3925,"Unit","Victoria",2]
[3926,"House","Victoria",1]
[3926,"Unit","Victoria",2]
[3927,"House","Victoria",1]
[3927,"Unit","Victoria",3]
[3928,"House","Victoria",1]
[3928,"Unit","Victoria",3]
[3929,"House","Victoria",2]
[3929,"Unit","Victoria",2]
[3930,"House","Victoria",1]
[3930,"Unit","Victoria",2]
[3931,"House","Victoria",1]
[3931,"Unit","Victoria",2]
[3933,"House","Victoria",1]
[3933,"Unit","Victoria",3]
[3934,"House","Victoria",1]
[3934,"Unit","Victoria",2]
[3936,"House","Victoria",1]
[3936,"Unit","Victoria",2]
[3937,"House","Victoria",1]
[3937,"Unit","Victoria",3]
[3938,"House","Victoria",1]
[3938,"Unit","Victoria",2]
[3939,"House","Victoria",1]
[3939,"Unit","Victoria",2]
[3940,"House","Victoria",1]
[3940,"Unit","Victoria",2]
[3941,"House","Victoria",1]
[3941,"Unit","Victoria",2]
[3942,"House","Victoria",1]
[3942,"Unit","Victoria",3]
[3943,"House","Victoria",1]
[3943,"Unit","Victoria",2]
[3944,"House","Victoria",2]
[3944,"Unit","Victoria",2]
[3945,"House","Victoria",1]
[3945,"Unit","Victoria",3]
[3946,"House","Victoria",1]
[3950,"House","Victoria",1]
[3950,"Unit","Victoria",2]
[3951,"House","Victoria",1]
[3953,"House","Victoria",2]
[3953,"Unit","Victoria",2]
[3954,"House","Victoria",3]
[3954,"Unit","Victoria",3]
[3956,"House","Victoria",2]
[3956,"Unit","Victoria",3]
[3957,"House","Victoria",1]
[3958,"House","Victoria",3]
[3959,"House","Victoria",2]
[3959,"Unit","Victoria",3]
[3960,"House","Victoria",2]
[3960,"Unit","Victoria",2]
[3962,"House","Victoria",2]
[3962,"Unit","Victoria",3]
[3964,"House","Victoria",2]
[3965,"House","Victoria",3]
[3965,"Unit","Victoria",4]
[3966,"House","Victoria",2]
[3966,"Unit","Victoria",3]
[3967,"House","Victoria",3]
[3971,"House","Victoria",2]
[3971,"Unit","Victoria",2]
[3975,"House","Victoria",1]
[3975,"Unit","Victoria",2]
[3976,"House","Victoria",1]
[3976,"Unit","Victoria",2]
[3977,"House","Victoria",1]
[3977,"Unit","Victoria",2]
[3978,"House","Victoria",1]
[3978,"Unit","Victoria",3]
[3979,"House","Victoria",1]
[3979,"Unit","Victoria",3]
[3980,"House","Victoria",1]
[3980,"Unit","Victoria",3]
[3981,"House","Victoria",1]
[3981,"Unit","Victoria",2]
[3984,"House","Victoria",1]
[3984,"Unit","Victoria",3]
[3987,"House","Victoria",2]
[3988,"House","Victoria",1]
[3988,"Unit","Victoria",3]
[3990,"House","Victoria",3]
[3991,"House","Victoria",2]
[3991,"Unit","Victoria",3]
[3992,"House","Victoria",2]
[3992,"Unit","Victoria",3]
[3995,"House","Victoria",2]
[3995,"Unit","Victoria",2]
[3996,"House","Victoria",2]
[3996,"Unit","Victoria",2]
[4000,"House","Queensland",1]
[4000,"Unit","Queensland",1]
[4005,"House","Queensland",1]
[4005,"Unit","Queensland",2]
[4006,"House","Queensland",1]
[4006,"Unit","Queensland",2]
[4007,"House","Queensland",1]
[4007,"Unit","Queensland",1]
[4008,"House","Queensland",1]
[4008,"Unit","Queensland",3]
[4009,"House","Queensland",3]
[4009,"Unit","Queensland",3]
[4010,"House","Queensland",1]
[4010,"Unit","Queensland",2]
[4011,"House","Queensland",1]
[4011,"Unit","Queensland",1]
[4012,"House","Queensland",1]
[4012,"Unit","Queensland",1]
[4013,"House","Queensland",1]
[4013,"Unit","Queensland",2]
[4014,"House","Queensland",1]
[4014,"Unit","Queensland",2]
[4017,"House","Queensland",1]
[4017,"Unit","Queensland",1]
[4018,"House","Queensland",1]
[4018,"Unit","Queensland",2]
[4019,"House","Queensland",1]
[4019,"Unit","Queensland",2]
[4020,"House","Queensland",1]
[4020,"Unit","Queensland",2]
[4021,"House","Queensland",1]
[4021,"Unit","Queensland",1]
[4022,"House","Queensland",1]
[4022,"Unit","Queensland",2]
[4025,"House","Queensland",4]
[4025,"Unit","Queensland",4]
[4030,"House","Queensland",1]
[4030,"Unit","Queensland",1]
[4031,"House","Queensland",1]
[4031,"Unit","Queensland",1]
[4032,"House","Queensland",1]
[4032,"Unit","Queensland",1]
[4034,"House","Queensland",1]
[4034,"Unit","Queensland",1]
[4035,"House","Queensland",1]
[4035,"Unit","Queensland",2]
[4036,"House","Queensland",1]
[4036,"Unit","Queensland",1]
[4037,"House","Queensland",1]
[4037,"Unit","Queensland",3]
[4051,"House","Queensland",1]
[4051,"Unit","Queensland",1]
[4053,"House","Queensland",1]
[4053,"Unit","Queensland",1]
[4054,"House","Queensland",1]
[4054,"Unit","Queensland",2]
[4055,"House","Queensland",1]
[4055,"Unit","Queensland",2]
[4059,"House","Queensland",1]
[4059,"Unit","Queensland",1]
[4060,"House","Queensland",1]
[4060,"Unit","Queensland",1]
[4061,"House","Queensland",1]
[4061,"Unit","Queensland",2]
[4064,"House","Queensland",1]
[4064,"Unit","Queensland",2]
[4065,"House","Queensland",1]
[4065,"Unit","Queensland",1]
[4066,"House","Queensland",1]
[4066,"Unit","Queensland",2]
[4067,"House","Queensland",1]
[4067,"Unit","Queensland",2]
[4068,"House","Queensland",1]
[4068,"Unit","Queensland",2]
[4069,"House","Queensland",1]
[4069,"Unit","Queensland",2]
[4070,"House","Queensland",1]
[4070,"Unit","Queensland",3]
[4073,"House","Queensland",1]
[4073,"Unit","Queensland",2]
[4074,"House","Queensland",1]
[4074,"Unit","Queensland",2]
[4075,"House","Queensland",1]
[4075,"Unit","Queensland",1]
[4076,"House","Queensland",1]
[4076,"Unit","Queensland",1]
[4077,"House","Queensland",1]
[4077,"Unit","Queensland",2]
[4078,"House","Queensland",1]
[4078,"Unit","Queensland",1]
[4101,"House","Queensland",1]
[4101,"Unit","Queensland",2]
[4102,"House","Queensland",1]
[4102,"Unit","Queensland",2]
[4103,"House","Queensland",1]
[4103,"Unit","Queensland",1]
[4104,"House","Queensland",1]
[4104,"Unit","Queensland",2]
[4105,"House","Queensland",1]
[4105,"Unit","Queensland",1]
[4106,"House","Queensland",1]
[4106,"Unit","Queensland",2]
[4107,"House","Queensland",1]
[4107,"Unit","Queensland",1]
[4108,"House","Queensland",1]
[4108,"Unit","Queensland",2]
[4109,"House","Queensland",1]
[4109,"Unit","Queensland",1]
[4110,"House","Queensland",1]
[4110,"Unit","Queensland",1]
[4111,"House","Queensland",2]
[4111,"Unit","Queensland",3]
[4112,"House","Queensland",1]
[4112,"Unit","Queensland",1]
[4113,"House","Queensland",1]
[4113,"Unit","Queensland",2]
[4114,"House","Queensland",1]
[4114,"Unit","Queensland",1]
[4115,"House","Queensland",1]
[4115,"Unit","Queensland",1]
[4116,"House","Queensland",1]
[4116,"Unit","Queensland",1]
[4117,"House","Queensland",1]
[4117,"Unit","Queensland",1]
[4118,"House","Queensland",1]
[4118,"Unit","Queensland",1]
[4119,"House","Queensland",1]
[4119,"Unit","Queensland",1]
[4120,"House","Queensland",1]
[4120,"Unit","Queensland",2]
[4121,"House","Queensland",1]
[4121,"Unit","Queensland",2]
[4122,"House","Queensland",1]
[4122,"Unit","Queensland",2]
[4123,"House","Queensland",1]
[4123,"Unit","Queensland",2]
[4124,"House","Queensland",1]
[4124,"Unit","Queensland",2]
[4125,"House","Queensland",1]
[4125,"Unit","Queensland",2]
[4127,"House","Queensland",1]
[4127,"Unit","Queensland",1]
[4128,"House","Queensland",1]
[4128,"Unit","Queensland",1]
[4129,"House","Queensland",1]
[4129,"Unit","Queensland",2]
[4130,"House","Queensland",1]
[4130,"Unit","Queensland",1]
[4131,"House","Queensland",1]
[4131,"Unit","Queensland",1]
[4132,"House","Queensland",1]
[4132,"Unit","Queensland",1]
[4133,"House","Queensland",1]
[4133,"Unit","Queensland",2]
[4151,"House","Queensland",1]
[4151,"Unit","Queensland",2]
[4152,"House","Queensland",1]
[4152,"Unit","Queensland",2]
[4153,"House","Queensland",1]
[4153,"Unit","Queensland",2]
[4154,"House","Queensland",1]
[4154,"Unit","Queensland",2]
[4155,"House","Queensland",1]
[4155,"Unit","Queensland",3]
[4156,"House","Queensland",1]
[4156,"Unit","Queensland",2]
[4157,"House","Queensland",1]
[4157,"Unit","Queensland",2]
[4158,"House","Queensland",1]
[4158,"Unit","Queensland",2]
[4159,"House","Queensland",1]
[4159,"Unit","Queensland",2]
[4160,"House","Queensland",1]
[4160,"Unit","Queensland",2]
[4161,"House","Queensland",1]
[4161,"Unit","Queensland",2]
[4163,"House","Queensland",1]
[4163,"Unit","Queensland",2]
[4164,"House","Queensland",1]
[4164,"Unit","Queensland",2]
[4165,"House","Queensland",1]
[4165,"Unit","Queensland",2]
[4169,"House","Queensland",1]
[4169,"Unit","Queensland",2]
[4170,"House","Queensland",1]
[4170,"Unit","Queensland",1]
[4171,"House","Queensland",1]
[4171,"Unit","Queensland",2]
[4172,"House","Queensland",1]
[4172,"Unit","Queensland",1]
[4173,"House","Queensland",1]
[4173,"Unit","Queensland",2]
[4174,"House","Queensland",1]
[4174,"Unit","Queensland",3]
[4178,"House","Queensland",1]
[4178,"Unit","Queensland",2]
[4179,"House","Queensland",1]
[4179,"Unit","Queensland",2]
[4183,"House","Queensland",3]
[4183,"Unit","Queensland",3]
[4184,"House","Queensland",1]
[4184,"Unit","Queensland",3]
[4205,"House","Queensland",1]
[4205,"Unit","Queensland",2]
[4207,"House","Queensland",1]
[4207,"Unit","Queensland",2]
[4208,"House","Queensland",1]
[4208,"Unit","Queensland",2]
[4209,"House","Queensland",1]
[4209,"Unit","Queensland",2]
[4210,"House","Queensland",1]
[4210,"Unit","Queensland",1]
[4211,"House","Queensland",1]
[4211,"Unit","Queensland",1]
[4212,"House","Queensland",1]
[4212,"Unit","Queensland",2]
[4213,"House","Queensland",1]
[4213,"Unit","Queensland",1]
[4214,"House","Queensland",1]
[4214,"Unit","Queensland",2]
[4215,"House","Queensland",1]
[4215,"Unit","Queensland",2]
[4216,"House","Queensland",1]
[4216,"Unit","Queensland",2]
[4217,"House","Queensland",1]
[4217,"Unit","Queensland",2]
[4218,"House","Queensland",1]
[4218,"Unit","Queensland",2]
[4220,"House","Queensland",1]
[4220,"Unit","Queensland",2]
[4221,"House","Queensland",1]
[4221,"Unit","Queensland",1]
[4223,"House","Queensland",1]
[4223,"Unit","Queensland",2]
[4224,"House","Queensland",1]
[4224,"Unit","Queensland",2]
[4225,"House","Queensland",1]
[4225,"Unit","Queensland",2]
[4226,"House","Queensland",1]
[4226,"Unit","Queensland",2]
[4227,"House","Queensland",1]
[4227,"Unit","Queensland",2]
[4228,"House","Queensland",1]
[4228,"Unit","Queensland",3]
[4270,"House","Queensland",1]
[4270,"Unit","Queensland",2]
[4272,"House","Queensland",1]
[4272,"Unit","Queensland",2]
[4275,"House","Queensland",1]
[4275,"Unit","Queensland",3]
[4280,"House","Queensland",1]
[4280,"Unit","Queensland",2]
[4285,"House","Queensland",1]
[4285,"Unit","Queensland",2]
[4287,"House","Queensland",2]
[4287,"Unit","Queensland",3]
[4300,"House","Queensland",1]
[4300,"Unit","Queensland",1]
[4301,"House","Queensland",1]
[4301,"Unit","Queensland",1]
[4303,"House","Queensland",1]
[4303,"Unit","Queensland",1]
[4304,"House","Queensland",1]
[4304,"Unit","Queensland",1]
[4305,"House","Queensland",1]
[4305,"Unit","Queensland",1]
[4306,"House","Queensland",1]
[4306,"Unit","Queensland",2]
[4307,"House","Queensland",1]
[4307,"Unit","Queensland",3]
[4309,"House","Queensland",1]
[4309,"Unit","Queensland",3]
[4310,"House","Queensland",1]
[4310,"Unit","Queensland",3]
[4311,"House","Queensland",1]
[4311,"Unit","Queensland",2]
[4312,"House","Queensland",1]
[4312,"Unit","Queensland",2]
[4313,"House","Queensland",1]
[4313,"Unit","Queensland",3]
[4314,"House","Queensland",3]
[4340,"House","Queensland",1]
[4340,"Unit","Queensland",3]
[4341,"House","Queensland",1]
[4341,"Unit","Queensland",2]
[4342,"House","Queensland",1]
[4342,"Unit","Queensland",3]
[4343,"House","Queensland",1]
[4343,"Unit","Queensland",2]
[4344,"House","Queensland",1]
[4344,"Unit","Queensland",2]
[4346,"House","Queensland",1]
[4346,"Unit","Queensland",3]
[4347,"House","Queensland",1]
[4347,"Unit","Queensland",3]
[4350,"House","Queensland",1]
[4350,"Unit","Queensland",2]
[4352,"House","Queensland",1]
[4352,"Unit","Queensland",2]
[4353,"House","Queensland",3]
[4354,"House","Queensland",1]
[4354,"Unit","Queensland",3]
[4355,"House","Queensland",2]
[4355,"Unit","Queensland",2]
[4356,"House","Queensland",1]
[4356,"Unit","Queensland",3]
[4357,"House","Queensland",1]
[4357,"Unit","Queensland",3]
[4358,"House","Queensland",1]
[4358,"Unit","Queensland",2]
[4359,"House","Queensland",2]
[4359,"Unit","Queensland",3]
[4360,"House","Queensland",2]
[4361,"House","Queensland",2]
[4361,"Unit","Queensland",1]
[4362,"House","Queensland",1]
[4362,"Unit","Queensland",3]
[4363,"House","Queensland",1]
[4364,"House","Queensland",3]
[4365,"House","Queensland",2]
[4370,"House","Queensland",1]
[4370,"Unit","Queensland",2]
[4371,"House","Queensland",2]
[4372,"House","Queensland",3]
[4373,"House","Queensland",3]
[4373,"Unit","Queensland",4]
[4374,"House","Queensland",2]
[4374,"Unit","Queensland",3]
[4375,"House","Queensland",3]
[4376,"House","Queensland",3]
[4377,"House","Queensland",2]
[4378,"House","Queensland",3]
[4380,"House","Queensland",3]
[4380,"Unit","Queensland",3]
[4381,"House","Queensland",3]
[4381,"Unit","Queensland",4]
[4382,"House","Queensland",2]
[4382,"Unit","Queensland",4]
[4383,"House","Queensland",3]
[4383,"Unit","Queensland",4]
[4384,"House","Queensland",4]
[4385,"House","Queensland",3]
[4385,"Unit","Queensland",4]
[4387,"House","Queensland",3]
[4387,"Unit","Queensland",4]
[4388,"House","Queensland",3]
[4388,"Unit","Queensland",4]
[4390,"House","Queensland",2]
[4390,"Unit","Queensland",3]
[4400,"House","Queensland",1]
[4401,"House","Queensland",1]
[4401,"Unit","Queensland",3]
[4402,"House","Queensland",2]
[4403,"House","Queensland",1]
[4403,"Unit","Queensland",3]
[4404,"House","Queensland",3]
[4405,"House","Queensland",2]
[4405,"Unit","Queensland",2]
[4406,"House","Queensland",2]
[4406,"Unit","Queensland",3]
[4407,"House","Queensland",2]
[4407,"Unit","Queensland",3]
[4408,"House","Queensland",3]
[4408,"Unit","Queensland",4]
[4410,"House","Queensland",3]
[4410,"Unit","Queensland",4]
[4411,"House","Queensland",4]
[4411,"Unit","Queensland",4]
[4412,"House","Queensland",3]
[4413,"House","Queensland",2]
[4413,"Unit","Queensland",3]
[4415,"House","Queensland",3]
[4415,"Unit","Queensland",3]
[4416,"House","Queensland",4]
[4416,"Unit","Queensland",4]
[4417,"House","Queensland",4]
[4417,"Unit","Queensland",4]
[4418,"House","Queensland",4]
[4419,"House","Queensland",4]
[4419,"Unit","Queensland",4]
[4420,"House","Queensland",3]
[4420,"Unit","Queensland",4]
[4421,"House","Queensland",3]
[4421,"Unit","Queensland",4]
[4422,"House","Queensland",4]
[4422,"Unit","Queensland",4]
[4423,"House","Queensland",4]
[4423,"Unit","Queensland",4]
[4424,"House","Queensland",4]
[4425,"House","Queensland",4]
[4425,"Unit","Queensland",4]
[4426,"House","Queensland",4]
[4427,"House","Queensland",4]
[4427,"Unit","Queensland",4]
[4428,"House","Queensland",4]
[4428,"Unit","Queensland",4]
[4454,"House","Queensland",4]
[4454,"Unit","Queensland",4]
[4455,"House","Queensland",2]
[4455,"Unit","Queensland",3]
[4461,"House","Queensland",4]
[4461,"Unit","Queensland",4]
[4462,"House","Queensland",4]
[4462,"Unit","Queensland",4]
[4465,"House","Queensland",4]
[4465,"Unit","Queensland",4]
[4467,"House","Queensland",4]
[4468,"House","Queensland",4]
[4468,"Unit","Queensland",4]
[4470,"House","Queensland",3]
[4470,"Unit","Queensland",4]
[4472,"House","Queensland",3]
[4472,"Unit","Queensland",4]
[4474,"House","Queensland",4]
[4477,"House","Queensland",4]
[4477,"Unit","Queensland",4]
[4478,"House","Queensland",4]
[4478,"Unit","Queensland",4]
[4479,"House","Queensland",4]
[4480,"House","Queensland",4]
[4480,"Unit","Queensland",4]
[4481,"House","Queensland",4]
[4481,"Unit","Queensland",4]
[4482,"House","Queensland",4]
[4482,"Unit","Queensland",4]
[4486,"House","Queensland",3]
[4486,"Unit","Queensland",4]
[4487,"House","Queensland",3]
[4487,"Unit","Queensland",4]
[4488,"House","Queensland",4]
[4488,"Unit","Queensland",4]
[4489,"House","Queensland",4]
[4490,"House","Queensland",4]
[4490,"Unit","Queensland",4]
[4491,"House","Queensland",4]
[4492,"House","Queensland",4]
[4492,"Unit","Queensland",4]
[4493,"House","Queensland",4]
[4494,"House","Queensland",4]
[4494,"Unit","Queensland",4]
[4496,"House","Queensland",4]
[4496,"Unit","Queensland",4]
[4497,"House","Queensland",4]
[4497,"Unit","Queensland",4]
[4498,"House","Queensland",4]
[4498,"Unit","Queensland",4]
[4500,"House","Queensland",1]
[4500,"Unit","Queensland",1]
[4501,"House","Queensland",1]
[4501,"Unit","Queensland",1]
[4502,"House","Queensland",1]
[4502,"Unit","Queensland",1]
[4503,"House","Queensland",1]
[4503,"Unit","Queensland",1]
[4504,"House","Queensland",1]
[4504,"Unit","Queensland",2]
[4505,"House","Queensland",1]
[4505,"Unit","Queensland",2]
[4506,"House","Queensland",1]
[4506,"Unit","Queensland",2]
[4507,"House","Queensland",1]
[4507,"Unit","Queensland",2]
[4508,"House","Queensland",1]
[4508,"Unit","Queensland",2]
[4509,"House","Queensland",1]
[4509,"Unit","Queensland",2]
[4510,"House","Queensland",1]
[4510,"Unit","Queensland",2]
[4511,"House","Queensland",1]
[4511,"Unit","Queensland",1]
[4512,"House","Queensland",1]
[4512,"Unit","Queensland",3]
[4514,"House","Queensland",1]
[4514,"Unit","Queensland",2]
[4515,"House","Queensland",1]
[4515,"Unit","Queensland",3]
[4516,"House","Queensland",1]
[4516,"Unit","Queensland",3]
[4517,"House","Queensland",1]
[4517,"Unit","Queensland",3]
[4518,"House","Queensland",1]
[4518,"Unit","Queensland",3]
[4519,"House","Queensland",1]
[4519,"Unit","Queensland",2]
[4520,"House","Queensland",1]
[4520,"Unit","Queensland",3]
[4521,"House","Queensland",1]
[4521,"Unit","Queensland",3]
[4550,"House","Queensland",1]
[4550,"Unit","Queensland",2]
[4551,"House","Queensland",1]
[4551,"Unit","Queensland",2]
[4552,"House","Queensland",1]
[4552,"Unit","Queensland",2]
[4553,"House","Queensland",1]
[4553,"Unit","Queensland",3]
[4554,"House","Queensland",1]
[4554,"Unit","Queensland",3]
[4555,"House","Queensland",1]
[4555,"Unit","Queensland",2]
[4556,"House","Queensland",1]
[4556,"Unit","Queensland",2]
[4557,"House","Queensland",1]
[4557,"Unit","Queensland",1]
[4558,"House","Queensland",1]
[4558,"Unit","Queensland",2]
[4559,"House","Queensland",1]
[4559,"Unit","Queensland",2]
[4560,"House","Queensland",1]
[4560,"Unit","Queensland",2]
[4561,"House","Queensland",1]
[4561,"Unit","Queensland",1]
[4562,"House","Queensland",1]
[4562,"Unit","Queensland",3]
[4563,"House","Queensland",1]
[4563,"Unit","Queensland",2]
[4564,"House","Queensland",1]
[4564,"Unit","Queensland",2]
[4565,"House","Queensland",1]
[4565,"Unit","Queensland",2]
[4566,"House","Queensland",2]
[4566,"Unit","Queensland",2]
[4567,"House","Queensland",1]
[4567,"Unit","Queensland",2]
[4568,"House","Queensland",1]
[4568,"Unit","Queensland",3]
[4569,"House","Queensland",1]
[4569,"Unit","Queensland",3]
[4570,"House","Queensland",1]
[4570,"Unit","Queensland",2]
[4571,"House","Queensland",1]
[4571,"Unit","Queensland",3]
[4572,"House","Queensland",1]
[4572,"Unit","Queensland",2]
[4573,"House","Queensland",1]
[4573,"Unit","Queensland",2]
[4574,"House","Queensland",1]
[4574,"Unit","Queensland",3]
[4575,"House","Queensland",1]
[4575,"Unit","Queensland",2]
[4580,"House","Queensland",1]
[4580,"Unit","Queensland",2]
[4581,"House","Queensland",2]
[4581,"Unit","Queensland",2]
[4600,"House","Queensland",1]
[4600,"Unit","Queensland",3]
[4601,"House","Queensland",3]
[4601,"Unit","Queensland",4]
[4605,"House","Queensland",1]
[4605,"Unit","Queensland",3]
[4606,"House","Queensland",2]
[4606,"Unit","Queensland",4]
[4608,"House","Queensland",2]
[4610,"House","Queensland",1]
[4610,"Unit","Queensland",2]
[4611,"House","Queensland",3]
[4612,"House","Queensland",3]
[4613,"House","Queensland",2]
[4613,"Unit","Queensland",4]
[4614,"House","Queensland",1]
[4614,"Unit","Queensland",3]
[4615,"House","Queensland",1]
[4615,"Unit","Queensland",3]
[4620,"House","Queensland",1]
[4620,"Unit","Queensland",3]
[4621,"House","Queensland",2]
[4621,"Unit","Queensland",4]
[4625,"House","Queensland",2]
[4625,"Unit","Queensland",4]
[4626,"House","Queensland",3]
[4626,"Unit","Queensland",4]
[4627,"House","Queensland",3]
[4627,"Unit","Queensland",4]
[4630,"House","Queensland",3]
[4630,"Unit","Queensland",4]
[4650,"House","Queensland",1]
[4650,"Unit","Queensland",2]
[4655,"House","Queensland",1]
[4655,"Unit","Queensland",2]
[4659,"House","Queensland",2]
[4659,"Unit","Queensland",2]
[4660,"House","Queensland",1]
[4660,"Unit","Queensland",2]
[4662,"House","Queensland",1]
[4662,"Unit","Queensland",3]
[4670,"House","Queensland",1]
[4670,"Unit","Queensland",2]
[4671,"House","Queensland",1]
[4671,"Unit","Queensland",2]
[4673,"House","Queensland",1]
[4674,"House","Queensland",3]
[4676,"House","Queensland",4]
[4677,"House","Queensland",3]
[4677,"Unit","Queensland",3]
[4678,"House","Queensland",2]
[4678,"Unit","Queensland",4]
[4680,"House","Queensland",1]
[4680,"Unit","Queensland",2]
[4694,"House","Queensland",3]
[4695,"House","Queensland",3]
[4695,"Unit","Queensland",4]
[4697,"House","Queensland",2]
[4699,"House","Queensland",3]
[4700,"House","Queensland",1]
[4700,"Unit","Queensland",2]
[4701,"House","Queensland",1]
[4701,"Unit","Queensland",2]
[4702,"House","Queensland",1]
[4702,"Unit","Queensland",2]
[4703,"House","Queensland",1]
[4703,"Unit","Queensland",2]
[4704,"House","Queensland",3]
[4705,"House","Queensland",4]
[4706,"House","Queensland",4]
[4706,"Unit","Queensland",4]
[4707,"House","Queensland",4]
[4707,"Unit","Queensland",4]
[4709,"House","Queensland",4]
[4709,"Unit","Queensland",4]
[4710,"House","Queensland",1]
[4710,"Unit","Queensland",2]
[4711,"House","Queensland",1]
[4712,"House","Queensland",3]
[4712,"Unit","Queensland",4]
[4713,"House","Queensland",4]
[4713,"Unit","Queensland",4]
[4714,"House","Queensland",2]
[4714,"Unit","Queensland",3]
[4715,"House","Queensland",2]
[4715,"Unit","Queensland",4]
[4716,"House","Queensland",2]
[4716,"Unit","Queensland",4]
[4717,"House","Queensland",2]
[4717,"Unit","Queensland",2]
[4718,"House","Queensland",2]
[4718,"Unit","Queensland",4]
[4719,"House","Queensland",3]
[4719,"Unit","Queensland",4]
[4720,"House","Queensland",2]
[4720,"Unit","Queensland",3]
[4721,"House","Queensland",4]
[4721,"Unit","Queensland",4]
[4722,"House","Queensland",4]
[4722,"Unit","Queensland",4]
[4723,"House","Queensland",3]
[4723,"Unit","Queensland",4]
[4724,"House","Queensland",3]
[4724,"Unit","Queensland",4]
[4725,"House","Queensland",4]
[4725,"Unit","Queensland",4]
[4726,"House","Queensland",4]
[4726,"Unit","Queensland",4]
[4727,"House","Queensland",4]
[4727,"Unit","Queensland",4]
[4728,"House","Queensland",4]
[4728,"Unit","Queensland",4]
[4730,"House","Queensland",4]
[4730,"Unit","Queensland",4]
[4731,"House","Queensland",4]
[4731,"Unit","Queensland",4]
[4732,"House","Queensland",4]
[4733,"House","Queensland",4]
[4735,"House","Queensland",4]
[4735,"Unit","Queensland",4]
[4736,"House","Queensland",4]
[4736,"Unit","Queensland",4]
[4737,"House","Queensland",2]
[4737,"Unit","Queensland",3]
[4738,"House","Queensland",3]
[4738,"Unit","Queensland",4]
[4739,"House","Queensland",3]
[4739,"Unit","Queensland",4]
[4740,"House","Queensland",1]
[4740,"Unit","Queensland",2]
[4741,"House","Queensland",1]
[4741,"Unit","Queensland",3]
[4742,"House","Queensland",2]
[4742,"Unit","Queensland",4]
[4743,"House","Queensland",4]
[4743,"Unit","Queensland",4]
[4744,"House","Queensland",3]
[4744,"Unit","Queensland",3]
[4745,"House","Queensland",3]
[4745,"Unit","Queensland",4]
[4746,"House","Queensland",4]
[4746,"Unit","Queensland",4]
[4750,"House","Queensland",1]
[4750,"Unit","Queensland",2]
[4751,"House","Queensland",2]
[4751,"Unit","Queensland",2]
[4753,"House","Queensland",2]
[4753,"Unit","Queensland",4]
[4754,"House","Queensland",2]
[4754,"Unit","Queensland",4]
[4756,"House","Queensland",2]
[4756,"Unit","Queensland",4]
[4757,"House","Queensland",2]
[4757,"Unit","Queensland",4]
[4798,"House","Queensland",3]
[4798,"Unit","Queensland",4]
[4799,"House","Queensland",3]
[4799,"Unit","Queensland",4]
[4800,"House","Queensland",2]
[4800,"Unit","Queensland",3]
[4802,"House","Queensland",2]
[4802,"Unit","Queensland",3]
[4804,"House","Queensland",4]
[4804,"Unit","Queensland",4]
[4805,"House","Queensland",2]
[4805,"Unit","Queensland",3]
[4806,"House","Queensland",3]
[4806,"Unit","Queensland",4]
[4807,"House","Queensland",2]
[4807,"Unit","Queensland",3]
[4808,"House","Queensland",3]
[4808,"Unit","Queensland",4]
[4809,"House","Queensland",3]
[4809,"Unit","Queensland",4]
[4810,"House","Queensland",2]
[4810,"Unit","Queensland",3]
[4811,"House","Queensland",2]
[4811,"Unit","Queensland",2]
[4812,"House","Queensland",2]
[4812,"Unit","Queensland",2]
[4814,"House","Queensland",2]
[4814,"Unit","Queensland",3]
[4815,"House","Queensland",2]
[4815,"Unit","Queensland",2]
[4816,"House","Queensland",2]
[4816,"Unit","Queensland",3]
[4817,"House","Queensland",2]
[4817,"Unit","Queensland",2]
[4818,"House","Queensland",2]
[4818,"Unit","Queensland",3]
[4819,"House","Queensland",2]
[4819,"Unit","Queensland",3]
[4820,"House","Queensland",2]
[4820,"Unit","Queensland",3]
[4821,"House","Queensland",4]
[4821,"Unit","Queensland",4]
[4822,"House","Queensland",4]
[4822,"Unit","Queensland",4]
[4823,"House","Queensland",4]
[4823,"Unit","Queensland",4]
[4824,"House","Queensland",4]
[4824,"Unit","Queensland",4]
[4825,"House","Queensland",4]
[4825,"Unit","Queensland",4]
[4828,"House","Queensland",4]
[4828,"Unit","Queensland",4]
[4829,"House","Queensland",4]
[4829,"Unit","Queensland",4]
[4830,"House","Queensland",4]
[4830,"Unit","Queensland",4]
[4849,"House","Queensland",2]
[4849,"Unit","Queensland",3]
[4850,"House","Queensland",3]
[4850,"Unit","Queensland",3]
[4852,"House","Queensland",3]
[4852,"Unit","Queensland",3]
[4854,"House","Queensland",2]
[4854,"Unit","Queensland",3]
[4855,"House","Queensland",3]
[4855,"Unit","Queensland",4]
[4856,"House","Queensland",2]
[4858,"House","Queensland",2]
[4858,"Unit","Queensland",4]
[4859,"House","Queensland",3]
[4859,"Unit","Queensland",4]
[4860,"House","Queensland",3]
[4860,"Unit","Queensland",3]
[4861,"House","Queensland",2]
[4861,"Unit","Queensland",4]
[4865,"House","Queensland",2]
[4865,"Unit","Queensland",4]
[4868,"House","Queensland",2]
[4868,"Unit","Queensland",3]
[4869,"House","Queensland",2]
[4869,"Unit","Queensland",2]
[4870,"House","Queensland",2]
[4870,"Unit","Queensland",3]
[4871,"House","Queensland",2]
[4871,"Unit","Queensland",3]
[4872,"House","Queensland",3]
[4872,"Unit","Queensland",4]
[4873,"House","Queensland",3]
[4873,"Unit","Queensland",3]
[4874,"House","Queensland",4]
[4874,"Unit","Queensland",4]
[4875,"House","Queensland",4]
[4875,"Unit","Queensland",4]
[4876,"House","Queensland",4]
[4876,"Unit","Queensland",4]
[4877,"House","Queensland",2]
[4877,"Unit","Queensland",3]
[4878,"House","Queensland",2]
[4878,"Unit","Queensland",3]
[4879,"House","Queensland",2]
[4879,"Unit","Queensland",3]
[4880,"House","Queensland",2]
[4880,"Unit","Queensland",3]
[4881,"House","Queensland",2]
[4881,"Unit","Queensland",4]
[4882,"House","Queensland",2]
[4882,"Unit","Queensland",4]
[4883,"House","Queensland",2]
[4883,"Unit","Queensland",3]
[4884,"House","Queensland",2]
[4884,"Unit","Queensland",4]
[4885,"House","Queensland",2]
[4885,"Unit","Queensland",4]
[4886,"House","Queensland",2]
[4886,"Unit","Queensland",4]
[4887,"House","Queensland",2]
[4887,"Unit","Queensland",4]
[4888,"House","Queensland",3]
[4888,"Unit","Queensland",4]
[4890,"House","Queensland",4]
[4890,"Unit","Queensland",4]
[4891,"House","Queensland",4]
[4891,"Unit","Queensland",4]
[4892,"House","Queensland",4]
[4892,"Unit","Queensland",4]
[4895,"House","Queensland",4]
[4895,"Unit","Queensland",4]
[5000,"House","South Australia",1]
[5000,"Unit","South Australia",2]
[5006,"House","South Australia",1]
[5006,"Unit","South Australia",2]
[5007,"House","South Australia",1]
[5007,"Unit","South Australia",2]
[5008,"House","South Australia",1]
[5008,"Unit","South Australia",2]
[5009,"House","South Australia",1]
[5009,"Unit","South Australia",2]
[5010,"House","South Australia",1]
[5010,"Unit","South Australia",2]
[5011,"House","South Australia",1]
[5011,"Unit","South Australia",1]
[5012,"House","South Australia",1]
[5012,"Unit","South Australia",2]
[5013,"House","South Australia",1]
[5013,"Unit","South Australia",2]
[5014,"House","South Australia",1]
[5014,"Unit","South Australia",2]
[5015,"House","South Australia",1]
[5015,"Unit","South Australia",2]
[5016,"House","South Australia",1]
[5016,"Unit","South Australia",1]
[5017,"House","South Australia",1]
[5017,"Unit","South Australia",2]
[5018,"House","South Australia",1]
[5018,"Unit","South Australia",2]
[5019,"House","South Australia",1]
[5019,"Unit","South Australia",2]
[5020,"House","South Australia",1]
[5020,"Unit","South Australia",2]
[5021,"House","South Australia",1]
[5021,"Unit","South Australia",1]
[5022,"House","South Australia",1]
[5022,"Unit","South Australia",2]
[5023,"House","South Australia",1]
[5023,"Unit","South Australia",1]
[5024,"House","South Australia",1]
[5024,"Unit","South Australia",2]
[5025,"House","South Australia",1]
[5025,"Unit","South Australia",2]
[5031,"House","South Australia",1]
[5031,"Unit","South Australia",1]
[5032,"House","South Australia",1]
[5032,"Unit","South Australia",1]
[5033,"House","South Australia",1]
[5033,"Unit","South Australia",2]
[5034,"House","South Australia",1]
[5034,"Unit","South Australia",2]
[5035,"House","South Australia",1]
[5035,"Unit","South Australia",2]
[5037,"House","South Australia",1]
[5037,"Unit","South Australia",1]
[5038,"House","South Australia",1]
[5038,"Unit","South Australia",1]
[5039,"House","South Australia",1]
[5039,"Unit","South Australia",1]
[5040,"House","South Australia",1]
[5040,"Unit","South Australia",3]
[5041,"House","South Australia",1]
[5041,"Unit","South Australia",2]
[5042,"House","South Australia",1]
[5042,"Unit","South Australia",1]
[5043,"House","South Australia",1]
[5043,"Unit","South Australia",2]
[5044,"House","South Australia",1]
[5044,"Unit","South Australia",2]
[5045,"House","South Australia",1]
[5045,"Unit","South Australia",2]
[5046,"House","South Australia",1]
[5046,"Unit","South Australia",1]
[5047,"House","South Australia",1]
[5047,"Unit","South Australia",1]
[5048,"House","South Australia",1]
[5048,"Unit","South Australia",2]
[5049,"House","South Australia",1]
[5049,"Unit","South Australia",1]
[5050,"House","South Australia",1]
[5050,"Unit","South Australia",2]
[5051,"House","South Australia",1]
[5051,"Unit","South Australia",1]
[5052,"House","South Australia",1]
[5052,"Unit","South Australia",3]
[5061,"House","South Australia",1]
[5061,"Unit","South Australia",1]
[5062,"House","South Australia",1]
[5062,"Unit","South Australia",2]
[5063,"House","South Australia",1]
[5063,"Unit","South Australia",2]
[5064,"House","South Australia",1]
[5064,"Unit","South Australia",2]
[5065,"House","South Australia",1]
[5065,"Unit","South Australia",1]
[5066,"House","South Australia",1]
[5066,"Unit","South Australia",1]
[5067,"House","South Australia",1]
[5067,"Unit","South Australia",2]
[5068,"House","South Australia",1]
[5068,"Unit","South Australia",2]
[5069,"House","South Australia",1]
[5069,"Unit","South Australia",2]
[5070,"House","South Australia",1]
[5070,"Unit","South Australia",1]
[5072,"House","South Australia",1]
[5072,"Unit","South Australia",2]
[5073,"House","South Australia",1]
[5073,"Unit","South Australia",1]
[5074,"House","South Australia",1]
[5074,"Unit","South Australia",2]
[5075,"House","South Australia",1]
[5075,"Unit","South Australia",1]
[5076,"House","South Australia",1]
[5076,"Unit","South Australia",2]
[5081,"House","South Australia",1]
[5081,"Unit","South Australia",2]
[5082,"House","South Australia",1]
[5082,"Unit","South Australia",2]
[5083,"House","South Australia",1]
[5083,"Unit","South Australia",2]
[5084,"House","South Australia",1]
[5084,"Unit","South Australia",2]
[5085,"House","South Australia",1]
[5085,"Unit","South Australia",2]
[5086,"House","South Australia",1]
[5086,"Unit","South Australia",2]
[5087,"House","South Australia",1]
[5087,"Unit","South Australia",1]
[5088,"House","South Australia",1]
[5088,"Unit","South Australia",2]
[5089,"House","South Australia",1]
[5089,"Unit","South Australia",2]
[5090,"House","South Australia",1]
[5090,"Unit","South Australia",2]
[5091,"House","South Australia",1]
[5091,"Unit","South Australia",1]
[5092,"House","South Australia",1]
[5092,"Unit","South Australia",2]
[5093,"House","South Australia",1]
[5093,"Unit","South Australia",1]
[5094,"House","South Australia",1]
[5094,"Unit","South Australia",3]
[5095,"House","South Australia",1]
[5095,"Unit","South Australia",1]
[5096,"House","South Australia",1]
[5096,"Unit","South Australia",2]
[5097,"House","South Australia",1]
[5097,"Unit","South Australia",1]
[5098,"House","South Australia",1]
[5098,"Unit","South Australia",2]
[5106,"House","South Australia",3]
[5106,"Unit","South Australia",3]
[5107,"House","South Australia",1]
[5107,"Unit","South Australia",2]
[5108,"House","South Australia",1]
[5108,"Unit","South Australia",2]
[5109,"House","South Australia",1]
[5109,"Unit","South Australia",1]
[5110,"House","South Australia",1]
[5110,"Unit","South Australia",2]
[5111,"House","South Australia",3]
[5111,"Unit","South Australia",3]
[5112,"House","South Australia",1]
[5112,"Unit","South Australia",2]
[5113,"House","South Australia",1]
[5113,"Unit","South Australia",2]
[5114,"House","South Australia",1]
[5114,"Unit","South Australia",2]
[5115,"House","South Australia",1]
[5115,"Unit","South Australia",2]
[5116,"House","South Australia",1]
[5116,"Unit","South Australia",2]
[5117,"House","South Australia",1]
[5117,"Unit","South Australia",3]
[5118,"House","South Australia",1]
[5118,"Unit","South Australia",1]
[5120,"House","South Australia",1]
[5121,"House","South Australia",1]
[5121,"Unit","South Australia",2]
[5125,"House","South Australia",1]
[5125,"Unit","South Australia",1]
[5126,"House","South Australia",1]
[5126,"Unit","South Australia",3]
[5127,"House","South Australia",1]
[5127,"Unit","South Australia",1]
[5131,"House","South Australia",1]
[5132,"House","South Australia",2]
[5133,"House","South Australia",3]
[5134,"House","South Australia",2]
[5136,"House","South Australia",2]
[5136,"Unit","South Australia",3]
[5137,"House","South Australia",3]
[5138,"House","South Australia",2]
[5139,"House","South Australia",3]
[5140,"House","South Australia",1]
[5141,"House","South Australia",2]
[5141,"Unit","South Australia",3]
[5142,"House","South Australia",3]
[5142,"Unit","South Australia",3]
[5144,"House","South Australia",1]
[5150,"House","South Australia",3]
[5151,"House","South Australia",1]
[5151,"Unit","South Australia",3]
[5152,"House","South Australia",1]
[5152,"Unit","South Australia",3]
[5153,"House","South Australia",1]
[5153,"Unit","South Australia",2]
[5154,"House","South Australia",1]
[5154,"Unit","South Australia",3]
[5155,"House","South Australia",1]
[5155,"Unit","South Australia",2]
[5156,"House","South Australia",1]
[5156,"Unit","South Australia",3]
[5157,"House","South Australia",1]
[5157,"Unit","South Australia",3]
[5158,"House","South Australia",1]
[5158,"Unit","South Australia",2]
[5159,"House","South Australia",1]
[5159,"Unit","South Australia",2]
[5160,"House","South Australia",3]
[5160,"Unit","South Australia",3]
[5161,"House","South Australia",1]
[5161,"Unit","South Australia",2]
[5162,"House","South Australia",1]
[5162,"Unit","South Australia",2]
[5163,"House","South Australia",1]
[5163,"Unit","South Australia",2]
[5164,"House","South Australia",1]
[5164,"Unit","South Australia",2]
[5165,"House","South Australia",1]
[5165,"Unit","South Australia",1]
[5166,"House","South Australia",1]
[5166,"Unit","South Australia",3]
[5167,"House","South Australia",1]
[5167,"Unit","South Australia",2]
[5168,"House","South Australia",1]
[5168,"Unit","South Australia",2]
[5169,"House","South Australia",1]
[5169,"Unit","South Australia",1]
[5170,"House","South Australia",1]
[5170,"Unit","South Australia",3]
[5171,"House","South Australia",1]
[5171,"Unit","South Australia",2]
[5172,"House","South Australia",1]
[5172,"Unit","South Australia",2]
[5173,"House","South Australia",1]
[5173,"Unit","South Australia",2]
[5174,"House","South Australia",1]
[5174,"Unit","South Australia",2]
[5201,"House","South Australia",1]
[5201,"Unit","South Australia",3]
[5202,"House","South Australia",2]
[5203,"House","South Australia",1]
[5203,"Unit","South Australia",3]
[5204,"House","South Australia",1]
[5204,"Unit","South Australia",1]
[5210,"House","South Australia",1]
[5211,"House","South Australia",1]
[5211,"Unit","South Australia",2]
[5212,"House","South Australia",1]
[5212,"Unit","South Australia",2]
[5213,"House","South Australia",1]
[5213,"Unit","South Australia",3]
[5214,"House","South Australia",1]
[5214,"Unit","South Australia",2]
[5220,"House","South Australia",4]
[5220,"Unit","South Australia",4]
[5221,"House","South Australia",4]
[5221,"Unit","South Australia",4]
[5222,"House","South Australia",3]
[5222,"Unit","South Australia",4]
[5223,"House","South Australia",3]
[5223,"Unit","South Australia",4]
[5231,"House","South Australia",2]
[5232,"House","South Australia",3]
[5233,"House","South Australia",2]
[5233,"Unit","South Australia",3]
[5234,"House","South Australia",1]
[5234,"Unit","South Australia",3]
[5235,"House","South Australia",1]
[5235,"Unit","South Australia",3]
[5236,"House","South Australia",1]
[5237,"House","South Australia",1]
[5238,"House","South Australia",2]
[5238,"Unit","South Australia",2]
[5240,"House","South Australia",3]
[5241,"House","South Australia",1]
[5241,"Unit","South Australia",2]
[5242,"House","South Australia",1]
[5242,"Unit","South Australia",3]
[5243,"House","South Australia",2]
[5243,"Unit","South Australia",2]
[5244,"House","South Australia",1]
[5244,"Unit","South Australia",3]
[5245,"House","South Australia",1]
[5245,"Unit","South Australia",2]
[5250,"House","South Australia",1]
[5250,"Unit","South Australia",2]
[5251,"House","South Australia",1]
[5251,"Unit","South Australia",2]
[5252,"House","South Australia",1]
[5252,"Unit","South Australia",3]
[5253,"House","South Australia",1]
[5253,"Unit","South Australia",2]
[5254,"House","South Australia",2]
[5254,"Unit","South Australia",3]
[5255,"House","South Australia",1]
[5255,"Unit","South Australia",2]
[5256,"House","South Australia",1]
[5256,"Unit","South Australia",3]
[5259,"House","South Australia",1]
[5259,"Unit","South Australia",3]
[5260,"House","South Australia",1]
[5260,"Unit","South Australia",3]
[5261,"House","South Australia",4]
[5262,"House","South Australia",3]
[5263,"House","South Australia",4]
[5263,"Unit","South Australia",4]
[5264,"House","South Australia",3]
[5264,"Unit","South Australia",4]
[5265,"House","South Australia",3]
[5265,"Unit","South Australia",4]
[5266,"House","South Australia",3]
[5266,"Unit","South Australia",4]
[5267,"House","South Australia",2]
[5267,"Unit","South Australia",4]
[5268,"House","South Australia",2]
[5268,"Unit","South Australia",4]
[5269,"House","South Australia",3]
[5269,"Unit","South Australia",4]
[5270,"House","South Australia",4]
[5270,"Unit","South Australia",4]
[5271,"House","South Australia",2]
[5271,"Unit","South Australia",3]
[5272,"House","South Australia",2]
[5272,"Unit","South Australia",4]
[5273,"House","South Australia",4]
[5275,"House","South Australia",2]
[5275,"Unit","South Australia",4]
[5276,"House","South Australia",3]
[5276,"Unit","South Australia",3]
[5277,"House","South Australia",2]
[5277,"Unit","South Australia",4]
[5278,"House","South Australia",2]
[5278,"Unit","South Australia",4]
[5279,"House","South Australia",3]
[5280,"House","South Australia",2]
[5280,"Unit","South Australia",3]
[5290,"House","South Australia",1]
[5290,"Unit","South Australia",2]
[5291,"House","South Australia",1]
[5291,"Unit","South Australia",3]
[5301,"House","South Australia",3]
[5302,"House","South Australia",3]
[5302,"Unit","South Australia",4]
[5303,"House","South Australia",4]
[5304,"House","South Australia",3]
[5304,"Unit","South Australia",4]
[5306,"House","South Australia",4]
[5307,"House","South Australia",2]
[5307,"Unit","South Australia",4]
[5308,"House","South Australia",4]
[5309,"House","South Australia",4]
[5310,"House","South Australia",4]
[5311,"House","South Australia",2]
[5320,"House","South Australia",2]
[5320,"Unit","South Australia",4]
[5321,"House","South Australia",3]
[5322,"House","South Australia",3]
[5322,"Unit","South Australia",4]
[5330,"House","South Australia",2]
[5330,"Unit","South Australia",3]
[5331,"House","South Australia",4]
[5331,"Unit","South Australia",4]
[5332,"House","South Australia",3]
[5333,"House","South Australia",2]
[5333,"Unit","South Australia",4]
[5340,"House","South Australia",3]
[5340,"Unit","South Australia",4]
[5341,"House","South Australia",2]
[5341,"Unit","South Australia",3]
[5342,"House","South Australia",3]
[5342,"Unit","South Australia",4]
[5343,"House","South Australia",2]
[5343,"Unit","South Australia",3]
[5344,"House","South Australia",3]
[5344,"Unit","South Australia",4]
[5345,"House","South Australia",2]
[5345,"Unit","South Australia",3]
[5346,"House","South Australia",3]
[5346,"Unit","South Australia",4]
[5350,"House","South Australia",2]
[5351,"House","South Australia",1]
[5351,"Unit","South Australia",2]
[5352,"House","South Australia",1]
[5352,"Unit","South Australia",2]
[5353,"House","South Australia",1]
[5353,"Unit","South Australia",3]
[5354,"House","South Australia",3]
[5355,"House","South Australia",1]
[5355,"Unit","South Australia",2]
[5356,"House","South Australia",1]
[5357,"House","South Australia",2]
[5357,"Unit","South Australia",4]
[5360,"House","South Australia",1]
[5360,"Unit","South Australia",3]
[5371,"House","South Australia",1]
[5371,"Unit","South Australia",3]
[5372,"House","South Australia",1]
[5372,"Unit","South Australia",3]
[5373,"House","South Australia",1]
[5373,"Unit","South Australia",3]
[5374,"House","South Australia",1]
[5374,"Unit","South Australia",3]
[5381,"House","South Australia",3]
[5400,"House","South Australia",1]
[5401,"House","South Australia",1]
[5401,"Unit","South Australia",3]
[5410,"House","South Australia",3]
[5411,"House","South Australia",3]
[5412,"House","South Australia",1]
[5412,"Unit","South Australia",3]
[5413,"House","South Australia",1]
[5413,"Unit","South Australia",3]
[5414,"House","South Australia",3]
[5415,"House","South Australia",2]
[5416,"House","South Australia",3]
[5417,"House","South Australia",2]
[5417,"Unit","South Australia",4]
[5418,"House","South Australia",4]
[5419,"House","South Australia",4]
[5420,"House","South Australia",3]
[5421,"House","South Australia",4]
[5422,"House","South Australia",2]
[5422,"Unit","South Australia",4]
[5431,"House","South Australia",3]
[5431,"Unit","South Australia",4]
[5432,"House","South Australia",4]
[5433,"House","South Australia",2]
[5433,"Unit","South Australia",4]
[5434,"House","South Australia",4]
[5434,"Unit","South Australia",4]
[5440,"House","South Australia",4]
[5451,"House","South Australia",1]
[5451,"Unit","South Australia",3]
[5452,"House","South Australia",1]
[5453,"House","South Australia",1]
[5453,"Unit","South Australia",2]
[5454,"House","South Australia",3]
[5454,"Unit","South Australia",4]
[5455,"House","South Australia",4]
[5460,"House","South Australia",2]
[5460,"Unit","South Australia",3]
[5461,"House","South Australia",1]
[5461,"Unit","South Australia",2]
[5462,"House","South Australia",3]
[5462,"Unit","South Australia",4]
[5464,"House","South Australia",2]
[5470,"House","South Australia",3]
[5471,"House","South Australia",4]
[5472,"House","South Australia",3]
[5473,"House","South Australia",3]
[5473,"Unit","South Australia",4]
[5480,"House","South Australia",2]
[5480,"Unit","South Australia",4]
[5481,"House","South Australia",3]
[5481,"Unit","South Australia",4]
[5482,"House","South Australia",3]
[5482,"Unit","South Australia",4]
[5483,"House","South Australia",3]
[5485,"House","South Australia",3]
[5485,"Unit","South Australia",4]
[5490,"House","South Australia",3]
[5491,"House","South Australia",3]
[5491,"Unit","South Australia",4]
[5493,"House","South Australia",4]
[5495,"House","South Australia",2]
[5501,"House","South Australia",1]
[5501,"Unit","South Australia",3]
[5502,"House","South Australia",2]
[5502,"Unit","South Australia",3]
[5510,"House","South Australia",4]
[5520,"House","South Australia",3]
[5520,"Unit","South Australia",4]
[5521,"House","South Australia",2]
[5522,"House","South Australia",2]
[5522,"Unit","South Australia",4]
[5523,"House","South Australia",2]
[5523,"Unit","South Australia",4]
[5540,"House","South Australia",2]
[5540,"Unit","South Australia",4]
[5550,"House","South Australia",2]
[5550,"Unit","South Australia",3]
[5552,"House","South Australia",3]
[5554,"House","South Australia",2]
[5554,"Unit","South Australia",3]
[5555,"House","South Australia",2]
[5556,"House","South Australia",2]
[5556,"Unit","South Australia",3]
[5558,"House","South Australia",2]
[5558,"Unit","South Australia",3]
[5560,"House","South Australia",4]
[5560,"Unit","South Australia",4]
[5570,"House","South Australia",2]
[5570,"Unit","South Australia",4]
[5571,"House","South Australia",2]
[5571,"Unit","South Australia",4]
[5572,"House","South Australia",4]
[5573,"House","South Australia",2]
[5573,"Unit","South Australia",4]
[5575,"House","South Australia",2]
[5575,"Unit","South Australia",4]
[5576,"House","South Australia",3]
[5576,"Unit","South Australia",4]
[5577,"House","South Australia",4]
[5577,"Unit","South Australia",4]
[5580,"House","South Australia",2]
[5581,"House","South Australia",2]
[5581,"Unit","South Australia",4]
[5582,"House","South Australia",3]
[5582,"Unit","South Australia",4]
[5583,"House","South Australia",3]
[5583,"Unit","South Australia",4]
[5600,"House","South Australia",2]
[5600,"Unit","South Australia",2]
[5601,"House","South Australia",2]
[5602,"House","South Australia",2]
[5602,"Unit","South Australia",4]
[5603,"House","South Australia",4]
[5603,"Unit","South Australia",4]
[5604,"House","South Australia",4]
[5604,"Unit","South Australia",4]
[5605,"House","South Australia",3]
[5605,"Unit","South Australia",4]
[5606,"House","South Australia",3]
[5606,"Unit","South Australia",4]
[5607,"House","South Australia",3]
[5607,"Unit","South Australia",4]
[5608,"House","South Australia",2]
[5608,"Unit","South Australia",3]
[5609,"House","South Australia",2]
[5609,"Unit","South Australia",3]
[5611,"House","South Australia",4]
[5630,"House","South Australia",4]
[5631,"House","South Australia",3]
[5631,"Unit","South Australia",4]
[5632,"House","South Australia",4]
[5633,"House","South Australia",4]
[5633,"Unit","South Australia",4]
[5640,"House","South Australia",4]
[5640,"Unit","South Australia",4]
[5641,"House","South Australia",4]
[5641,"Unit","South Australia",4]
[5642,"House","South Australia",4]
[5642,"Unit","South Australia",4]
[5650,"House","South Australia",4]
[5651,"House","South Australia",4]
[5652,"House","South Australia",3]
[5652,"Unit","South Australia",4]
[5653,"House","South Australia",4]
[5654,"House","South Australia",4]
[5654,"Unit","South Australia",4]
[5655,"House","South Australia",4]
[5660,"House","South Australia",4]
[5661,"House","South Australia",4]
[5670,"House","South Australia",4]
[5670,"Unit","South Australia",4]
[5671,"House","South Australia",4]
[5680,"House","South Australia",3]
[5680,"Unit","South Australia",4]
[5690,"House","South Australia",4]
[5690,"Unit","South Australia",4]
[5700,"House","South Australia",2]
[5700,"Unit","South Australia",3]
[5701,"House","South Australia",4]
[5710,"House","South Australia",2]
[5710,"Unit","South Australia",4]
[5713,"House","South Australia",4]
[5715,"House","South Australia",4]
[5717,"House","South Australia",4]
[5719,"House","South Australia",4]
[5720,"House","South Australia",4]
[5720,"Unit","South Australia",4]
[5722,"House","South Australia",3]
[5722,"Unit","South Australia",4]
[5723,"House","South Australia",4]
[5723,"Unit","South Australia",4]
[5724,"House","South Australia",4]
[5725,"House","South Australia",4]
[5725,"Unit","South Australia",4]
[5730,"House","South Australia",4]
[5731,"House","South Australia",4]
[5731,"Unit","South Australia",4]
[5732,"House","South Australia",4]
[5732,"Unit","South Australia",4]
[5733,"House","South Australia",4]
[5734,"House","South Australia",4]
[5734,"Unit","South Australia",4]
[5950,"House","South Australia",3]
[5950,"Unit","South Australia",3]
[6000,"House","Western Australia",1]
[6000,"Unit","Western Australia",2]
[6003,"House","Western Australia",1]
[6003,"Unit","Western Australia",2]
[6004,"House","Western Australia",1]
[6004,"Unit","Western Australia",2]
[6005,"House","Western Australia",1]
[6005,"Unit","Western Australia",1]
[6006,"House","Western Australia",1]
[6006,"Unit","Western Australia",1]
[6007,"House","Western Australia",1]
[6007,"Unit","Western Australia",2]
[6008,"House","Western Australia",1]
[6008,"Unit","Western Australia",2]
[6009,"House","Western Australia",1]
[6009,"Unit","Western Australia",2]
[6010,"House","Western Australia",1]
[6010,"Unit","Western Australia",2]
[6011,"House","Western Australia",1]
[6011,"Unit","Western Australia",2]
[6012,"House","Western Australia",1]
[6012,"Unit","Western Australia",1]
[6014,"House","Western Australia",1]
[6014,"Unit","Western Australia",1]
[6015,"House","Western Australia",1]
[6015,"Unit","Western Australia",2]
[6016,"House","Western Australia",1]
[6016,"Unit","Western Australia",1]
[6017,"House","Western Australia",1]
[6017,"Unit","Western Australia",1]
[6018,"House","Western Australia",1]
[6018,"Unit","Western Australia",2]
[6019,"House","Western Australia",1]
[6019,"Unit","Western Australia",2]
[6020,"House","Western Australia",1]
[6020,"Unit","Western Australia",1]
[6021,"House","Western Australia",1]
[6021,"Unit","Western Australia",1]
[6022,"House","Western Australia",1]
[6022,"Unit","Western Australia",3]
[6023,"House","Western Australia",1]
[6023,"Unit","Western Australia",2]
[6024,"House","Western Australia",1]
[6024,"Unit","Western Australia",2]
[6025,"House","Western Australia",1]
[6025,"Unit","Western Australia",2]
[6026,"House","Western Australia",1]
[6026,"Unit","Western Australia",2]
[6027,"House","Western Australia",1]
[6027,"Unit","Western Australia",1]
[6028,"House","Western Australia",1]
[6028,"Unit","Western Australia",1]
[6029,"House","Western Australia",1]
[6029,"Unit","Western Australia",2]
[6030,"House","Western Australia",1]
[6030,"Unit","Western Australia",1]
[6031,"House","Western Australia",1]
[6031,"Unit","Western Australia",2]
[6032,"House","Western Australia",2]
[6033,"House","Western Australia",2]
[6034,"House","Western Australia",1]
[6035,"House","Western Australia",1]
[6035,"Unit","Western Australia",1]
[6036,"House","Western Australia",1]
[6036,"Unit","Western Australia",1]
[6037,"House","Western Australia",1]
[6037,"Unit","Western Australia",3]
[6038,"House","Western Australia",1]
[6038,"Unit","Western Australia",2]
[6041,"House","Western Australia",1]
[6041,"Unit","Western Australia",3]
[6042,"House","Western Australia",1]
[6042,"Unit","Western Australia",2]
[6043,"House","Western Australia",2]
[6043,"Unit","Western Australia",4]
[6044,"House","Western Australia",3]
[6044,"Unit","Western Australia",3]
[6050,"House","Western Australia",1]
[6050,"Unit","Western Australia",1]
[6051,"House","Western Australia",1]
[6051,"Unit","Western Australia",1]
[6052,"House","Western Australia",1]
[6052,"Unit","Western Australia",1]
[6053,"House","Western Australia",1]
[6053,"Unit","Western Australia",1]
[6054,"House","Western Australia",1]
[6054,"Unit","Western Australia",2]
[6055,"House","Western Australia",1]
[6055,"Unit","Western Australia",1]
[6056,"House","Western Australia",1]
[6056,"Unit","Western Australia",1]
[6057,"House","Western Australia",1]
[6057,"Unit","Western Australia",2]
[6058,"House","Western Australia",1]
[6058,"Unit","Western Australia",1]
[6059,"House","Western Australia",1]
[6059,"Unit","Western Australia",1]
[6060,"House","Western Australia",1]
[6060,"Unit","Western Australia",1]
[6061,"House","Western Australia",1]
[6061,"Unit","Western Australia",1]
[6062,"House","Western Australia",1]
[6062,"Unit","Western Australia",1]
[6063,"House","Western Australia",1]
[6063,"Unit","Western Australia",2]
[6064,"House","Western Australia",1]
[6064,"Unit","Western Australia",2]
[6065,"House","Western Australia",1]
[6065,"Unit","Western Australia",2]
[6066,"House","Western Australia",1]
[6066,"Unit","Western Australia",2]
[6067,"House","Western Australia",3]
[6068,"House","Western Australia",3]
[6069,"House","Western Australia",1]
[6069,"Unit","Western Australia",1]
[6070,"House","Western Australia",1]
[6070,"Unit","Western Australia",3]
[6071,"House","Western Australia",1]
[6071,"Unit","Western Australia",3]
[6072,"House","Western Australia",1]
[6072,"Unit","Western Australia",3]
[6073,"House","Western Australia",1]
[6073,"Unit","Western Australia",2]
[6074,"House","Western Australia",1]
[6074,"Unit","Western Australia",3]
[6076,"House","Western Australia",1]
[6076,"Unit","Western Australia",2]
[6077,"House","Western Australia",1]
[6077,"Unit","Western Australia",3]
[6078,"House","Western Australia",1]
[6078,"Unit","Western Australia",3]
[6079,"House","Western Australia",3]
[6081,"House","Western Australia",1]
[6081,"Unit","Western Australia",3]
[6082,"House","Western Australia",1]
[6082,"Unit","Western Australia",3]
[6083,"House","Western Australia",1]
[6083,"Unit","Western Australia",3]
[6084,"House","Western Australia",1]
[6084,"Unit","Western Australia",3]
[6090,"House","Western Australia",3]
[6090,"Unit","Western Australia",3]
[6100,"House","Western Australia",1]
[6100,"Unit","Western Australia",1]
[6101,"House","Western Australia",1]
[6101,"Unit","Western Australia",1]
[6102,"House","Western Australia",1]
[6102,"Unit","Western Australia",1]
[6103,"House","Western Australia",1]
[6103,"Unit","Western Australia",1]
[6104,"House","Western Australia",1]
[6104,"Unit","Western Australia",1]
[6105,"House","Western Australia",1]
[6105,"Unit","Western Australia",1]
[6106,"House","Western Australia",3]
[6106,"Unit","Western Australia",3]
[6107,"House","Western Australia",1]
[6107,"Unit","Western Australia",1]
[6108,"House","Western Australia",1]
[6108,"Unit","Western Australia",1]
[6109,"House","Western Australia",1]
[6109,"Unit","Western Australia",1]
[6110,"House","Western Australia",1]
[6110,"Unit","Western Australia",1]
[6111,"House","Western Australia",1]
[6111,"Unit","Western Australia",1]
[6112,"House","Western Australia",1]
[6112,"Unit","Western Australia",1]
[6121,"House","Western Australia",1]
[6121,"Unit","Western Australia",3]
[6122,"House","Western Australia",1]
[6122,"Unit","Western Australia",2]
[6123,"House","Western Australia",1]
[6123,"Unit","Western Australia",3]
[6124,"House","Western Australia",1]
[6124,"Unit","Western Australia",3]
[6125,"House","Western Australia",1]
[6125,"Unit","Western Australia",3]
[6126,"House","Western Australia",3]
[6126,"Unit","Western Australia",3]
[6147,"House","Western Australia",1]
[6147,"Unit","Western Australia",1]
[6148,"House","Western Australia",1]
[6148,"Unit","Western Australia",1]
[6149,"House","Western Australia",1]
[6149,"Unit","Western Australia",2]
[6150,"House","Western Australia",1]
[6150,"Unit","Western Australia",2]
[6151,"House","Western Australia",1]
[6151,"Unit","Western Australia",2]
[6152,"House","Western Australia",1]
[6152,"Unit","Western Australia",2]
[6153,"House","Western Australia",1]
[6153,"Unit","Western Australia",2]
[6154,"House","Western Australia",1]
[6154,"Unit","Western Australia",2]
[6155,"House","Western Australia",1]
[6155,"Unit","Western Australia",2]
[6156,"House","Western Australia",1]
[6156,"Unit","Western Australia",2]
[6157,"House","Western Australia",1]
[6157,"Unit","Western Australia",1]
[6158,"House","Western Australia",1]
[6158,"Unit","Western Australia",1]
[6159,"House","Western Australia",1]
[6159,"Unit","Western Australia",2]
[6160,"House","Western Australia",1]
[6160,"Unit","Western Australia",2]
[6161,"House","Western Australia",4]
[6162,"House","Western Australia",1]
[6162,"Unit","Western Australia",1]
[6163,"House","Western Australia",1]
[6163,"Unit","Western Australia",1]
[6164,"House","Western Australia",1]
[6164,"Unit","Western Australia",1]
[6165,"House","Western Australia",3]
[6165,"Unit","Western Australia",3]
[6166,"House","Western Australia",1]
[6166,"Unit","Western Australia",1]
[6167,"House","Western Australia",1]
[6167,"Unit","Western Australia",1]
[6168,"House","Western Australia",1]
[6168,"Unit","Western Australia",1]
[6169,"House","Western Australia",1]
[6169,"Unit","Western Australia",1]
[6170,"House","Western Australia",1]
[6170,"Unit","Western Australia",1]
[6171,"House","Western Australia",1]
[6171,"Unit","Western Australia",1]
[6172,"House","Western Australia",1]
[6172,"Unit","Western Australia",1]
[6173,"House","Western Australia",1]
[6173,"Unit","Western Australia",2]
[6174,"House","Western Australia",1]
[6174,"Unit","Western Australia",3]
[6175,"House","Western Australia",1]
[6175,"Unit","Western Australia",3]
[6176,"House","Western Australia",1]
[6176,"Unit","Western Australia",3]
[6180,"House","Western Australia",1]
[6180,"Unit","Western Australia",2]
[6181,"House","Western Australia",2]
[6182,"House","Western Australia",3]
[6207,"House","Western Australia",1]
[6207,"Unit","Western Australia",3]
[6208,"House","Western Australia",1]
[6208,"Unit","Western Australia",1]
[6209,"House","Western Australia",1]
[6209,"Unit","Western Australia",3]
[6210,"House","Western Australia",1]
[6210,"Unit","Western Australia",1]
[6211,"House","Western Australia",1]
[6211,"Unit","Western Australia",1]
[6213,"House","Western Australia",2]
[6213,"Unit","Western Australia",3]
[6214,"House","Western Australia",2]
[6214,"Unit","Western Australia",3]
[6215,"House","Western Australia",1]
[6215,"Unit","Western Australia",2]
[6218,"House","Western Australia",2]
[6218,"Unit","Western Australia",3]
[6220,"House","Western Australia",1]
[6220,"Unit","Western Australia",2]
[6221,"House","Western Australia",3]
[6223,"House","Western Australia",3]
[6224,"House","Western Australia",1]
[6224,"Unit","Western Australia",3]
[6225,"House","Western Australia",1]
[6225,"Unit","Western Australia",1]
[6226,"House","Western Australia",1]
[6226,"Unit","Western Australia",3]
[6227,"House","Western Australia",1]
[6227,"Unit","Western Australia",3]
[6228,"House","Western Australia",2]
[6229,"House","Western Australia",3]
[6229,"Unit","Western Australia",3]
[6230,"House","Western Australia",1]
[6230,"Unit","Western Australia",2]
[6232,"House","Western Australia",1]
[6232,"Unit","Western Australia",1]
[6233,"House","Western Australia",1]
[6233,"Unit","Western Australia",2]
[6236,"House","Western Australia",1]
[6236,"Unit","Western Australia",3]
[6237,"House","Western Australia",1]
[6237,"Unit","Western Australia",3]
[6239,"House","Western Australia",2]
[6239,"Unit","Western Australia",3]
[6240,"House","Western Australia",3]
[6243,"House","Western Australia",3]
[6244,"House","Western Australia",2]
[6244,"Unit","Western Australia",4]
[6251,"House","Western Australia",1]
[6252,"House","Western Australia",3]
[6253,"House","Western Australia",1]
[6253,"Unit","Western Australia",3]
[6254,"House","Western Australia",2]
[6254,"Unit","Western Australia",4]
[6255,"House","Western Australia",1]
[6255,"Unit","Western Australia",3]
[6256,"House","Western Australia",3]
[6258,"House","Western Australia",2]
[6258,"Unit","Western Australia",3]
[6260,"House","Western Australia",2]
[6260,"Unit","Western Australia",4]
[6262,"House","Western Australia",2]
[6262,"Unit","Western Australia",4]
[6271,"House","Western Australia",1]
[6271,"Unit","Western Australia",3]
[6275,"House","Western Australia",2]
[6275,"Unit","Western Australia",3]
[6280,"House","Western Australia",1]
[6280,"Unit","Western Australia",2]
[6281,"House","Western Australia",1]
[6281,"Unit","Western Australia",2]
[6282,"House","Western Australia",1]
[6282,"Unit","Western Australia",2]
[6284,"House","Western Australia",1]
[6284,"Unit","Western Australia",3]
[6285,"House","Western Australia",1]
[6285,"Unit","Western Australia",1]
[6286,"House","Western Australia",1]
[6286,"Unit","Western Australia",3]
[6288,"House","Western Australia",2]
[6290,"House","Western Australia",2]
[6290,"Unit","Western Australia",2]
[6302,"House","Western Australia",1]
[6302,"Unit","Western Australia",2]
[6304,"House","Western Australia",3]
[6304,"Unit","Western Australia",4]
[6306,"House","Western Australia",2]
[6306,"Unit","Western Australia",4]
[6308,"House","Western Australia",2]
[6308,"Unit","Western Australia",4]
[6309,"House","Western Australia",4]
[6309,"Unit","Western Australia",4]
[6311,"House","Western Australia",3]
[6311,"Unit","Western Australia",4]
[6312,"House","Western Australia",2]
[6312,"Unit","Western Australia",3]
[6313,"House","Western Australia",4]
[6315,"House","Western Australia",2]
[6315,"Unit","Western Australia",4]
[6316,"House","Western Australia",3]
[6316,"Unit","Western Australia",4]
[6317,"House","Western Australia",3]
[6317,"Unit","Western Australia",4]
[6318,"House","Western Australia",3]
[6318,"Unit","Western Australia",4]
[6320,"House","Western Australia",3]
[6320,"Unit","Western Australia",4]
[6321,"House","Western Australia",2]
[6321,"Unit","Western Australia",4]
[6322,"House","Western Australia",4]
[6323,"House","Western Australia",3]
[6323,"Unit","Western Australia",4]
[6324,"House","Western Australia",2]
[6324,"Unit","Western Australia",2]
[6326,"House","Western Australia",3]
[6327,"House","Western Australia",4]
[6328,"House","Western Australia",3]
[6330,"House","Western Australia",2]
[6330,"Unit","Western Australia",3]
[6333,"House","Western Australia",2]
[6333,"Unit","Western Australia",3]
[6335,"House","Western Australia",4]
[6335,"Unit","Western Australia",4]
[6336,"House","Western Australia",4]
[6337,"House","Western Australia",4]
[6337,"Unit","Western Australia",4]
[6338,"House","Western Australia",3]
[6338,"Unit","Western Australia",4]
[6341,"House","Western Australia",4]
[6341,"Unit","Western Australia",4]
[6343,"House","Western Australia",4]
[6346,"House","Western Australia",4]
[6346,"Unit","Western Australia",4]
[6348,"House","Western Australia",4]
[6348,"Unit","Western Australia",4]
[6350,"House","Western Australia",4]
[6350,"Unit","Western Australia",4]
[6351,"House","Western Australia",4]
[6352,"House","Western Australia",4]
[6352,"Unit","Western Australia",4]
[6353,"House","Western Australia",4]
[6353,"Unit","Western Australia",4]
[6355,"House","Western Australia",4]
[6355,"Unit","Western Australia",4]
[6356,"House","Western Australia",4]
[6356,"Unit","Western Australia",4]
[6357,"House","Western Australia",4]
[6358,"House","Western Australia",4]
[6358,"Unit","Western Australia",4]
[6359,"House","Western Australia",4]
[6359,"Unit","Western Australia",4]
[6361,"House","Western Australia",4]
[6363,"House","Western Australia",4]
[6365,"House","Western Australia",4]
[6365,"Unit","Western Australia",4]
[6367,"House","Western Australia",4]
[6367,"Unit","Western Australia",4]
[6368,"House","Western Australia",4]
[6369,"House","Western Australia",4]
[6369,"Unit","Western Australia",4]
[6370,"House","Western Australia",3]
[6370,"Unit","Western Australia",4]
[6372,"House","Western Australia",4]
[6373,"House","Western Australia",4]
[6375,"House","Western Australia",3]
[6375,"Unit","Western Australia",4]
[6383,"House","Western Australia",4]
[6383,"Unit","Western Australia",4]
[6384,"House","Western Australia",4]
[6385,"House","Western Australia",4]
[6386,"House","Western Australia",4]
[6390,"House","Western Australia",1]
[6390,"Unit","Western Australia",2]
[6391,"House","Western Australia",2]
[6391,"Unit","Western Australia",3]
[6392,"House","Western Australia",4]
[6392,"Unit","Western Australia",4]
[6393,"House","Western Australia",4]
[6394,"House","Western Australia",4]
[6395,"House","Western Australia",2]
[6395,"Unit","Western Australia",4]
[6396,"House","Western Australia",3]
[6397,"House","Western Australia",3]
[6398,"House","Western Australia",3]
[6398,"Unit","Western Australia",4]
[6401,"House","Western Australia",1]
[6401,"Unit","Western Australia",2]
[6403,"House","Western Australia",1]
[6405,"House","Western Australia",4]
[6407,"House","Western Australia",2]
[6407,"Unit","Western Australia",4]
[6409,"House","Western Australia",4]
[6409,"Unit","Western Australia",4]
[6410,"House","Western Australia",3]
[6410,"Unit","Western Australia",4]
[6411,"House","Western Australia",3]
[6412,"House","Western Australia",4]
[6413,"House","Western Australia",4]
[6414,"House","Western Australia",4]
[6415,"House","Western Australia",3]
[6415,"Unit","Western Australia",4]
[6418,"House","Western Australia",4]
[6418,"Unit","Western Australia",4]
[6419,"House","Western Australia",4]
[6420,"House","Western Australia",4]
[6421,"House","Western Australia",4]
[6422,"House","Western Australia",4]
[6423,"House","Western Australia",4]
[6423,"Unit","Western Australia",4]
[6424,"House","Western Australia",4]
[6425,"House","Western Australia",4]
[6426,"House","Western Australia",4]
[6426,"Unit","Western Australia",4]
[6428,"House","Western Australia",4]
[6429,"House","Western Australia",4]
[6429,"Unit","Western Australia",4]
[6430,"House","Western Australia",2]
[6430,"Unit","Western Australia",3]
[6431,"House","Western Australia",4]
[6432,"House","Western Australia",3]
[6432,"Unit","Western Australia",3]
[6434,"House","Western Australia",4]
[6434,"Unit","Western Australia",4]
[6436,"House","Western Australia",4]
[6436,"Unit","Western Australia",4]
[6437,"House","Western Australia",4]
[6438,"House","Western Australia",4]
[6438,"Unit","Western Australia",4]
[6440,"House","Western Australia",4]
[6440,"Unit","Western Australia",4]
[6442,"House","Western Australia",2]
[6442,"Unit","Western Australia",4]
[6443,"House","Western Australia",4]
[6443,"Unit","Western Australia",4]
[6445,"House","Western Australia",4]
[6446,"House","Western Australia",4]
[6447,"House","Western Australia",4]
[6448,"House","Western Australia",4]
[6450,"House","Western Australia",4]
[6450,"Unit","Western Australia",4]
[6452,"House","Western Australia",4]
[6460,"House","Western Australia",3]
[6460,"Unit","Western Australia",4]
[6461,"House","Western Australia",3]
[6461,"Unit","Western Australia",4]
[6462,"House","Western Australia",4]
[6463,"House","Western Australia",4]
[6465,"House","Western Australia",4]
[6466,"House","Western Australia",4]
[6467,"House","Western Australia",4]
[6468,"House","Western Australia",4]
[6468,"Unit","Western Australia",4]
[6470,"House","Western Australia",4]
[6472,"House","Western Australia",4]
[6473,"House","Western Australia",4]
[6475,"House","Western Australia",4]
[6475,"Unit","Western Australia",4]
[6476,"House","Western Australia",4]
[6477,"House","Western Australia",4]
[6477,"Unit","Western Australia",4]
[6479,"House","Western Australia",4]
[6479,"Unit","Western Australia",4]
[6480,"House","Western Australia",4]
[6484,"House","Western Australia",4]
[6485,"House","Western Australia",4]
[6485,"Unit","Western Australia",4]
[6487,"House","Western Australia",4]
[6488,"House","Western Australia",4]
[6488,"Unit","Western Australia",4]
[6489,"House","Western Australia",4]
[6489,"Unit","Western Australia",4]
[6490,"House","Western Australia",4]
[6490,"Unit","Western Australia",4]
[6501,"House","Western Australia",1]
[6502,"House","Western Australia",1]
[6502,"Unit","Western Australia",3]
[6503,"House","Western Australia",1]
[6503,"Unit","Western Australia",3]
[6504,"House","Western Australia",4]
[6505,"House","Western Australia",4]
[6506,"House","Western Australia",4]
[6507,"House","Western Australia",3]
[6509,"House","Western Australia",4]
[6510,"House","Western Australia",2]
[6510,"Unit","Western Australia",4]
[6511,"House","Western Australia",3]
[6511,"Unit","Western Australia",4]
[6512,"House","Western Australia",4]
[6513,"House","Western Australia",4]
[6514,"House","Western Australia",3]
[6514,"Unit","Western Australia",4]
[6515,"House","Western Australia",4]
[6515,"Unit","Western Australia",4]
[6516,"House","Western Australia",3]
[6516,"Unit","Western Australia",4]
[6517,"House","Western Australia",4]
[6517,"Unit","Western Australia",4]
[6518,"House","Western Australia",4]
[6518,"Unit","Western Australia",4]
[6519,"House","Western Australia",4]
[6519,"Unit","Western Australia",4]
[6521,"House","Western Australia",4]
[6521,"Unit","Western Australia",4]
[6522,"House","Western Australia",4]
[6522,"Unit","Western Australia",4]
[6525,"House","Western Australia",3]
[6525,"Unit","Western Australia",3]
[6528,"House","Western Australia",3]
[6528,"Unit","Western Australia",4]
[6530,"House","Western Australia",2]
[6530,"Unit","Western Australia",2]
[6532,"House","Western Australia",2]
[6532,"Unit","Western Australia",4]
[6535,"House","Western Australia",3]
[6535,"Unit","Western Australia",4]
[6536,"House","Western Australia",4]
[6536,"Unit","Western Australia",4]
[6537,"House","Western Australia",4]
[6537,"Unit","Western Australia",4]
[6556,"House","Western Australia",1]
[6558,"House","Western Australia",1]
[6560,"House","Western Australia",1]
[6560,"Unit","Western Australia",3]
[6562,"House","Western Australia",2]
[6562,"Unit","Western Australia",3]
[6564,"House","Western Australia",3]
[6566,"House","Western Australia",1]
[6566,"Unit","Western Australia",3]
[6567,"House","Western Australia",2]
[6568,"House","Western Australia",4]
[6569,"House","Western Australia",4]
[6569,"Unit","Western Australia",4]
[6571,"House","Western Australia",4]
[6571,"Unit","Western Australia",4]
[6572,"House","Western Australia",4]
[6574,"House","Western Australia",4]
[6575,"House","Western Australia",4]
[6603,"House","Western Australia",3]
[6603,"Unit","Western Australia",4]
[6605,"House","Western Australia",4]
[6606,"House","Western Australia",4]
[6608,"House","Western Australia",4]
[6609,"House","Western Australia",4]
[6609,"Unit","Western Australia",4]
[6612,"House","Western Australia",4]
[6613,"House","Western Australia",4]
[6614,"House","Western Australia",4]
[6616,"House","Western Australia",4]
[6620,"House","Western Australia",4]
[6620,"Unit","Western Australia",4]
[6623,"House","Western Australia",4]
[6623,"Unit","Western Australia",4]
[6625,"House","Western Australia",4]
[6627,"House","Western Australia",4]
[6628,"House","Western Australia",4]
[6630,"House","Western Australia",4]
[6630,"Unit","Western Australia",4]
[6631,"House","Western Australia",4]
[6632,"House","Western Australia",4]
[6635,"House","Western Australia",4]
[6635,"Unit","Western Australia",4]
[6638,"House","Western Australia",4]
[6638,"Unit","Western Australia",4]
[6639,"House","Western Australia",4]
[6639,"Unit","Western Australia",4]
[6640,"House","Western Australia",4]
[6642,"House","Western Australia",4]
[6642,"Unit","Western Australia",4]
[6646,"House","Western Australia",4]
[6646,"Unit","Western Australia",4]
[6701,"House","Western Australia",4]
[6701,"Unit","Western Australia",4]
[6705,"House","Western Australia",4]
[6705,"Unit","Western Australia",4]
[6707,"House","Western Australia",4]
[6707,"Unit","Western Australia",4]
[6710,"House","Western Australia",4]
[6710,"Unit","Western Australia",4]
[6713,"House","Western Australia",4]
[6713,"Unit","Western Australia",4]
[6714,"House","Western Australia",4]
[6714,"Unit","Western Australia",4]
[6716,"House","Western Australia",4]
[6716,"Unit","Western Australia",4]
[6718,"House","Western Australia",4]
[6718,"Unit","Western Australia",4]
[6720,"House","Western Australia",4]
[6720,"Unit","Western Australia",4]
[6721,"House","Western Australia",4]
[6721,"Unit","Western Australia",4]
[6722,"House","Western Australia",4]
[6722,"Unit","Western Australia",4]
[6725,"House","Western Australia",3]
[6725,"Unit","Western Australia",4]
[6726,"House","Western Australia",3]
[6726,"Unit","Western Australia",4]
[6728,"House","Western Australia",4]
[6728,"Unit","Western Australia",4]
[6740,"House","Western Australia",4]
[6740,"Unit","Western Australia",4]
[6743,"House","Western Australia",4]
[6743,"Unit","Western Australia",4]
[6751,"House","Western Australia",4]
[6751,"Unit","Western Australia",4]
[6753,"House","Western Australia",4]
[6753,"Unit","Western Australia",4]
[6754,"House","Western Australia",4]
[6754,"Unit","Western Australia",4]
[6758,"House","Western Australia",4]
[6758,"Unit","Western Australia",4]
[6760,"House","Western Australia",4]
[6760,"Unit","Western Australia",4]
[6765,"House","Western Australia",4]
[6765,"Unit","Western Australia",4]
[6770,"House","Western Australia",4]
[6770,"Unit","Western Australia",4]
[7000,"House","Tasmania",1]
[7000,"Unit","Tasmania",2]
[7004,"House","Tasmania",1]
[7004,"Unit","Tasmania",2]
[7005,"House","Tasmania",1]
[7005,"Unit","Tasmania",2]
[7007,"House","Tasmania",1]
[7007,"Unit","Tasmania",2]
[7008,"House","Tasmania",1]
[7008,"Unit","Tasmania",2]
[7009,"House","Tasmania",1]
[7009,"Unit","Tasmania",2]
[7010,"House","Tasmania",1]
[7010,"Unit","Tasmania",2]
[7011,"House","Tasmania",1]
[7011,"Unit","Tasmania",2]
[7012,"House","Tasmania",1]
[7012,"Unit","Tasmania",3]
[7015,"House","Tasmania",1]
[7015,"Unit","Tasmania",2]
[7016,"House","Tasmania",1]
[7016,"Unit","Tasmania",2]
[7017,"House","Tasmania",1]
[7017,"Unit","Tasmania",2]
[7018,"House","Tasmania",1]
[7018,"Unit","Tasmania",2]
[7019,"House","Tasmania",1]
[7019,"Unit","Tasmania",2]
[7020,"House","Tasmania",1]
[7020,"Unit","Tasmania",3]
[7021,"House","Tasmania",1]
[7021,"Unit","Tasmania",3]
[7022,"House","Tasmania",3]
[7022,"Unit","Tasmania",4]
[7023,"House","Tasmania",3]
[7023,"Unit","Tasmania",4]
[7024,"House","Tasmania",2]
[7024,"Unit","Tasmania",3]
[7025,"House","Tasmania",1]
[7025,"Unit","Tasmania",3]
[7026,"House","Tasmania",2]
[7026,"Unit","Tasmania",4]
[7027,"House","Tasmania",3]
[7030,"House","Tasmania",1]
[7030,"Unit","Tasmania",2]
[7050,"House","Tasmania",1]
[7050,"Unit","Tasmania",2]
[7052,"House","Tasmania",1]
[7052,"Unit","Tasmania",2]
[7053,"House","Tasmania",1]
[7053,"Unit","Tasmania",1]
[7054,"House","Tasmania",1]
[7054,"Unit","Tasmania",2]
[7055,"House","Tasmania",1]
[7055,"Unit","Tasmania",3]
[7109,"House","Tasmania",1]
[7109,"Unit","Tasmania",2]
[7112,"House","Tasmania",2]
[7112,"Unit","Tasmania",3]
[7113,"House","Tasmania",2]
[7113,"Unit","Tasmania",4]
[7116,"House","Tasmania",2]
[7116,"Unit","Tasmania",4]
[7117,"House","Tasmania",3]
[7117,"Unit","Tasmania",4]
[7119,"House","Tasmania",4]
[7120,"House","Tasmania",2]
[7120,"Unit","Tasmania",4]
[7139,"House","Tasmania",4]
[7140,"House","Tasmania",1]
[7140,"Unit","Tasmania",2]
[7150,"House","Tasmania",1]
[7150,"Unit","Tasmania",3]
[7155,"House","Tasmania",3]
[7155,"Unit","Tasmania",3]
[7162,"House","Tasmania",3]
[7162,"Unit","Tasmania",4]
[7163,"House","Tasmania",2]
[7170,"House","Tasmania",1]
[7170,"Unit","Tasmania",3]
[7171,"House","Tasmania",1]
[7171,"Unit","Tasmania",3]
[7172,"House","Tasmania",2]
[7172,"Unit","Tasmania",2]
[7173,"House","Tasmania",2]
[7173,"Unit","Tasmania",3]
[7174,"House","Tasmania",4]
[7175,"House","Tasmania",3]
[7175,"Unit","Tasmania",4]
[7176,"House","Tasmania",3]
[7177,"House","Tasmania",2]
[7177,"Unit","Tasmania",4]
[7178,"House","Tasmania",3]
[7179,"House","Tasmania",2]
[7179,"Unit","Tasmania",4]
[7180,"House","Tasmania",3]
[7180,"Unit","Tasmania",4]
[7182,"House","Tasmania",3]
[7183,"House","Tasmania",3]
[7184,"House","Tasmania",3]
[7184,"Unit","Tasmania",4]
[7185,"House","Tasmania",2]
[7186,"House","Tasmania",2]
[7187,"House","Tasmania",2]
[7190,"House","Tasmania",3]
[7190,"Unit","Tasmania",3]
[7209,"House","Tasmania",2]
[7209,"Unit","Tasmania",4]
[7210,"House","Tasmania",2]
[7210,"Unit","Tasmania",4]
[7211,"House","Tasmania",3]
[7211,"Unit","Tasmania",4]
[7212,"House","Tasmania",1]
[7212,"Unit","Tasmania",3]
[7213,"House","Tasmania",3]
[7213,"Unit","Tasmania",4]
[7214,"House","Tasmania",3]
[7214,"Unit","Tasmania",4]
[7215,"House","Tasmania",3]
[7215,"Unit","Tasmania",3]
[7216,"House","Tasmania",3]
[7216,"Unit","Tasmania",3]
[7248,"House","Tasmania",1]
[7248,"Unit","Tasmania",2]
[7249,"House","Tasmania",1]
[7249,"Unit","Tasmania",2]
[7250,"House","Tasmania",1]
[7250,"Unit","Tasmania",2]
[7252,"House","Tasmania",1]
[7252,"Unit","Tasmania",2]
[7253,"House","Tasmania",2]
[7253,"Unit","Tasmania",4]
[7254,"House","Tasmania",3]
[7255,"House","Tasmania",4]
[7255,"Unit","Tasmania",4]
[7256,"House","Tasmania",4]
[7256,"Unit","Tasmania",4]
[7257,"House","Tasmania",4]
[7258,"House","Tasmania",1]
[7258,"Unit","Tasmania",3]
[7259,"House","Tasmania",3]
[7260,"House","Tasmania",2]
[7260,"Unit","Tasmania",4]
[7261,"House","Tasmania",4]
[7261,"Unit","Tasmania",4]
[7262,"House","Tasmania",2]
[7262,"Unit","Tasmania",3]
[7263,"House","Tasmania",2]
[7263,"Unit","Tasmania",4]
[7264,"House","Tasmania",3]
[7264,"Unit","Tasmania",4]
[7265,"House","Tasmania",3]
[7265,"Unit","Tasmania",4]
[7267,"House","Tasmania",1]
[7267,"Unit","Tasmania",3]
[7268,"House","Tasmania",1]
[7268,"Unit","Tasmania",3]
[7270,"House","Tasmania",3]
[7270,"Unit","Tasmania",3]
[7275,"House","Tasmania",1]
[7275,"Unit","Tasmania",3]
[7276,"House","Tasmania",3]
[7276,"Unit","Tasmania",4]
[7277,"House","Tasmania",1]
[7277,"Unit","Tasmania",2]
[7290,"House","Tasmania",1]
[7290,"Unit","Tasmania",1]
[7291,"House","Tasmania",2]
[7291,"Unit","Tasmania",3]
[7292,"House","Tasmania",2]
[7300,"House","Tasmania",1]
[7300,"Unit","Tasmania",2]
[7301,"House","Tasmania",1]
[7301,"Unit","Tasmania",2]
[7302,"House","Tasmania",2]
[7302,"Unit","Tasmania",4]
[7303,"House","Tasmania",1]
[7303,"Unit","Tasmania",2]
[7304,"House","Tasmania",3]
[7304,"Unit","Tasmania",3]
[7305,"House","Tasmania",2]
[7305,"Unit","Tasmania",4]
[7306,"House","Tasmania",2]
[7306,"Unit","Tasmania",3]
[7307,"House","Tasmania",1]
[7307,"Unit","Tasmania",2]
[7310,"House","Tasmania",1]
[7310,"Unit","Tasmania",2]
[7315,"House","Tasmania",2]
[7315,"Unit","Tasmania",3]
[7316,"House","Tasmania",3]
[7316,"Unit","Tasmania",2]
[7320,"House","Tasmania",2]
[7320,"Unit","Tasmania",3]
[7321,"House","Tasmania",2]
[7321,"Unit","Tasmania",4]
[7322,"House","Tasmania",2]
[7322,"Unit","Tasmania",3]
[7325,"House","Tasmania",3]
[7325,"Unit","Tasmania",3]
[7330,"House","Tasmania",3]
[7330,"Unit","Tasmania",3]
[7331,"House","Tasmania",3]
[7331,"Unit","Tasmania",4]
[7466,"House","Tasmania",4]
[7467,"House","Tasmania",3]
[7467,"Unit","Tasmania",4]
[7468,"House","Tasmania",3]
[7468,"Unit","Tasmania",4]
[7469,"House","Tasmania",3]
[7469,"Unit","Tasmania",4]
[7470,"House","Tasmania",3]
[7470,"Unit","Tasmania",4]

{"sheet":"Rental","index":3,"n_rows":21,"n_cols":32,"rows_kept":21,"cut":false,"hidden":false,"merged":[[20,4,20,5],[3,23,3,25],[3,26,3,28],[3,29,3,31],[3,20,3,22],[19,10,19,14],[3,3,3,9],[3,10,4,13],[18,4,18,5],[19,4,19,5]]}
[]
[]
[]
[null,null,null,"RENTAL INCOME & NEGATIVE GEARING CALCULATOR ",null,null,null,null,null,null,"Ownership Percentage",null,null,null,null,null,null,null,null,null,"APP 1",null,null,"APP 2",null,null,"APP 3",null,null,"APP 4"]
[]
[null,null,null,null,"Investment Property address","Type","Rental Income"," Frequency","Loan Amount"," Interest Rate","APP 1","APP 2","APP 3","APP 4","Total OP%",null,null,null,null,"DR","ARI","Interest","RI","ARI","Interest","RI","ARI","Interest","RI","ARI","Interest","RI"]
[null,null,null,"Property 1",null,null,null,"Please Select",null,null,null,null,null,null,{"$f":"IF(SUM(K7:N7)=0,\"\",SUM(K7:N7))","v":""},null,null,null,null,{"$f":"IF(F7=\"Residential long-term\",0.8,IF(F7=\"Residential short-term\",0.7,IF(F7=\"Commercial\",0.7,0)))","v":0},{"$f":"IF(O7<>100%,0,IF(H7=\"Please Select\", 0,IF(H7=\"Weekly\",G7*52*K7*T7,IF(H7=\"Fortnightly\",G7*26*K7*T7,IF(H7=\"Monthly\",G7*12*K7*T7,G7*K7*T7)))))","v":0},{"$f":"IF(O7<>100%,0,I7*J7*K7)","v":0},{"$f":"IF(O7<>100%,0,IF(H7=\"Please Select\", 0,IF(H7=\"Weekly\",G7*52*K7,IF(H7=\"Fortnightly\",G7*26*K7,IF(H7=\"Monthly\",G7*12*K7,G7*K7)))))","v":0},{"$f":"IF(O7<>100%,0,IF(H7=\"Please Select\", 0,IF(H7=\"Weekly\",G7*52*L7*T7,IF(H7=\"Fortnightly\",G7*26*L7*T7,IF(H7=\"Monthly\",G7*12*L7*T7,G7*L7*T7)))))","v":0},{"$f":"IF(O7<>100%,0,I7*J7*L7)","v":0},{"$f":"IF(O7<>100%,0,IF(H7=\"Please Select\", 0,IF(H7=\"Weekly\",G7*52*L7,IF(H7=\"Fortnightly\",G7*26*L7,IF(H7=\"Monthly\",G7*12*L7,G7*L7)))))","v":0},{"$f":"IF(O7<>100%,0,IF(H7=\"Please Select\", 0,IF(H7=\"Weekly\",G7*52*M7*T7,IF(H7=\"Fortnightly\",G7*26*M7*T7,IF(H7=\"Monthly\",G7*12*M7*T7,G7*M7*T7)))))","v":0},{"$f":"IF(O7<>100%,0,I7*J7*M7)","v":0},{"$f":"IF(O7<>100%,0,IF(H7=\"Please Select\", 0,IF(H7=\"Weekly\",G7*52*M7,IF(H7=\"Fortnightly\",G7*26*M7,IF(H7=\"Monthly\",G7*12*M7,G7*M7)))))","v":0},{"$f":"IF(O7<>100%,0,IF(H7=\"Please Select\", 0,IF(H7=\"Weekly\",G7*52*N7*T7,IF(H7=\"Fortnightly\",G7*26*N7*T7,IF(H7=\"Monthly\",G7*12*N7*T7,G7*N7*T7)))))","v":0},{"$f":"IF(O7<>100%,0,I7*J7*N7)","v":0},{"$f":"IF(O7<>100%,0,IF(H7=\"Please Select\", 0,IF(H7=\"Weekly\",G7*52*N7,IF(H7=\"Fortnightly\",G7*26*N7,IF(H7=\"Monthly\",G7*12*N7,G7*N7)))))","v":0}]
[null,null,null,"Property 2",null,null,null,"Please Select",null,null,null,null,null,null,{"$f":"IF(SUM(K8:N8)=0,\"\",SUM(K8:N8))","v":""},null,null,null,null,{"$f":"IF(F8=\"Residential long-term\",0.8,IF(F8=\"Residential short-term\",0.7,IF(F8=\"Commercial\",0.7,0)))","v":0},{"$f":"IF(O8<>100%,0,IF(H8=\"Please Select\", 0,IF(H8=\"Weekly\",G8*52*K8*T8,IF(H8=\"Fortnightly\",G8*26*K8*T8,IF(H8=\"Monthly\",G8*12*K8*T8,G8*K8*T8)))))","v":0},{"$f":"IF(O8<>100%,0,I8*J8*K8)","v":0},{"$f":"IF(O8<>100%,0,IF(H8=\"Please Select\", 0,IF(H8=\"Weekly\",G8*52*K8,IF(H8=\"Fortnightly\",G8*26*K8,IF(H8=\"Monthly\",G8*12*K8,G8*K8)))))","v":0},{"$f":"IF(O8<>100%,0,IF(H8=\"Please Select\", 0,IF(H8=\"Weekly\",G8*52*L8*T8,IF(H8=\"Fortnightly\",G8*26*L8*T8,IF(H8=\"Monthly\",G8*12*L8*T8,G8*L8*T8)))))","v":0},0,0,{"$f":"IF(O8<>100%,0,IF(H8=\"Please Select\", 0,IF(H8=\"Weekly\",G8*52*M8*T8,IF(H8=\"Fortnightly\",G8*26*M8*T8,IF(H8=\"Monthly\",G8*12*M8*T8,G8*M8*T8)))))","v":0},0,0,{"$f":"IF(O8<>100%,0,IF(H8=\"Please Select\", 0,IF(H8=\"Weekly\",G8*52*N8*T8,IF(H8=\"Fortnightly\",G8*26*N8*T8,IF(H8=\"Monthly\",G8*12*N8*T8,G8*N8*T8)))))","v":0},0,0]
[null,null,null,"Property 3",null,null,null,"Please Select",null,null,null,null,null,null,"",null,null,null,null,0,0,0,0,0,0,0,0,0,0,0,0,0]
[null,null,null,"Property 4",null,null,null,"Please Select",null,null,null,null,null,null,"",null,null,null,null,0,0,0,0,0,0,0,0,0,0,0,0,0]
[null,null,null,"Property 5",null,null,null,"Please Select",null,null,null,null,null,null,{"$f":"IF(SUM(K11:N11)=0,\"\",SUM(K11:N11))","v":""},null,null,null,null,0,0,0,0,0,0,0,0,0,0,0,0,0]
[null,null,null,"Property 6",null,null,null,"Please Select",null,null,null,null,null,null,"",null,null,null,null,0,0,0,0,0,0,0,0,0,0,0,0,0]
[null,null,null,"Property 7",null,null,null,"Please Select",null,null,null,null,null,null,"",null,null,null,null,0,0,0,0,0,0,0,0,0,0,0,0,0]
[null,null,null,"Property 8",null,null,null,"Please Select",null,null,null,null,null,null,"",null,null,null,null,0,0,0,0,0,0,0,0,0,0,0,0,0]
[null,null,null,"Property 9",null,null,null,"Please Select",null,null,null,null,null,null,"",null,null,null,null,0,0,0,0,0,0,0,0,0,0,0,0,0]
[null,null,null,"Property 10",null,null,null,"Please Select",null,null,null,null,null,null,"",null,null,null,null,0,0,0,0,0,0,0,0,0,0,0,0,0]
[null,null,null,null,null,null,null,null,null,null,null,null,null,null,null,null,null,null,null,null,{"$f":"SUM(U7:U16)","v":0},{"$f":"SUM(V7:V16)","v":0},{"$f":"SUM(W7:W16)","v":0},0,0,0,0,0,0,0,0,0]
[null,null,null,null,null,null,"APPLICANT 1","APPLICANT 2","APPLICANT 3","APPLICANT 4"]
[null,null,null,null,"Rental Income",null,{"$f":"W17","v":0},{"$f":"Z17","v":0},{"$f":"AC17","v":0},{"$f":"AF17","v":0}]
[null,null,null,null,"Discounted Rental Income",null,{"$f":"U17","v":0},{"$f":"X17","v":0},{"$f":"AA17","v":0},{"$f":"AD17","v":0}]
[null,null,null,null,"Investment Interest",null,{"$f":"V17","v":0},{"$f":"Y17","v":0},{"$f":"AB17","v":0},{"$f":"AE17","v":0}]

{"sheet":"SE","index":4,"n_rows":40,"n_cols":14,"rows_kept":40,"cut":false,"hidden":false,"merged":[[21,2,21,4],[21,5,21,9],[31,7,31,8],[34,2,34,3],[39,2,39,3],[38,2,38,4],[36,2,36,4],[35,2,35,4],[32,2,32,9],[6,3,6,4],[17,2,17,10],[7,2,7,3],[8,2,8,3],[8,8,8,9],[9,2,9,3],[10,2,10,3],[11,2,11,3],[12,2,12,3],[13,2,13,3],[13,8,13,9],[16,2,16,3],[16,8,16,9]]}
[]
[]
[null,null,"SELF EMPLOYED"]
[]
[]
[null,null,null,null,null,"Latest Year",null,"Prior Year"]
[null,null,null,"Period Ending"]
[null,null,"Profit and Loss"]
[null,null,"Net Profit before Tax ",null,null,0,null,0,{"$f":"IF(OR(H9=\"\",H9=0),\"\",(F9-H9)/H9)","v":""}]
[null,null,"Addbacks"]
[null,null,"Interest Expense",null,null,0,null,0,""]
[null,null,"Financed Leasing Expense",null,null,0,null,0,""]
[null,null,"Depreciation/ Amortisation of Intangibles",null,null,0,null,0,""]
[null,null,"Salaries/ Wages paid to owners",null,null,0,null,0,{"$f":"IF(OR(H14=\"\",H14=0),\"\",(F14-H14)/H14)","v":""}]
[null,null,"Other Addbacks",null,null,0,null,0,""]
[null,null,"Other Addbacks",null,null,0,null,0,""]
[null,null,"Business - Cash from Operations",null,null,{"$f":"F9+SUM(F11:F16)","v":0},0,{"$f":"H9+SUM(H11:H16)","v":0},{"$f":"IF(OR(H17=\"\",H17=0),\"\",(F17-H17)/H17)","v":""}]
[]
[]
[]
[]
[null,null,"Continuing Business Financial Commitments",null,null,"Personal commitments should be entered on the Calc worksheet"]
[null,null,null,"Limit","Remaining Term (months)","Assessment Rate",null,"Actual Payment (monthly)",null,"Sensitised Annual Payments"]
[null,null,"Term Loan (P&I)",0,0,{"$f":"'Calc Data'!C3","v":0.08},null,0,null,{"$f":"IFERROR(MAX($H24,PMT($F24/12,$E24,-$D24))*12,\"$0.00\")","v":"$0.00"}]
[null,null,"Term Loan (P&I)",0,0,{"$f":"'Calc Data'!C3","v":0.08},null,0,null,{"$f":"IFERROR(MAX($H25,PMT($F25/12,$E25,-$D25))*12,\"$0.00\")","v":"$0.00"}]
[null,null,"Term Loan (I/O)",0,null,{"$f":"'Calc Data'!C3","v":0.08},null,0,null,{"$f":"IFERROR(MAX($H26,PMT($F26/12,360,-$D26))*12,\"$0.00\")","v":0}]
[null,null,"Line of Credit",0,null,{"$f":"'Calc Data'!C3","v":0.08},null,null,null,{"$f":"IFERROR(D27*F27,\"$0.00\")","v":0}]
[null,null,"Overdraft",0,null,{"$f":"'Calc Data'!C3","v":0.08},null,null,null,{"$f":"IFERROR(D28*F28,\"$0.00\")","v":0}]
[null,null,"Lease/HP",0,null,null,null,0,null,{"$f":"IFERROR(H29*12,\"$0.00\")","v":0}]
[null,null,"Other",0,null,null,null,0,null,{"$f":"IFERROR(H30*12,\"$0.00\")","v":0}]
[null,null,"Credit Cards",0,null,null,null,null,null,{"$f":"IF(D31=\"\",0,D31*0.0382*12)","v":0}]
[null,null,null,null,null,null,null,"Sensitised Totals",null,{"$f":"SUM(J24:J31)","v":0}]
[null,null,null,null,null,null,null,null,null,null,null,3]
[]
[null,null,"Distribution of Business Income",null,null,null,null,"Applicant 1",null,"Applicant 2",null,"Applicant 3",null,"Applicant 4"]
[null,null,{"$f":"IF(AND((H37+J37+L37+N37)<=F37,(H39+J39+L39+N39)<=F39),\"Apportion wages/salaries and business cash flow to applicants\",\"APPORTIONED VALUES EXCEED AVAILABLE INCOME\")","v":"Apportion wages/salaries and business cash flow to applicants"},null,null,"Available Income",null,"$ Share of Income",0,"$ Share of Income",null,"$ Share of Income",null,"$ Share of Income"]
[null,null,"Adjusted Salaries/Wages paid to owners",null,null,{"$f":"IFERROR(AVERAGE(F14,H14),0)","v":0}]
[null,null,null,null,null,""]
[null,null,"Residual Business Cash Flow for distribution",null,null,{"$f":"AVERAGE(F17,H17)-J32-F37","v":0}]
[null,null,null,null,null,""]

{"sheet":"Policy","index":5,"n_rows":48,"n_cols":5,"rows_kept":48,"cut":false,"hidden":false,"merged":[[47,2,47,4],[31,1,31,2],[24,1,24,2],[2,1,2,4],[5,1,5,4],[40,1,40,4],[20,3,20,4],[34,1,34,4],[37,1,37,4],[13,1,16,1],[26,1,26,2],[27,1,27,2],[28,1,28,2],[29,1,29,2],[30,1,30,2],[23,1,23,2],[25,1,25,2],[43,2,43,4],[44,2,44,4],[45,2,45,4],[46,2,46,4],[22,1,22,2],[15,2,15,4],[16,2,16,4],[20,1,21,2],[10,2,10,4],[11,2,11,4],[13,2,13,4],[14,2,14,4],[9,1,11,1],[9,2,9,4]]}
[]
[null,"Policy Guidelines"]
[null,"The following policy guidelines represent only a small overview of the total policy. Please make sure you refer to Gateway's Broker Operations Manual for more information."]
[]
[null,"Qualifying rate"]
[null,"The qualifying rate of new loans is the higher of product rate plus margin or floor rate. Different floor rates and margins may be applicable to consumer and commercial facilities.  Qualifying rate of existing facilities depends on the product type."]
[]
[]
[null,"Maximum and Minimum loan terms and amounts"]
[null,"TERM","Maximum loan term is 30 years"]
[null,null,"Maximum interest only term is 5 years"]
[null,null,"Maximum fixed interest rate term is 5 years"]
[]
[null,"MINIMUM LOAN AMOUNT","$20,000 Standard Variable Rate home loans"]
[null,null,"$50,000 Fixed Rate home loans"]
[null,null,"$150,000 Package product home loans"]
[null,null,"$50,000 Construction and Vacant Land loans"]
[]
[]
[null,"Loan to Valuation Ratio (LVR)"]
[null,"Property Type ",null,"Max LVRs"]
[null,null,null," P&I repayments","Full or Partial Interest Only repayments "]
[null,"Residential Dwelling in a Category 1 Location (Owner Occupied Purchase, Refinance or Construction) - excluding debt consolidation and equity release",null,"95% including Capitalised LMI premium ","90% including Capitalised LMI premium "]
[null,"Residential Dwelling in a Category 1 Location (Investment Property Security or Purpose)",null,"90% including Capitalised LMI premium ","90% including Capitalised LMI premium "]
[null,"Any transaction involving equity release or debt consolidation",null,"90% including Capitalised LMI premium ","90% including Capitalised LMI premium "]
[null,"Residential Dwelling: High Risk Location (Category 3)",null,0.7,0.7]
[null,"Residential Dwelling: Medium Risk Location (Category 2)",null,0.8,0.8]
[null,"Vacant Land (Residential) <= 2 ha",null,0.8,0.8]
[null,"Residential property (vacant or improved) > 2 ha < = 25ha",null,0.6,0.6]
[null,"Multiple residences (up to four) on one title",null,0.7,0.7]
[null,"Serviced Apartments (approved apartments only) ",null,0.7,0.7]
[null,"Reverse mortgage loans (Category 1 and 2 only) maximum 2 ha",null,null,"15% plus 1% for each year above 60"]
[]
[null,"Acceptable locations"]
[null,"Must be located within an acceptable location - categories 1, 2 and 3"]
[]
[null,"Minimum building area"]
[null,"The preferred minimum acceptable building area of a residential dwelling offered as security for a loan is 40m2 being the main internal living area of the dwelling, excluding balconies, garages and car spaces. Properties <40m2 will be considered on a case-by-case basis."]
[]
[null,"Living Expenses"]
[null,"The Gateway living expense benchmark is based on the income-adjusted Household Expenditure Measure (HEM). The benchmark is a proxy for living expenses only. Costs of liabilities, contractual commitments and housing are not included in the benchmark and must be entered separately.\nDeclared living expenses are compared against the benchmark and the higher is used. Other expenses, which are not included in the HEM benchmark, are added to the living expenses. "]
[]
[null,"Employment Types"]
[null,"Casual employment","Casual employment must be substantiated over a 6 month period. "]
[null,"Contract employment","A contracted employee must be in the same role for a minimum of 6 months. A confirmation is required that the existing contract has at least 3 months remaining. The income should be discounted to 80%."]
[null,"Regular Overtime","Income is discounted to 80% for capacity testing. Calculated as the lesser of current and previous year’s overtime. 100% of overtime may be accepted where the applicant is employed in essential services and it is a condition of employment. "]
[null,"Bonuses/Commission","Bonuses/commission must be substantiated over a two-year period. A maximum of 80% of verified bonus/commission income should be used for serviceability calculations."]
[null,"Fully maintained car","Where an individual receives a fully maintained vehicle and is able to evidence this entitlement, $5,000 may be added to the applicant’s gross taxable income. "]

{"sheet":"Instructions","index":6,"n_rows":97,"n_cols":8,"rows_kept":97,"cut":false,"hidden":false,"merged":[[2,2,2,19],[33,2,33,19],[96,2,96,19],[103,4,103,13],[104,2,109,2]]}
[]
[]
[null,null,"Capacity Test Calculator User Guide"]
[]
[]
[]
[]
[]
[]
[]
[]
[]
[]
[]
[]
[]
[]
[]
[]
[]
[]
[]
[]
[]
[]
[]
[]
[]
[]
[]
[]
[]
[]
[null,null,"1. MANDATORY FIELDS: All mandatory fields must be completed; Loan details, Security Value, Base Income, Living  Expenses and Location. An Assessment Result and Indicative Maximum Loan Amount will not display unless all mandatory fields are completed."]
[null,null,"2. INCOME : Enter annual income based on income type. Less stable forms of income are discounted to 80% by default. These incomes should be entered before any discount. "]
[null,null,"3. RENTAL INCOME : Use the Rental worksheet to enter in the details of each Investment Property Rental Income (if applicable)."]
[null,null," The Ownership percentage must be entered against each property listed and total 100% otherwise no rental income will be included for that property."]
[]
[]
[]
[]
[]
[]
[]
[]
[null,null,"The total Rental Income per applicant, discounted rental income (calculated at either 70% or 80%) and Investment Interest will display at the bottom of the worksheet. "]
[null,null,"Discounted Rental Income will also be carried over to the Calculator worksheet."]
[null,null,"Interest applicable to investment loans is used in calculating taxable income and therefore tax payable."]
[]
[]
[]
[]
[]
[]
[]
[null,null,"4. SELF EMPLOYED INCOME  : ",null,null,null,"Self-employed income is transferred from the SE worksheet. The income is adjusted for addbacks, ongoing lending commitments and tax."]
[]
[]
[]
[]
[]
[]
[]
[]
[]
[]
[]
[]
[]
[]
[]
[]
[]
[]
[]
[]
[]
[]
[]
[]
[]
[]
[]
[]
[null,null,"Continuing Financial Commitments: ",null,null,null,null,"Only applicable to contractual commitments in the name of the business. Personal commitments must be entered on the Calc sheet. "]
[null,null,null,null,null,null,null,"Enter interest/lease expense as addbacks. Actual payments are entered under Continuing Business Financial Commitments."]
[]
[null,null,"Distribution of Business Income:",null,null,null,null,"Available income (salaries/wages and residual cash flow) must be allocated to the relevant applicants."]
[]
[null,null,"5. EXISTING MORTGAGES AND COMMITMENTS  : Continuing mortgage commitments are assessed at the larger of repayments calculated based on Gateway's qualifying rate or actual payments."]
[null,null,"Please enter current loan limit, remaining term and actual repayments. Other commitments are calculated based on actual repayment amounts. "]
[null,null,"6. LIVING EXPENSES : Select the relationship status of borrowers relevant to the application using the drop down list. Select appropriate Partner relationship."]
[null,null,"The total number of dependents must only be entered against one partner."]
[null,null,"Declared Living Expenses:  Enter monthly living expenses comparable to HEM and other expenses NOT comarable to HEM. "]
[null,null,"7. LOCATION : Enter the location (Security Type, Suburb, Postcode) of the security for the loan."]
[]
[null,null,"8. ASSESSMENT RESULT : Important messages will display here along with the Assessment Result; Servicing Met, Servicing Refer or Servicing Not Met. All messages must be \"satisfied\" before a Servicing Result will display. An Indicative loan amount will display  once all mandatory fields have been completed. As this is dependant on the LVR, the Indicative loan amount will change as the LVR changes."]

{"sheet":"Calc Data","index":7,"n_rows":49,"n_cols":12,"rows_kept":49,"cut":false,"hidden":true,"merged":[[15,1,15,3],[23,15,23,18],[1,15,1,18],[1,9,1,12]]}
[]
[null,"Margin Rate Commercial",2.5000000000000001E-2,null,"Variable personal-loan rate",0.1159]
[null,"Floor Rate Commercial",0.08,null,"New car loan rate",7.0400000000000004E-2]
[null,"Margin Rate Residential",0.03]
[null,"Floor Rate Residential",0.08]
[]
[null,"Loan","Period",null,null,"Dependents Flags"]
[null,"Green Plus Home Loan","Please Select",null,null,"Applicant 1",{"$f":"IF(AND(Calc!AH24=\"App 1\",Calc!AE24>0),1,IF(AND(Calc!AH25=\"App 1\",Calc!AE25>0),1,IF(AND(Calc!AH26=\"App 1\",Calc!AE26>0),1,0)))","v":0}]
[null,"Green Home Loan","Weekly",null,null,"Applicant 2",{"$f":"IF(AND(Calc!AH23=\"App 2\",Calc!AE23>0),1,IF(AND(Calc!AH25=\"App 2\",Calc!AE25>0),1,IF(AND(Calc!AH26=\"App 2\",Calc!AE26>0),1,0)))","v":0}]
[null,"Premium Package","Fortnightly",null,null,"Applicant 3",{"$f":"IF(AND(Calc!AH23=\"App 3\",Calc!AE23>0),1,IF(AND(Calc!AH24=\"App 3\",Calc!AE24>0),1,IF(AND(Calc!AH26=\"App 3\",Calc!AE26>0),1,0)))","v":0}]
[null,"Low Rate Essentials","Monthly",null,null,"Applicant 4",{"$f":"IF(AND(Calc!AH23=\"App 4\",Calc!AE23>0),1,IF(AND(Calc!AH24=\"App 4\",Calc!AE24>0),1,IF(AND(Calc!AH25=\"App 4\",Calc!AE25>0),1,0)))","v":0}]
[null,"Standard Variable","Annually"]
[null,"Equitismart"]
[null,"Construction"]
[null,"Land"]
[null,"2022-2023 Tax Rates"]
[null,"Tax Boundary","Tax Due","Excess %"]
[null,0,0,0]
[null,18200,0,0.19]
[null,45000,{"$f":"C19+(B20-B19)*D19","v":5092},0.32500000000000001]
[null,120000,{"$f":"C20+(B21-B20)*D20","v":29467},0.37]
[null,180000,{"$f":"C21+(B22-B21)*D21","v":51667},0.45]
[]
[null,"APPLICANT 1",null,null,"APPLICANT 2",null,null,"APPLICANT 3",null,null,"APPLICANT 4"]
[null,"GROSS INCOME:",{"$f":"Calc!G22+Calc!G23+Calc!G24+Calc!G25+Calc!G27+Calc!G28+Calc!G29+Rental!G19","v":0},null,"GROSS INCOME:",{"$f":"Calc!J22+Calc!J23+Calc!J24+Calc!J25+Calc!J27+Calc!J28+Calc!J29+Rental!H19","v":0},null,"GROSS INCOME:",{"$f":"Calc!M22+Calc!M23+Calc!M24+Calc!M25+Calc!M27+Calc!M28+Calc!M29+Rental!I19","v":0},null,"GROSS INCOME:",{"$f":"Calc!P22+Calc!P23+Calc!P24+Calc!P25+Calc!P27+Calc!P28+Calc!P29+Rental!J19","v":0}]
[null,"DISCOUNTED INCOME:",{"$f":"Calc!G30","v":0},null,"DISCOUNTED INCOME:",{"$f":"Calc!J30","v":0},null,"DISCOUNTED INCOME",{"$f":"Calc!M30","v":0},null,"DISCOUNTED INCOME:",{"$f":"Calc!P30","v":0}]
[null,"Investment Interest:",{"$f":"Rental!V17","v":0},null,"Investment Interest:",{"$f":"Rental!Y17","v":0},null,"Investment Interest:",{"$f":"Rental!AB17","v":0},null,"Investment Interest:",{"$f":"Rental!AE17","v":0}]
[null,"Tax-free income:",{"$f":"Calc!G29","v":0},null,"Tax-free income:",{"$f":"Calc!J29","v":0},null,"Tax-free income:",{"$f":"Calc!M29","v":0},null,"Tax-free income:",{"$f":"Calc!P29","v":0}]
[null,"Taxable Income:",{"$f":"C26-C27-C28","v":0},null,"Taxable Income:",{"$f":"F26-F27-F28","v":0},null,"Taxable Income:",{"$f":"I26-I27-I28","v":0},null,"Taxable Income:",{"$f":"L26-L27-L28","v":0}]
[null,"Tax Boundary: ",{"$f":"IF(C29<0, 0, VLOOKUP(C29,TaxTable,1))","v":0},null,"Tax Boundary: ",{"$f":"IF(F29<0, 0, VLOOKUP(F29,TaxTable,1))","v":0},null,"Tax Boundary: ",{"$f":"IF(I29<0, 0, VLOOKUP(I29,TaxTable,1))","v":0},null,"Tax Boundary: ",{"$f":"IF(L29<0, 0, VLOOKUP(L29,TaxTable,1))","v":0}]
[null,"Tax Due on Boundary : ",{"$f":"IF(C29<0, 0, VLOOKUP(C29,TaxTable,2))","v":0},null,"Tax Due on Boundary : ",{"$f":"IF(F29<0, 0, VLOOKUP(F29,TaxTable,2))","v":0},null,"Tax Due on Boundary : ",{"$f":"IF(I29<0, 0, VLOOKUP(I29,TaxTable,2))","v":0},null,"Tax Due on Boundary : ",{"$f":"IF(L29<0, 0, VLOOKUP(L29,TaxTable,2))","v":0}]
[null,"% Due on Excess : ",{"$f":"IF(C29<0, 0, VLOOKUP(C29,TaxTable,3))","v":0},null,"% Due on Excess : ",{"$f":"IF(F29<0, 0, VLOOKUP(F29,TaxTable,3))","v":0},null,"% Due on Excess : ",{"$f":"IF(I29<0, 0, VLOOKUP(I29,TaxTable,3))","v":0},null,"% Due on Excess : ",{"$f":"IF(L29<0, 0, VLOOKUP(L29,TaxTable,3))","v":0}]
[]
[null,"TAX DUE ON INCOME : ",{"$f":"C31+(C29-C30)*C32","v":0},null,"TAX DUE ON INCOME : ",{"$f":"F31+(F29-F30)*F32","v":0},null,"TAX DUE ON INCOME : ",{"$f":"I31+(I29-I30)*I32","v":0},null,"TAX DUE ON INCOME : ",{"$f":"L31+(L29-L30)*L32","v":0}]
[]
[null,"MEDICARE",{"$f":"IF(C29<=18200,0,C29*2%)","v":0},null,"MEDICARE",{"$f":"IF(F29<=18200,0,F29*2%)","v":0},null,"MEDICARE",{"$f":"IF(I29<=18200,0,I29*2%)","v":0},null,"MEDICARE",{"$f":"IF(L29<=18200,0,L29*2%)","v":0}]
[null,"TAX DUE ON INCOME : ",{"$f":"C34+C36","v":0},null,"TAX DUE ON INCOME : ",{"$f":"F34+F36","v":0},null,"TAX DUE ON INCOME : ",{"$f":"I34+I36","v":0},null,"TAX DUE ON INCOME : ",{"$f":"L34+L36","v":0}]
[]
[null,"Annual Net Income Surplus (NIS)",{"$f":"(Calc!S30-Calc!S50-SUM(C37,F37,I37,L37)-'HEM Table'!O92)","v":0}]
[null,"Net Servicing Ratio (NSR)",{"$f":"IF(ISNUMBER((Calc!S30-SUM(C37,F37,I37,L37)-#REF!)/Calc!S50)=FALSE,0,(Calc!S30-SUM(C37,F37,I37,L37)-'HEM Table'!O92)/Calc!S50)","v":0},"Not used"]
[]
[null,"Annual NIS Floor",0]
[null,"Minimum NIS based on Income",{"$f":"Calc!S30*0.036","v":0},"Not used"]
[null,"Minimum Annual NIS",2400]
[]
[null,"Available for Repayments",{"$f":"(Calc!S30-SUM(Calc!S36:'Calc'!S46)-SUM(C37,F37,I37,L37)-'HEM Table'!O92)-C44","v":-2400}]
[null,"Maximum Loan Amount",{"$f":"MIN(-PV(MAX($C$5,Calc!$M$12+$C$4)/12,(Calc!K12-Calc!N12),C46/12,0),(6.5*(C25+F25+I25+L25)-SUM(Calc!G36:'Calc'!G42)-Calc!G44-Calc!G45))","v":0}]
[]
[null,"Income available for new lending",{"$f":"ROUND(C39-C44,1)","v":-2400}]

{"sheet":"HEM Table","index":8,"n_rows":92,"n_cols":22,"rows_kept":92,"cut":false,"hidden":true,"merged":[[89,12,89,13],[91,12,91,13],[90,12,90,13],[49,3,49,6],[19,0,21,2],[56,3,56,5],[80,3,80,14],[88,12,88,13]]}
[null,null,null,null,null,"\"HEM Table 1\" equivalent: by Income Level and Residency",null,null,null,null,null,null,"Version","2023 Q4"]
[null,null,null,null,null,null,null,"BASED ON PREDICTED VALUES FROM THE QUANTILE REGRESSIONS"]
[null,null,null,null,null,null,null,null,null,"Smoothed HEM"]
[]
[null,null,null,null,null,null,null,"Total current gross HH income from all sources (measured in current dollars)"]
[null,null,null,null,25000,25000,38000,50000,63000,76000,101000,126000,151000,176000,202000,252000,315000,378000]
[null,null,null,null,"or less","to","to","to","to","to","to","to","to","to","to","to","to","to"]
[null,null,null,null,null,38000,50000,63000,76000,101000,126000,151000,176000,202000,252000,315000,378000,630000]
[null,null,null,"Australia"]
[null,null,null,"Couple",0,577.37112077691938,592.80248923866702,612.87570230653466,650.86135184334967,710.17364568731784,790.57201488953683,863.72292660011283,952.40274124712857,991.24596645826273,1039.8894757354115,1169.5360345429374,1283.8028509591607,1350.4863582094147]
[null,null,null,"Couple with 1 child",0,0,684.36493423306592,704.49507774302117,742.58844228460543,802.06893590064442,882.69527023359262,956.05361424820603,1044.9849706066934,1083.9382681636118,1132.7197333019139,1262.733927778977,1377.3247678942896,1444.1973679832622]
[null,null,null,"Couple with 2 children",0,0,753.45434042300951,773.54893547448637,811.57512794538525,870.95065572696933,951.43481407598438,1024.6637477109252,1113.4381286486168,1152.3227278477937,1201.0181940692498,1330.8030324110825,1445.1916501699732,1511.9463556196945]
[null,null,null,"Couple with 3 children",0,0,0,843.73802146397747,881.72955151675797,941.05113182922094,1021.461988874392,1094.6242779389968,1183.3179262661724,1222.1672027254278,1270.8182714354075,1400.4850274199475,1514.7696450577321,1581.4635778282702]
[]
[null,null,null,"Single person",293.84495491326561,310.88818989722125,326.22551646503047,346.17642052081828,383.93057743905507,442.88147325127164,522.78991729981658,595.49507622743295,683.63454798778525,722.24100411316215,770.58813594605601,899.44473514849903,1013.0151808842029,1079.2924189644859]
[null,null,null,"Single parent with 1 child",0,422.20340605269445,437.69041745230828,457.83601723333499,495.95862019848295,555.48483943379745,636.17312668153579,709.58783044400752,798.58743646095206,837.5706610569556,886.38965991122666,1016.503741692415,1131.1825451341272,1198.1065966268554]
[null,null,null,"Single parent with 2 children",0,524.78955986487233,540.19825066159012,560.24193759165212,598.17165857552584,657.39671832785905,737.67675357677581,810.72003220067222,899.26938331703741,938.05539961550198,986.62740975381723,1116.0832086791279,1230.1818205750458,1296.767284920707]
[null,null,null,"Single parent with 3 children",0,0,642.70608387087191,662.64785794996919,700.38469695256867,759.30859722192065,839.18038047201583,911.85223395733692,999.95133017312276,1038.5401381740485,1086.8651595964079,1215.6626756658407,1329.1810960159644,1395.4279732145585]
[]
["Extrapolated HEM Table",null,null,"Income Band","A","B","C","D","E","F","G","H","I","J","K","L","M","N","O","O","O","O"]
[null,null,null,"Income Band Lower",{"$f":"E8","v":0},{"$f":"F6","v":25000},{"$f":"G6","v":38000},50000,63000,76000,101000,126000,151000,176000,202000,252000,315000,378000,1,2,3,4]
[null,null,null,"Income Band Upper",{"$f":"E6","v":25000},{"$f":"F8","v":38000},{"$f":"G8","v":50000},63000,76000,101000,126000,151000,176000,202000,252000,315000,378000,630000,{"$f":"H83","v":0},{"$f":"H84","v":0},{"$f":"H85","v":0},{"$f":"H86","v":0}]
["Applicants","Dependents","App/Dep ID"]
[2,0,{"$f":"A24&B24","v":"20"},"Couple",{"$f":"ROUNDUP(IF(E10>0,E10,F24),0)","v":578},{"$f":"ROUNDUP(IF(F10>0,F10,G24),0)","v":578},593,613,651,711,791,864,953,992,1040,1170,1284,1351,{"$f":"ROUNDUP((S$22/AVERAGE($R$22,$R$21))*($R24-$Q24)+$Q24,0)","v":1284},{"$f":"ROUNDUP((T$22/AVERAGE($R$22,$R$21))*($R24-$Q24)+$Q24,0)","v":1284},{"$f":"ROUNDUP((U$22/AVERAGE($R$22,$R$21))*($R24-$Q24)+$Q24,0)","v":1284},{"$f":"ROUNDUP((V$22/AVERAGE($R$22,$R$21))*($R24-$Q24)+$Q24,0)","v":1284}]
[2,1,{"$f":"A25&B25","v":"21"},"Couple with 1 child",{"$f":"ROUNDUP(IF(E11>0,E11,F25),0)","v":685},{"$f":"ROUNDUP(IF(F11>0,F11,G25),0)","v":685},{"$f":"ROUNDUP(IF(G11>0,G11,H25),0)","v":685},{"$f":"ROUNDUP(IF(H11>0,H11,I25),0)","v":705},{"$f":"ROUNDUP(IF(I11>0,I11,J25),0)","v":743},{"$f":"ROUNDUP(IF(J11>0,J11,K25),0)","v":803},{"$f":"ROUNDUP(IF(K11>0,K11,L25),0)","v":883},{"$f":"ROUNDUP(IF(L11>0,L11,M25),0)","v":957},{"$f":"ROUNDUP(IF(M11>0,M11,N25),0)","v":1045},{"$f":"ROUNDUP(IF(N11>0,N11,O25),0)","v":1084},{"$f":"ROUNDUP(IF(O11>0,O11,P25),0)","v":1133},{"$f":"ROUNDUP(IF(P11>0,P11,Q25),0)","v":1263},{"$f":"ROUNDUP(IF(Q11>0,Q11,R25),0)","v":1378},{"$f":"ROUNDUP(IF(R11>0,R11,S25),0)","v":1445},{"$f":"ROUNDUP((S$22/AVERAGE($R$22,$R$21))*($R25-$Q25)+$Q25,0)","v":1378},1378,1378,1378]
[2,2,{"$f":"A26&B26","v":"22"},"Couple with 2 children",754,754,754,774,812,871,952,1025,1114,1153,1202,1331,1446,1512,1446,1446,1446,1446]
[2,3,{"$f":"A27&B27","v":"23"},"Couple with 3 children",844,844,844,844,882,942,1022,1095,1184,1223,1271,1401,1515,1582,1515,1515,1515,1515]
[2,4,{"$f":"A28&B28","v":"24"},"Couple with 4 children",{"$f":"E$27+(E$27-E$26)*($B28-$B$27)","v":934},{"$f":"F$27+(F$27-F$26)*($B28-$B$27)","v":934},934,914,952,1013,1092,1165,1254,1293,1340,1471,1584,1652,1584,1584,1584,1584]
[2,5,"25","Couple with 5 children",{"$f":"E$27+(E$27-E$26)*($B29-$B$27)","v":1024},1024,1024,984,1022,1084,1162,1235,1324,1363,1409,1541,1653,1722,1653,1653,1653,1653]
[2,6,"26","Couple with 6 children",1114,1114,1114,1054,1092,1155,1232,1305,1394,1433,1478,1611,1722,1792,1722,1722,1722,1722]
[2,7,"27","Couple with 7 children",1204,1204,1204,1124,1162,1226,1302,1375,1464,1503,1547,1681,1791,1862,1791,1791,1791,1791]
[2,8,"28","Couple with 8 children",1294,1294,1294,1194,1232,1297,1372,1445,1534,1573,1616,1751,1860,1932,1860,1860,1860,1860]
[2,9,"29","Couple with 9 children",1384,1384,1384,1264,1302,1368,1442,1515,1604,1643,1685,1821,1929,2002,1929,1929,1929,1929]
[2,10,"210","Couple with 10 children",1474,1474,1474,1334,1372,1439,1512,1585,1674,1713,1754,1891,1998,2072,1998,1998,1998,1998]
[]
[1,0,{"$f":"A36&B36","v":"10"},"Single person",{"$f":"ROUNDUP(IF(E15>0,E15,F36),0)","v":294},{"$f":"ROUNDUP(IF(F15>0,F15,G36),0)","v":311},327,347,384,443,523,596,684,723,771,900,1014,1080,{"$f":"ROUNDUP(S$22/AVERAGE($R$22,$R$21)*($R36-$Q36)+$Q36,0)","v":1014},{"$f":"ROUNDUP(T$22/AVERAGE($R$22,$R$21)*($R36-$Q36)+$Q36,0)","v":1014},{"$f":"ROUNDUP(U$22/AVERAGE($R$22,$R$21)*($R36-$Q36)+$Q36,0)","v":1014},{"$f":"ROUNDUP(V$22/AVERAGE($R$22,$R$21)*($R36-$Q36)+$Q36,0)","v":1014}]
[1,1,{"$f":"A37&B37","v":"11"},"Single parent with 1 child",{"$f":"ROUNDUP(IF(E16>0,E16,F37),0)","v":423},423,438,458,496,556,637,710,799,838,887,1017,1132,1199,{"$f":"ROUNDUP(S$22/AVERAGE($R$22,$R$21)*($R37-$Q37)+$Q37,0)","v":1132},1132,1132,1132]
[1,2,{"$f":"A38&B38","v":"12"},"Single parent with 2 children",{"$f":"ROUNDUP(IF(E17>0,E17,F38),0)","v":525},525,541,561,599,658,738,811,900,939,987,1117,1231,1297,1231,1231,1231,1231]
[1,3,{"$f":"A39&B39","v":"13"},"Single parent with 3 children",{"$f":"ROUNDUP(IF(E18>0,E18,F39),0)","v":643},643,643,663,701,760,840,912,1000,1039,1087,1216,1330,1396,1330,1330,1330,1330]
[1,4,{"$f":"A40&B40","v":"14"},"Single Parent with 4 children",{"$f":"E$39+(E$39-E$38)*($B40-$B$27)","v":761},{"$f":"F$39+(F$39-F$38)*($B40-$B$27)","v":761},745,765,803,862,942,1013,1100,1139,1187,1315,1429,1495,1429,1429,1429,1429]
[1,5,"15","Single Parent with 5 children",{"$f":"E$39+(E$39-E$38)*($B41-$B$27)","v":879},879,847,867,905,964,1044,1114,1200,1239,1287,1414,1528,1594,1528,1528,1528,1528]
[1,6,"16","Single Parent with 6 children",997,997,949,969,1007,1066,1146,1215,1300,1339,1387,1513,1627,1693,1627,1627,1627,1627]
[1,7,"17","Single Parent with 7 children",1115,1115,1051,1071,1109,1168,1248,1316,1400,1439,1487,1612,1726,1792,1726,1726,1726,1726]
[1,8,"18","Single Parent with 8 children",1233,1233,1153,1173,1211,1270,1350,1417,1500,1539,1587,1711,1825,1891,1825,1825,1825,1825]
[1,9,"19","Single Parent with 9 children",1351,1351,1255,1275,1313,1372,1452,1518,1600,1639,1687,1810,1924,1990,1924,1924,1924,1924]
[1,10,"110","Single Parent with 10 children",1469,1469,1357,1377,1415,1474,1554,1619,1700,1739,1787,1909,2023,2089,2023,2023,2023,2023]
[]
[]
[]
[null,null,null,"Relationship Status"]
[null,null,null,"Applicant","Status","Dependents","Partner"]
[null,null,null,"Applicant 1",{"$f":"INDEX(Calc!$AA$23:$AI$26,MATCH($D52,Calc!$X$23:$X$26,0),MATCH(E$51,Calc!$AA$22:$AI$22,0))","v":"N/A"},{"$f":"INDEX(Calc!$AA$23:$AI$26,MATCH($D52,Calc!$X$23:$X$26,0),MATCH(F$51,Calc!$AA$22:$AI$22,0))","v":0},{"$f":"INDEX(Calc!$AA$23:$AI$26,MATCH($D52,Calc!$X$23:$X$26,0),MATCH(G$51,Calc!$AA$22:$AI$22,0))","v":"N/A"}]
[null,null,null,"Applicant 2",{"$f":"INDEX(Calc!$AA$23:$AI$26,MATCH($D53,Calc!$X$23:$X$26,0),MATCH(E$51,Calc!$AA$22:$AI$22,0))","v":"N/A"},{"$f":"INDEX(Calc!$AA$23:$AI$26,MATCH($D53,Calc!$X$23:$X$26,0),MATCH(F$51,Calc!$AA$22:$AI$22,0))","v":0},{"$f":"INDEX(Calc!$AA$23:$AI$26,MATCH($D53,Calc!$X$23:$X$26,0),MATCH(G$51,Calc!$AA$22:$AI$22,0))","v":"N/A"}]
[null,null,null,"Applicant 3",{"$f":"INDEX(Calc!$AA$23:$AI$26,MATCH($D54,Calc!$X$23:$X$26,0),MATCH(E$51,Calc!$AA$22:$AI$22,0))","v":"N/A"},{"$f":"INDEX(Calc!$AA$23:$AI$26,MATCH($D54,Calc!$X$23:$X$26,0),MATCH(F$51,Calc!$AA$22:$AI$22,0))","v":0},{"$f":"INDEX(Calc!$AA$23:$AI$26,MATCH($D54,Calc!$X$23:$X$26,0),MATCH(G$51,Calc!$AA$22:$AI$22,0))","v":"N/A"}]
[null,null,null,"Applicant 4",{"$f":"INDEX(Calc!$AA$23:$AI$26,MATCH($D55,Calc!$X$23:$X$26,0),MATCH(E$51,Calc!$AA$22:$AI$22,0))","v":"N/A"},{"$f":"INDEX(Calc!$AA$23:$AI$26,MATCH($D55,Calc!$X$23:$X$26,0),MATCH(F$51,Calc!$AA$22:$AI$22,0))","v":0},{"$f":"INDEX(Calc!$AA$23:$AI$26,MATCH($D55,Calc!$X$23:$X$26,0),MATCH(G$51,Calc!$AA$22:$AI$22,0))","v":"N/A"}]
[]
[null,null,null,"Income Band Calculation"]
[null,null,null,"Income Band Lower","Income Band Upper","Income Band"]
[null,null,null,{"$f":"E21","v":0},{"$f":"E22","v":25000},"A"]
[null,null,null,{"$f":"E59+1","v":25001},{"$f":"OFFSET($E$22,0,ROW(2:2)-1)","v":38000},"B"]
[null,null,null,38001,{"$f":"OFFSET($E$22,0,ROW(3:3)-1)","v":50000},"C"]
[null,null,null,50001,{"$f":"OFFSET($E$22,0,ROW(4:4)-1)","v":63000},"D"]
[null,null,null,63001,{"$f":"OFFSET($E$22,0,ROW(5:5)-1)","v":76000},"E"]
[null,null,null,76001,{"$f":"OFFSET($E$22,0,ROW(6:6)-1)","v":101000},"F"]
[null,null,null,101001,{"$f":"OFFSET($E$22,0,ROW(7:7)-1)","v":126000},"G"]
[null,null,null,126001,{"$f":"OFFSET($E$22,0,ROW(8:8)-1)","v":151000},"H"]
[null,null,null,151001,{"$f":"OFFSET($E$22,0,ROW(9:9)-1)","v":176000},"I"]
[null,null,null,176001,{"$f":"OFFSET($E$22,0,ROW(10:10)-1)","v":202000},"J"]
[null,null,null,202001,{"$f":"OFFSET($E$22,0,ROW(11:11)-1)","v":252000},"K"]
[null,null,null,252001,{"$f":"OFFSET($E$22,0,ROW(12:12)-1)","v":315000},"L"]
[null,null,null,315001,{"$f":"OFFSET($E$22,0,ROW(13:13)-1)","v":378000},"M"]
[null,null,null,378001,{"$f":"OFFSET($E$22,0,ROW(14:14)-1)","v":630000},"N"]
[null,null,null,630001,null,"O"]
[]
[null,null,null,"Group ID Matrix","Applicant 1","Applicant 2","Applicant 3","Applicant 4",0,"Non Applicant"]
[null,null,null,"Applicant 1",0,1,1,1,2,3]
[null,null,null,"Applicant 2",1,0,4,4,5,6]
[null,null,null,"Applicant 3",1,4,0,7,8,9]
[null,null,null,"Applicant 4",1,4,7,0,10,11]
[]
[null,null,null,"HEM Calculation"]
[null,null,null,"Applicant Short","Applicant Long","Partner","Income","Grouped Income","Income Band","Applicants","Dependents","Grouped Dependents","App/Dep ID","Group ID","HEM"]
[null,null,null,1,"Applicant 1",{"$f":"IF(OR(G52=0,G52=\"N/A\"),0,IF(G52=\"Non App\",\"Non Applicant\",\"Applicant \"&RIGHT(G52,1)))","v":0},{"$f":"Calc!G30","v":0},{"$f":"SUMIFS($G$83:$G$86,$E$83:$E$86,E83)+SUMIFS($G$83:$G$86,$F$83:$F$86,E83)","v":0},{"$f":"IF(AND(H83>=$D$59,H83<=$E$59),$F$59,IF(AND(H83>=$D$60,H83<=$E$60),$F$60,IF(AND(H83>=$D$61,H83<=$E$61),$F$61,IF(AND(H83>=$D$62,H83<=$E$62),$F$62,IF(AND(H83>=$D$63,H83<=$E$63),$F$63,IF(AND(H83>=$D$64,H83<=$E$64),$F$64,IF(AND(H83>=$D$65,H83<=$E$65),$F$65,IF(AND(H83>=$D$66,H83<=$E$66),$F$66,IF(AND(H83>=$D$67,H83<=$E$67),$F$67,IF(AND(H83>=$D$68,H83<=$E$68),$F$68,IF(AND(H83>=$D$69,H83<=$E$69),$F$69,IF(AND(H83>=$D$70,H83<=$E$70),$F$70,IF(AND(H83>=$D$71,H83<=$E$71),$F$71,IF(AND(H83>=$D$72,H83<=$E$72),$F$72,IF(H83>=$D$73,$F$73)))))))))))))))","v":"A"},{"$f":"IF(OR(E52=\"N/A\",E52=0),0,IF(F83=0,1,2))","v":0},{"$f":"Calc!AE23","v":0},{"$f":"SUMIF($E$83:$E$86,E83,$K$83:$K$86)+SUMIF($F$83:$F$86,E83,$K$83:$K$86)","v":0},{"$f":"J83&L83","v":"00"},{"$f":"SUMPRODUCT(($E$76:$J$79)*($E$75:$J$75=F83)*($D$76:$D$79=E83))","v":2},{"$f":"IF(I83=\"O\",SUMPRODUCT(($S$24:$V$46)*($S$21:$V$21=D83)*($C$24:$C$46=M83))/COUNTIF($N$83:$N$86,N83),SUMPRODUCT(($E$24:$R$46)*($E$20:$R$20=I83)*($C$24:$C$46=M83))/COUNTIF($N$83:$N$86,N83))","v":0}]
[null,null,null,2,"Applicant 2",{"$f":"IF(OR(G53=\"N/A\",G53=0),0,IF(G53=\"Non App\",\"Non Applicant\",\"Applicant \"&RIGHT(G53,1)))","v":0},{"$f":"Calc!J30","v":0},{"$f":"SUMIFS($G$83:$G$86,$E$83:$E$86,E84)+SUMIFS($G$83:$G$86,$F$83:$F$86,E84)","v":0},{"$f":"IF(AND(H84>=$D$59,H84<=$E$59),$F$59,IF(AND(H84>=$D$60,H84<=$E$60),$F$60,IF(AND(H84>=$D$61,H84<=$E$61),$F$61,IF(AND(H84>=$D$62,H84<=$E$62),$F$62,IF(AND(H84>=$D$63,H84<=$E$63),$F$63,IF(AND(H84>=$D$64,H84<=$E$64),$F$64,IF(AND(H84>=$D$65,H84<=$E$65),$F$65,IF(AND(H84>=$D$66,H84<=$E$66),$F$66,IF(AND(H84>=$D$67,H84<=$E$67),$F$67,IF(AND(H84>=$D$68,H84<=$E$68),$F$68,IF(AND(H84>=$D$69,H84<=$E$69),$F$69,IF(AND(H84>=$D$70,H84<=$E$70),$F$70,IF(AND(H84>=$D$71,H84<=$E$71),$F$71,IF(AND(H84>=$D$72,H84<=$E$72),$F$72,IF(H84>=$D$73,$F$73)))))))))))))))","v":"A"},{"$f":"IF(OR(E53=\"N/A\",E53=0),0,IF(F84=0,1,2))","v":0},{"$f":"Calc!AE24","v":0},{"$f":"SUMIF($E$83:$E$86,E84,$K$83:$K$86)+SUMIF($F$83:$F$86,E84,$K$83:$K$86)","v":0},{"$f":"J84&L84","v":"00"},{"$f":"SUMPRODUCT(($E$76:$J$79)*($E$75:$J$75=F84)*($D$76:$D$79=E84))","v":5},{"$f":"IF(I84=\"O\",SUMPRODUCT(($S$24:$V$46)*($S$21:$V$21=D84)*($C$24:$C$46=M84))/COUNTIF($N$83:$N$86,N84),SUMPRODUCT(($E$24:$R$46)*($E$20:$R$20=I84)*($C$24:$C$46=M84))/COUNTIF($N$83:$N$86,N84))","v":0}]
[null,null,null,3,"Applicant 3",{"$f":"IF(OR(G54=\"N/A\",G54=0),0,IF(G54=\"Non App\",\"Non Applicant\",\"Applicant \"&RIGHT(G54,1)))","v":0},{"$f":"Calc!M30","v":0},{"$f":"SUMIFS($G$83:$G$86,$E$83:$E$86,E85)+SUMIFS($G$83:$G$86,$F$83:$F$86,E85)","v":0},{"$f":"IF(AND(H85>=$D$59,H85<=$E$59),$F$59,IF(AND(H85>=$D$60,H85<=$E$60),$F$60,IF(AND(H85>=$D$61,H85<=$E$61),$F$61,IF(AND(H85>=$D$62,H85<=$E$62),$F$62,IF(AND(H85>=$D$63,H85<=$E$63),$F$63,IF(AND(H85>=$D$64,H85<=$E$64),$F$64,IF(AND(H85>=$D$65,H85<=$E$65),$F$65,IF(AND(H85>=$D$66,H85<=$E$66),$F$66,IF(AND(H85>=$D$67,H85<=$E$67),$F$67,IF(AND(H85>=$D$68,H85<=$E$68),$F$68,IF(AND(H85>=$D$69,H85<=$E$69),$F$69,IF(AND(H85>=$D$70,H85<=$E$70),$F$70,IF(AND(H85>=$D$71,H85<=$E$71),$F$71,IF(AND(H85>=$D$72,H85<=$E$72),$F$72,IF(H85>=$D$73,$F$73)))))))))))))))","v":"A"},0,{"$f":"Calc!AE25","v":0},0,"00",{"$f":"SUMPRODUCT(($E$76:$J$79)*($E$75:$J$75=F85)*($D$76:$D$79=E85))","v":8},{"$f":"IF(I85=\"O\",SUMPRODUCT(($S$24:$V$46)*($S$21:$V$21=D85)*($C$24:$C$46=M85))/COUNTIF($N$83:$N$86,N85),SUMPRODUCT(($E$24:$R$46)*($E$20:$R$20=I85)*($C$24:$C$46=M85))/COUNTIF($N$83:$N$86,N85))","v":0}]
[null,null,null,4,"Applicant 4",{"$f":"IF(OR(G55=\"N/A\",G55=0),0,IF(G55=\"Non App\",\"Non Applicant\",\"Applicant \"&RIGHT(G55,1)))","v":0},{"$f":"Calc!P30","v":0},{"$f":"SUMIFS($G$83:$G$86,$E$83:$E$86,E86)+SUMIFS($G$83:$G$86,$F$83:$F$86,E86)","v":0},{"$f":"IF(AND(H86>=$D$59,H86<=$E$59),$F$59,IF(AND(H86>=$D$60,H86<=$E$60),$F$60,IF(AND(H86>=$D$61,H86<=$E$61),$F$61,IF(AND(H86>=$D$62,H86<=$E$62),$F$62,IF(AND(H86>=$D$63,H86<=$E$63),$F$63,IF(AND(H86>=$D$64,H86<=$E$64),$F$64,IF(AND(H86>=$D$65,H86<=$E$65),$F$65,IF(AND(H86>=$D$66,H86<=$E$66),$F$66,IF(AND(H86>=$D$67,H86<=$E$67),$F$67,IF(AND(H86>=$D$68,H86<=$E$68),$F$68,IF(AND(H86>=$D$69,H86<=$E$69),$F$69,IF(AND(H86>=$D$70,H86<=$E$70),$F$70,IF(AND(H86>=$D$71,H86<=$E$71),$F$71,IF(AND(H86>=$D$72,H86<=$E$72),$F$72,IF(H86>=$D$73,$F$73)))))))))))))))","v":"A"},0,{"$f":"Calc!AE26","v":0},0,"00",{"$f":"SUMPRODUCT(($E$76:$J$79)*($E$75:$J$75=F86)*($D$76:$D$79=E86))","v":10},{"$f":"IF(I86=\"O\",SUMPRODUCT(($S$24:$V$46)*($S$21:$V$21=D86)*($C$24:$C$46=M86))/COUNTIF($N$83:$N$86,N86),SUMPRODUCT(($E$24:$R$46)*($E$20:$R$20=I86)*($C$24:$C$46=M86))/COUNTIF($N$83:$N$86,N86))","v":0}]
[null,null,null,null,null,null,null,null,null,null,null,null,null,null,{"$f":"SUM(O83:O86)","v":0}]
[]
[null,null,null,null,null,null,null,null,null,null,null,null,"Annual Benchmark",null,{"$f":"O87*52","v":0}]
[null,null,null,null,null,null,null,null,null,null,null,null,"Annual HEM Declared",null,{"$f":"Calc!AF28*12","v":0}]
[null,null,null,null,null,null,null,null,null,null,null,null,"Annual non-HEM Declared",null,{"$f":"Calc!AF30*12","v":0}]
[null,null,null,null,null,null,null,null,null,null,null,null,"Max",null,{"$f":"MAX(O89:O90)+O91","v":0}]

{"sheet":"Overview","index":9,"n_rows":28,"n_cols":7,"rows_kept":28,"cut":false,"hidden":true,"merged":[[23,1,23,4],[23,6,23,12],[25,1,25,4],[25,6,25,12],[27,1,27,4],[27,6,27,12],[17,1,17,4],[17,6,17,12],[19,1,19,4],[19,6,19,12],[21,1,21,4],[21,6,21,12],[11,1,11,4],[11,6,11,12],[13,1,13,4],[13,6,13,12],[15,1,15,4],[15,6,15,12],[7,1,7,4],[7,6,7,12],[9,1,9,4],[9,6,9,12],[1,1,1,4],[1,6,1,12],[3,1,3,4],[3,6,3,12],[5,1,5,4],[5,6,5,12]]}
[]
[null,"Spreadsheet Name",null,null,null,null,"Gateway Capacity Calculator"]
[]
[null,"Storage Location"]
[]
[null,"Spreadsheet Owner Name / Position",null,null,null,null,"Senior Manager Credit & Operational Risk"]
[]
[null,"Department",null,null,null,null,"Credit and Operational Risk"]
[]
[null,"Purpose of the Spreadsheet",null,null,null,null,"Capacity calculation for home loans"]
[]
[null,"Major EUC",null,null,null,null,"Yes"]
[]
[null,"Level of Confidentiality",null,null,null,null,"Internal and broker use"]
[]
[null,"Security / Backup",null,null,null,null,"System backup"]
[]
[null,"Inputs ",null,null,null,null,"Credit policy, HEM, tax rates, interest rates, customer data"]
[]
[null,"Outputs",null,null,null,null,"NIS output"]
[]
[null,"Controls",null,null,null,null,"Calculator definitions and management procedure\nChange register\nCalculators are reviewed by before release\nThe spreadsheets are password protected so no unauthorised changes can occur."]
[]
[null,"Version Number",null,null,null,null,2023.1]
[]
[null,"Last Annual Review"]
[]
[null,"Latest Changes",null,null,null,null,"13/2/2018 - Method of calculating existing mortgage loan repayments\n1/3/2019 - Bridging/construction assessed at buffered rate. Credit cards assessed at 3.82% pa. Latest HEM.\n26/8/2019 - HEM, floor rate, margin, location category\n4/11/2019 - HEM, location category\n4/2/2020 - Change to NIS and D/I, new location category\n14/4/2020 - HEM and location category changes\n29/6/2020 - HEM and location category changes\n2/11/2020 - income adjusted HEM and location categories\n18/12/2020 - NIS/DIR change, floor reduced to 5%, new HEM, location categories\n17/3/2021 - negative gearing, SE averaging, HEM, location categories\n24/5/2021 - Added green products\n21/6/2021 - Updated HEM and location categories\n24/9/2021 - Updated HEM, location categories and income error correction\n28/10/2021 - Margin rate increased to 3.00%\n1/2/2022 - Updated HEM, location categories and change to DIR calculation\n5/2/2022 - Error corrected in max loan amount\n1/6/2022 - New location category matrix, updated HEM\n4/7/2022 - New location categories, casual employment now 100%\n16/12/2022 - New location categories, HEM \n26/5/2023 - Location categories, HEM, chage to calculations of existing liabilites, split HEM, alternative rental income\n29/9/2023 - HEM, location categories\n29/3/2024 - HEM, location categories, PL rate"]